Department,Entity,Transaction Date,Expense Type,Expense Area,Supplier,Transaction No.,Amount
"Department for Business, Energy and Industrial Strategy",The Coal Authority,30/06/2020,Minewater Power Costs,Environment - DEFRA - EA Programme,Veolia ES UK Ltd,83985,"-3,591.35"
"Department for Business, Energy and Industrial Strategy",The Coal Authority,30/06/2020,Minewater Sludge Disposal,Environment - DEFRA - EA Programme,Veolia ES UK Ltd,83985,-199.85
"Department for Business, Energy and Industrial Strategy",The Coal Authority,12/05/2020,Water Charges,Facilities,Water Plus Limited,84000,906.99
"Department for Business, Energy and Industrial Strategy",The Coal Authority,12/06/2020,Water Charges,Facilities,Water Plus Limited,84001,935.85
"Department for Business, Energy and Industrial Strategy",The Coal Authority,15/06/2020,Incidentals,Environment - Innovation Programme Delivery,Staff Expenses Control,84033,3.60
"Department for Business, Energy and Industrial Strategy",The Coal Authority,17/06/2020,Incidentals,Environment - Innovation Programme Delivery,Staff Expenses Control,84033,3.60
"Department for Business, Energy and Industrial Strategy",The Coal Authority,26/05/2020,Mileage Payments,PS&S - Industry Claims,Staff Expenses Control,84033,19.80
"Department for Business, Energy and Industrial Strategy",The Coal Authority,28/05/2020,Mileage Payments,Environment - Innovation Programme Delivery,Staff Expenses Control,84033,11.73
"Department for Business, Energy and Industrial Strategy",The Coal Authority,28/05/2020,Mileage Payments,Environment - Innovation Programme Delivery,Staff Expenses Control,84033,12.22
"Department for Business, Energy and Industrial Strategy",The Coal Authority,01/06/2020,Mileage Payments,Environment-Mine Prog Build Team (Coal&Metal),Staff Expenses Control,84033,40.50
"Department for Business, Energy and Industrial Strategy",The Coal Authority,02/06/2020,Mileage Payments,PS&S - Industry Claims,Staff Expenses Control,84033,19.80
"Department for Business, Energy and Industrial Strategy",The Coal Authority,04/06/2020,Mileage Payments,Environment - Innovation Programme Delivery,Staff Expenses Control,84033,2.57
"Department for Business, Energy and Industrial Strategy",The Coal Authority,04/06/2020,Mileage Payments,Environment - Innovation Programme Delivery,Staff Expenses Control,84033,2.58
"Department for Business, Energy and Industrial Strategy",The Coal Authority,04/06/2020,Mileage Payments,Environment-Mine Prog Build Team (Coal&Metal),Staff Expenses Control,84033,40.50
"Department for Business, Energy and Industrial Strategy",The Coal Authority,05/06/2020,Mileage Payments,PS&S - Industry Claims,Staff Expenses Control,84033,19.80
"Department for Business, Energy and Industrial Strategy",The Coal Authority,08/06/2020,Mileage Payments,Environment - Innovation Programme Delivery,Staff Expenses Control,84033,0.57
"Department for Business, Energy and Industrial Strategy",The Coal Authority,08/06/2020,Mileage Payments,Environment - Innovation Programme Delivery,Staff Expenses Control,84033,0.63
"Department for Business, Energy and Industrial Strategy",The Coal Authority,08/06/2020,Mileage Payments,PS&S - Industry Claims,Staff Expenses Control,84033,5.42
"Department for Business, Energy and Industrial Strategy",The Coal Authority,08/06/2020,Mileage Payments,PS&S - Industry Claims,Staff Expenses Control,84033,5.44
"Department for Business, Energy and Industrial Strategy",The Coal Authority,09/06/2020,Mileage Payments,PS&S - Industry Claims,Staff Expenses Control,84033,5.42
"Department for Business, Energy and Industrial Strategy",The Coal Authority,09/06/2020,Mileage Payments,PS&S - Industry Claims,Staff Expenses Control,84033,19.88
"Department for Business, Energy and Industrial Strategy",The Coal Authority,09/06/2020,Mileage Payments,PS&S - Industry Claims,Staff Expenses Control,84033,17.52
"Department for Business, Energy and Industrial Strategy",The Coal Authority,09/06/2020,Mileage Payments,PS&S - Industry Claims,Staff Expenses Control,84033,5.45
"Department for Business, Energy and Industrial Strategy",The Coal Authority,10/06/2020,Mileage Payments,PS&S - Industry Claims,Staff Expenses Control,84033,5.41
"Department for Business, Energy and Industrial Strategy",The Coal Authority,10/06/2020,Mileage Payments,PS&S - Industry Claims,Staff Expenses Control,84033,5.45
"Department for Business, Energy and Industrial Strategy",The Coal Authority,10/06/2020,Mileage Payments,PS&S - Industry Claims,Staff Expenses Control,84033,5.41
"Department for Business, Energy and Industrial Strategy",The Coal Authority,10/06/2020,Mileage Payments,PS&S - Industry Claims,Staff Expenses Control,84033,5.45
"Department for Business, Energy and Industrial Strategy",The Coal Authority,11/06/2020,Mileage Payments,PS&S - Industry Claims,Staff Expenses Control,84033,5.45
"Department for Business, Energy and Industrial Strategy",The Coal Authority,11/06/2020,Mileage Payments,PS&S - Industry Claims,Staff Expenses Control,84033,5.42
"Department for Business, Energy and Industrial Strategy",The Coal Authority,11/06/2020,Mileage Payments,PS&S - Industry Claims,Staff Expenses Control,84033,19.88
"Department for Business, Energy and Industrial Strategy",The Coal Authority,11/06/2020,Mileage Payments,PS&S - Industry Claims,Staff Expenses Control,84033,0.92
"Department for Business, Energy and Industrial Strategy",The Coal Authority,11/06/2020,Mileage Payments,PS&S - Industry Claims,Staff Expenses Control,84033,17.03
"Department for Business, Energy and Industrial Strategy",The Coal Authority,11/06/2020,Mileage Payments,PS&S - Industry Claims,Staff Expenses Control,84033,27.90
"Department for Business, Energy and Industrial Strategy",The Coal Authority,12/06/2020,Mileage Payments,Environment - Innovation Concept & Feasibility,Staff Expenses Control,84033,24.75
"Department for Business, Energy and Industrial Strategy",The Coal Authority,12/06/2020,Mileage Payments,PS&S - Industry Claims,Staff Expenses Control,84033,19.80
"Department for Business, Energy and Industrial Strategy",The Coal Authority,12/06/2020,Mileage Payments,PS&S - Industry Claims,Staff Expenses Control,84033,5.41
"Department for Business, Energy and Industrial Strategy",The Coal Authority,12/06/2020,Mileage Payments,PS&S - Industry Claims,Staff Expenses Control,84033,5.45
"Department for Business, Energy and Industrial Strategy",The Coal Authority,15/06/2020,Mileage Payments,Environment - Innovation Programme Delivery,Staff Expenses Control,84033,79.47
"Department for Business, Energy and Industrial Strategy",The Coal Authority,15/06/2020,Mileage Payments,Environment - Innovation Programme Delivery,Staff Expenses Control,84033,79.30
"Department for Business, Energy and Industrial Strategy",The Coal Authority,15/06/2020,Mileage Payments,PS&S - Industry Claims,Staff Expenses Control,84033,27.90
"Department for Business, Energy and Industrial Strategy",The Coal Authority,15/06/2020,Mileage Payments,PS&S - Industry Claims,Staff Expenses Control,84033,5.42
"Department for Business, Energy and Industrial Strategy",The Coal Authority,15/06/2020,Mileage Payments,PS&S - Industry Claims,Staff Expenses Control,84033,5.44
"Department for Business, Energy and Industrial Strategy",The Coal Authority,16/06/2020,Mileage Payments,Environment - Innovation Concept & Feasibility,Staff Expenses Control,84033,173.25
"Department for Business, Energy and Industrial Strategy",The Coal Authority,16/06/2020,Mileage Payments,PS&S - Industry Claims,Staff Expenses Control,84033,19.88
"Department for Business, Energy and Industrial Strategy",The Coal Authority,16/06/2020,Mileage Payments,PS&S - Industry Claims,Staff Expenses Control,84033,17.52
"Department for Business, Energy and Industrial Strategy",The Coal Authority,16/06/2020,Mileage Payments,PS&S - Industry Claims,Staff Expenses Control,84033,5.45
"Department for Business, Energy and Industrial Strategy",The Coal Authority,16/06/2020,Mileage Payments,PS&S - Industry Claims,Staff Expenses Control,84033,5.42
"Department for Business, Energy and Industrial Strategy",The Coal Authority,17/06/2020,Mileage Payments,Environment - Innovation Concept & Feasibility,Staff Expenses Control,84033,47.70
"Department for Business, Energy and Industrial Strategy",The Coal Authority,17/06/2020,Mileage Payments,Environment - Innovation Programme Delivery,Staff Expenses Control,84033,5.26
"Department for Business, Energy and Industrial Strategy",The Coal Authority,17/06/2020,Mileage Payments,Environment - Innovation Programme Delivery,Staff Expenses Control,84033,79.30
"Department for Business, Energy and Industrial Strategy",The Coal Authority,17/06/2020,Mileage Payments,Environment - Innovation Programme Delivery,Staff Expenses Control,84033,79.48
"Department for Business, Energy and Industrial Strategy",The Coal Authority,17/06/2020,Mileage Payments,Environment - Innovation Programme Delivery,Staff Expenses Control,84033,5.12
"Department for Business, Energy and Industrial Strategy",The Coal Authority,17/06/2020,Mileage Payments,Environment - Technical,Staff Expenses Control,84033,19.04
"Department for Business, Energy and Industrial Strategy",The Coal Authority,17/06/2020,Mileage Payments,Environment - Technical,Staff Expenses Control,84033,19.34
"Department for Business, Energy and Industrial Strategy",The Coal Authority,17/06/2020,Mileage Payments,PS&S - Industry Claims,Staff Expenses Control,84033,19.80
"Department for Business, Energy and Industrial Strategy",The Coal Authority,17/06/2020,Mileage Payments,PS&S - Industry Claims,Staff Expenses Control,84033,5.45
"Department for Business, Energy and Industrial Strategy",The Coal Authority,17/06/2020,Mileage Payments,PS&S - Industry Claims,Staff Expenses Control,84033,5.41
"Department for Business, Energy and Industrial Strategy",The Coal Authority,17/06/2020,Mileage Payments,PS&S - Industry Claims,Staff Expenses Control,84033,1.71
"Department for Business, Energy and Industrial Strategy",The Coal Authority,17/06/2020,Mileage Payments,PS&S - Industry Claims,Staff Expenses Control,84033,1.70
"Department for Business, Energy and Industrial Strategy",The Coal Authority,18/06/2020,Mileage Payments,Environment - Innovation Programme Delivery,Staff Expenses Control,84033,180.90
"Department for Business, Energy and Industrial Strategy",The Coal Authority,18/06/2020,Mileage Payments,PS&S - Industry Claims,Staff Expenses Control,84033,5.41
"Department for Business, Energy and Industrial Strategy",The Coal Authority,18/06/2020,Mileage Payments,PS&S - Industry Claims,Staff Expenses Control,84033,5.45
"Department for Business, Energy and Industrial Strategy",The Coal Authority,19/06/2020,Mileage Payments,PS&S - Industry Claims,Staff Expenses Control,84033,5.44
"Department for Business, Energy and Industrial Strategy",The Coal Authority,19/06/2020,Mileage Payments,PS&S - Industry Claims,Staff Expenses Control,84033,5.42
"Department for Business, Energy and Industrial Strategy",The Coal Authority,19/06/2020,Mileage Payments,PS&S - Industry Claims,Staff Expenses Control,84033,1.71
"Department for Business, Energy and Industrial Strategy",The Coal Authority,19/06/2020,Mileage Payments,PS&S - Industry Claims,Staff Expenses Control,84033,1.70
"Department for Business, Energy and Industrial Strategy",The Coal Authority,22/06/2020,Mileage Payments,PS&S - Industry Claims,Staff Expenses Control,84033,27.90
"Department for Business, Energy and Industrial Strategy",The Coal Authority,23/06/2020,Mileage Payments,Safety Health & Environment,Staff Expenses Control,84033,42.30
"Department for Business, Energy and Industrial Strategy",The Coal Authority,23/06/2020,Mileage Payments,Safety Health & Environment,Staff Expenses Control,84033,42.32
"Department for Business, Energy and Industrial Strategy",The Coal Authority,24/06/2020,Mileage Payments,PS&S - Industry Claims,Staff Expenses Control,84033,54.00
"Department for Business, Energy and Industrial Strategy",The Coal Authority,24/06/2020,Mileage Payments,PS&S - Industry Claims,Staff Expenses Control,84033,27.90
"Department for Business, Energy and Industrial Strategy",The Coal Authority,25/06/2020,Mileage Payments,PS&S - Industry Claims,Staff Expenses Control,84033,63.90
"Department for Business, Energy and Industrial Strategy",The Coal Authority,25/06/2020,Mileage Payments,PS&S - Industry Claims,Staff Expenses Control,84033,27.90
"Department for Business, Energy and Industrial Strategy",The Coal Authority,26/06/2020,Mileage Payments,PS&S - Industry Claims,Staff Expenses Control,84033,27.90
"Department for Business, Energy and Industrial Strategy",The Coal Authority,29/06/2020,Mileage Payments,PS&S - Industry Claims,Staff Expenses Control,84033,19.80
"Department for Business, Energy and Industrial Strategy",The Coal Authority,08/06/2020,Postage & Couriers,Environment - Innovation Programme Delivery,Staff Expenses Control,84033,14.75
"Department for Business, Energy and Industrial Strategy",The Coal Authority,23/06/2020,Postage & Couriers,Facilities,Staff Expenses Control,84033,8.44
"Department for Business, Energy and Industrial Strategy",The Coal Authority,29/06/2020,Stationery,Finance,Staff Expenses Control,84033,10.92
"Department for Business, Energy and Industrial Strategy",The Coal Authority,29/06/2020,Subsidence - Contractor Costs,PS&S - Thoresby,Nal Plant Limited,84043,"8,522.50"
"Department for Business, Energy and Industrial Strategy",The Coal Authority,29/06/2020,Subsidence - Contractor Costs,PS&S - Thoresby,Nal Plant Limited,84044,"3,448.96"
"Department for Business, Energy and Industrial Strategy",The Coal Authority,29/06/2020,Subsidence - Contractor Costs,PS&S - Thoresby,Nal Plant Limited,84045,"7,852.28"
"Department for Business, Energy and Industrial Strategy",The Coal Authority,29/06/2020,Subsidence - Contractor Costs,PS&S - Thoresby,Nal Plant Limited,84046,"7,992.28"
"Department for Business, Energy and Industrial Strategy",The Coal Authority,01/06/2020,Office Printing Services,Mining Information,Canon (Uk) Ltd,84047,425.74
"Department for Business, Energy and Industrial Strategy",The Coal Authority,01/06/2020,eCommerce Commission Charges,Development � Permissions,Worldpay Limited,84058,1.14
"Department for Business, Energy and Industrial Strategy",The Coal Authority,29/06/2020,Surface Hazards - Contractor Costs,PS&S - General Claims,Alliance Contracting Solutions Ltd,84059,348.60
"Department for Business, Energy and Industrial Strategy",The Coal Authority,11/06/2020,Other Hosting / IaaS,Mining Reports Retail,Bytemark Limited,84060,144.00
"Department for Business, Energy and Industrial Strategy",The Coal Authority,11/06/2020,Other Hosting / IaaS,Mining Reports Retail,Bytemark Limited,84060,14.00
"Department for Business, Energy and Industrial Strategy",The Coal Authority,29/06/2020,Surface Hazards - Contractor Costs,PS&S - General Claims,Alliance Contracting Solutions Ltd,84061,8.93
"Department for Business, Energy and Industrial Strategy",The Coal Authority,29/06/2020,Surface Hazards - Contractor Costs,PS&S - General Claims,Alliance Contracting Solutions Ltd,84062,217.85
"Department for Business, Energy and Industrial Strategy",The Coal Authority,29/06/2020,Surface Hazards - Contractor Costs,PS&S - General Claims,Alliance Contracting Solutions Ltd,84063,31.92
"Department for Business, Energy and Industrial Strategy",The Coal Authority,29/06/2020,Surface Hazards - Contractor Costs,PS&S - General Claims,Alliance Contracting Solutions Ltd,84063,222.20
"Department for Business, Energy and Industrial Strategy",The Coal Authority,29/06/2020,Surface Hazards - Contractor Costs,PS&S - General Claims,Alliance Contracting Solutions Ltd,84063,475.68
"Department for Business, Energy and Industrial Strategy",The Coal Authority,29/06/2020,Surface Hazards - Contractor Costs,PS&S - General Claims,Alliance Contracting Solutions Ltd,84063,95.60
"Department for Business, Energy and Industrial Strategy",The Coal Authority,01/07/2020,Property Rents Payable,Development - Property Management,Inkersall Investments Ltd,84086,"1,058.00"
"Department for Business, Energy and Industrial Strategy",The Coal Authority,19/06/2020,Property Rents Payable,Development - Property Management,Coke Turner & Co,84090,86.66
"Department for Business, Energy and Industrial Strategy",The Coal Authority,30/06/2020,Surface Hazards - Contractor Costs,PS&S - General Claims,Cornerstone  Projects Ltd,84105,80.00
"Department for Business, Energy and Industrial Strategy",The Coal Authority,01/07/2020,Surface Hazards - Contractor Costs,PS&S - General Claims,Cornerstone  Projects Ltd,84106,98.00
"Department for Business, Energy and Industrial Strategy",The Coal Authority,01/07/2020,Surface Hazards - Contractor Costs,PS&S - General Claims,Cornerstone  Projects Ltd,84107,112.00
"Department for Business, Energy and Industrial Strategy",The Coal Authority,01/07/2020,Surface Hazards - Contractor Costs,PS&S - General Claims,Cornerstone  Projects Ltd,84108,234.70
"Department for Business, Energy and Industrial Strategy",The Coal Authority,30/06/2020,Surface Hazards - Equipment,PS&S - General Claims,W G Pollard Ltd,84112,133.75
"Department for Business, Energy and Industrial Strategy",The Coal Authority,26/06/2020,Consultancy - Commercialisation Costs,Safety Health & Environment,AECOM Ltd,84116,500.00
"Department for Business, Energy and Industrial Strategy",The Coal Authority,30/06/2020,Surface Hazards - Contractor Costs,PS&S - General Claims,Alliance Contracting Solutions Ltd,84122,217.90
"Department for Business, Energy and Industrial Strategy",The Coal Authority,30/06/2020,Surface Hazards - Contractor Costs,PS&S - General Claims,Alliance Contracting Solutions Ltd,84123,444.40
"Department for Business, Energy and Industrial Strategy",The Coal Authority,30/06/2020,Surface Hazards - Contractor Costs,PS&S - General Claims,Alliance Contracting Solutions Ltd,84123,8.55
"Department for Business, Energy and Industrial Strategy",The Coal Authority,30/06/2020,Surface Hazards - Contractor Costs,PS&S - General Claims,Alliance Contracting Solutions Ltd,84123,191.20
"Department for Business, Energy and Industrial Strategy",The Coal Authority,30/06/2020,Surface Hazards - Contractor Costs,PS&S - General Claims,Alliance Contracting Solutions Ltd,84123,31.92
"Department for Business, Energy and Industrial Strategy",The Coal Authority,30/06/2020,Surface Hazards - Equipment,PS&S - General Claims,Alliance Contracting Solutions Ltd,84124,361.48
"Department for Business, Energy and Industrial Strategy",The Coal Authority,30/06/2020,Property Site Maintenance,Development - Property Management,Alliance Contracting Solutions Ltd,84125,804.41
"Department for Business, Energy and Industrial Strategy",The Coal Authority,30/06/2020,Surface Hazards - Contractor Costs,PS&S - General Claims,Alliance Contracting Solutions Ltd,84128,55.35
"Department for Business, Energy and Industrial Strategy",The Coal Authority,30/06/2020,Subsidence - Contractor Costs,PS&S - General Claims,Alliance Contracting Solutions Ltd,84141,62.15
"Department for Business, Energy and Industrial Strategy",The Coal Authority,26/06/2020,Subsidence - Contractor Costs,PS&S - Hatfield,Compensation Payment,84142,"3,737.60"
"Department for Business, Energy and Industrial Strategy",The Coal Authority,30/06/2020,Surface Hazards - Contractor Costs,PS&S - General Claims,Alliance Contracting Solutions Ltd,84143,68.60
"Department for Business, Energy and Industrial Strategy",The Coal Authority,30/06/2020,Subsidence - Contractor Costs,PS&S - General Claims,Alliance Contracting Solutions Ltd,84144,105.33
"Department for Business, Energy and Industrial Strategy",The Coal Authority,30/06/2020,Surface Hazards - Contractor Costs,PS&S - General Claims,Alliance Contracting Solutions Ltd,84145,95.00
"Department for Business, Energy and Industrial Strategy",The Coal Authority,30/06/2020,Surface Hazards - Contractor Costs,PS&S - General Claims,Alliance Contracting Solutions Ltd,84145,82.08
"Department for Business, Energy and Industrial Strategy",The Coal Authority,30/06/2020,Surface Hazards - Contractor Costs,PS&S - General Claims,Alliance Contracting Solutions Ltd,84145,"1,178.40"
"Department for Business, Energy and Industrial Strategy",The Coal Authority,30/06/2020,Surface Hazards - Contractor Costs,PS&S - General Claims,Alliance Contracting Solutions Ltd,84145,311.76
"Department for Business, Energy and Industrial Strategy",The Coal Authority,30/06/2020,Surface Hazards - Contractor Costs,PS&S - General Claims,Alliance Contracting Solutions Ltd,84146,88.60
"Department for Business, Energy and Industrial Strategy",The Coal Authority,30/06/2020,Surface Hazards - Contractor Costs,PS&S - General Claims,Alliance Contracting Solutions Ltd,84147,166.65
"Department for Business, Energy and Industrial Strategy",The Coal Authority,30/06/2020,Surface Hazards - Contractor Costs,PS&S - General Claims,Alliance Contracting Solutions Ltd,84148,107.25
"Department for Business, Energy and Industrial Strategy",The Coal Authority,30/06/2020,Surface Hazards - Contractor Costs,PS&S - General Claims,Alliance Contracting Solutions Ltd,84148,103.50
"Department for Business, Energy and Industrial Strategy",The Coal Authority,30/06/2020,Surface Hazards - Contractor Costs,PS&S - General Claims,Alliance Contracting Solutions Ltd,84148,450.00
"Department for Business, Energy and Industrial Strategy",The Coal Authority,30/06/2020,Surface Hazards - Contractor Costs,PS&S - General Claims,Alliance Contracting Solutions Ltd,84149,166.65
"Department for Business, Energy and Industrial Strategy",The Coal Authority,16/06/2020,Innovation Costs,Environment - Innovation Concept & Feasibility,H2O WEM Ltd,84150,"2,100.00"
"Department for Business, Energy and Industrial Strategy",The Coal Authority,17/06/2020,Software Licenses - On Premise,Service Management,Mccarthy Taylor Systems Ltd,84153,750.00
"Department for Business, Energy and Industrial Strategy",The Coal Authority,30/06/2020,Bridgewater - Contractor Costs,PS&S - General Claims,The Bridgewater Canal Co Ltd,84158,"2,432.50"
"Department for Business, Energy and Industrial Strategy",The Coal Authority,30/06/2020,Bridgewater - Contractor Costs,PS&S - General Claims,The Bridgewater Canal Co Ltd,84159,"27,097.39"
"Department for Business, Energy and Industrial Strategy",The Coal Authority,26/06/2020,Legal - General,Development - Legal,Land Registry,84160,18.00
"Department for Business, Energy and Industrial Strategy",The Coal Authority,03/06/2020,Membership Subscriptions,Development - Legal,Central Law Training Ltd,84161,695.00
"Department for Business, Energy and Industrial Strategy",The Coal Authority,04/03/2020,Fuel (Vehicle),Environment - Contract Management,Government Procurement Card,84165,33.56
"Department for Business, Energy and Industrial Strategy",The Coal Authority,10/03/2020,Fuel (Vehicle),Development - Property Management,Government Procurement Card,84165,25.00
"Department for Business, Energy and Industrial Strategy",The Coal Authority,10/03/2020,Fuel (Vehicle),Development - Property Management,Government Procurement Card,84165,12.50
"Department for Business, Energy and Industrial Strategy",The Coal Authority,11/03/2020,Fuel (Vehicle),Environment - Contract Management,Government Procurement Card,84165,41.07
"Department for Business, Energy and Industrial Strategy",The Coal Authority,12/03/2020,Fuel (Vehicle),Environment - Contract Management,Government Procurement Card,84165,41.97
"Department for Business, Energy and Industrial Strategy",The Coal Authority,16/03/2020,Fuel (Vehicle),Environment - Innovation Concept & Feasibility,Government Procurement Card,84165,6.00
"Department for Business, Energy and Industrial Strategy",The Coal Authority,17/03/2020,Fuel (Vehicle),Environment - Innovation Concept & Feasibility,Government Procurement Card,84165,14.92
"Department for Business, Energy and Industrial Strategy",The Coal Authority,05/03/2020,Incidentals,Environment - Contract Management,Government Procurement Card,84165,6.67
"Department for Business, Energy and Industrial Strategy",The Coal Authority,09/03/2020,Incidentals,Safety Health & Environment,Government Procurement Card,84165,7.99
"Department for Business, Energy and Industrial Strategy",The Coal Authority,11/03/2020,Incidentals,Environment - Innovation Concept & Feasibility,Government Procurement Card,84165,20.30
"Department for Business, Energy and Industrial Strategy",The Coal Authority,13/03/2020,Incidentals,Development - Historic Property Liabilities,Government Procurement Card,84165,5.00
"Department for Business, Energy and Industrial Strategy",The Coal Authority,16/03/2020,Incidentals,Environment - Innovation Concept & Feasibility,Government Procurement Card,84165,66.91
"Department for Business, Energy and Industrial Strategy",The Coal Authority,03/03/2020,Subsistence Allowances,Environment - Contract Management,Government Procurement Card,84165,18.33
"Department for Business, Energy and Industrial Strategy",The Coal Authority,03/03/2020,Subsistence Allowances,Environment - Innovation Concept & Feasibility,Government Procurement Card,84165,2.69
"Department for Business, Energy and Industrial Strategy",The Coal Authority,04/03/2020,Subsistence Allowances,Environment - Contract Management,Government Procurement Card,84165,5.83
"Department for Business, Energy and Industrial Strategy",The Coal Authority,04/03/2020,Subsistence Allowances,Safety Health & Environment,Government Procurement Card,84165,5.18
"Department for Business, Energy and Industrial Strategy",The Coal Authority,05/03/2020,Subsistence Allowances,Safety Health & Environment,Government Procurement Card,84165,5.00
"Department for Business, Energy and Industrial Strategy",The Coal Authority,06/03/2020,Subsistence Allowances,Environment - Innovation Concept & Feasibility,Government Procurement Card,84165,2.69
"Department for Business, Energy and Industrial Strategy",The Coal Authority,06/03/2020,Subsistence Allowances,Environment - Innovation Concept & Feasibility,Government Procurement Card,84165,2.30
"Department for Business, Energy and Industrial Strategy",The Coal Authority,10/03/2020,Subsistence Allowances,Development - Property Management,Government Procurement Card,84165,3.67
"Department for Business, Energy and Industrial Strategy",The Coal Authority,10/03/2020,Subsistence Allowances,Environment - Contract Management,Government Procurement Card,84165,16.58
"Department for Business, Energy and Industrial Strategy",The Coal Authority,10/03/2020,Subsistence Allowances,Environment - Contract Management,Government Procurement Card,84165,9.10
"Department for Business, Energy and Industrial Strategy",The Coal Authority,11/03/2020,Subsistence Allowances,Environment - Contract Management,Government Procurement Card,84165,4.99
"Department for Business, Energy and Industrial Strategy",The Coal Authority,11/03/2020,Subsistence Allowances,Environment - Contract Management,Government Procurement Card,84165,2.29
"Department for Business, Energy and Industrial Strategy",The Coal Authority,11/03/2020,Subsistence Allowances,Environment - Contract Management,Government Procurement Card,84165,2.88
"Department for Business, Energy and Industrial Strategy",The Coal Authority,11/03/2020,Subsistence Allowances,Environment - Contract Management,Government Procurement Card,84165,2.75
"Department for Business, Energy and Industrial Strategy",The Coal Authority,11/03/2020,Subsistence Allowances,Environment - Contract Management,Government Procurement Card,84165,3.83
"Department for Business, Energy and Industrial Strategy",The Coal Authority,12/03/2020,Subsistence Allowances,Development - Historic Property Liabilities,Government Procurement Card,84165,19.17
"Department for Business, Energy and Industrial Strategy",The Coal Authority,13/03/2020,Subsistence Allowances,Development - Historic Property Liabilities,Government Procurement Card,84165,19.65
"Department for Business, Energy and Industrial Strategy",The Coal Authority,24/06/2020,CY - Head Office Buildings - Additions,Facilities,Wyg Engineering Ltd,84182,"5,180.00"
"Department for Business, Energy and Industrial Strategy",The Coal Authority,24/06/2020,Fuel (Vehicle),PS&S - Commercial Delivery,Allstar Business Solutions Ltd,84191,33.96
"Department for Business, Energy and Industrial Strategy",The Coal Authority,24/06/2020,Fuel (Vehicle),PS&S - Commercial Delivery,Allstar Business Solutions Ltd,84191,46.75
"Department for Business, Energy and Industrial Strategy",The Coal Authority,24/06/2020,Fuel (Vehicle),PS&S - General Claims,Allstar Business Solutions Ltd,84191,41.82
"Department for Business, Energy and Industrial Strategy",The Coal Authority,24/06/2020,Fuel (Vehicle),PS&S - General Claims,Allstar Business Solutions Ltd,84191,52.16
"Department for Business, Energy and Industrial Strategy",The Coal Authority,24/06/2020,Fuel (Vehicle),PS&S - General Claims,Allstar Business Solutions Ltd,84191,37.90
"Department for Business, Energy and Industrial Strategy",The Coal Authority,24/06/2020,Fuel (Vehicle),PS&S - General Claims,Allstar Business Solutions Ltd,84191,41.68
"Department for Business, Energy and Industrial Strategy",The Coal Authority,24/06/2020,Fuel (Vehicle),PS&S - General Claims,Allstar Business Solutions Ltd,84191,7.60
"Department for Business, Energy and Industrial Strategy",The Coal Authority,24/06/2020,Fuel (Vehicle),PS&S - General Claims,Allstar Business Solutions Ltd,84191,47.02
"Department for Business, Energy and Industrial Strategy",The Coal Authority,30/06/2020,Subsidence - Contractor Costs,PS&S - General Claims,Bell Munro Consulting,84196,850.00
"Department for Business, Energy and Industrial Strategy",The Coal Authority,02/07/2020,Surface Hazards - Contractor Costs,PS&S - General Claims,Cornerstone  Projects Ltd,84197,58.00
"Department for Business, Energy and Industrial Strategy",The Coal Authority,01/07/2020,Recruitment Advertising,HR & OD,360 Resourcing,84200,"13,900.00"
"Department for Business, Energy and Industrial Strategy",The Coal Authority,28/04/2020,Surface Hazards - Contractor Costs,PS&S - General Claims,Cornerstone  Projects Ltd,84256,242.20
"Department for Business, Energy and Industrial Strategy",The Coal Authority,02/07/2020,Surface Hazards - Contractor Costs,PS&S - General Claims,Alliance Contracting Solutions Ltd,84263,690.48
"Department for Business, Energy and Industrial Strategy",The Coal Authority,02/07/2020,Surface Hazards - Contractor Costs,PS&S - General Claims,Alliance Contracting Solutions Ltd,84263,206.10
"Department for Business, Energy and Industrial Strategy",The Coal Authority,02/07/2020,Surface Hazards - Contractor Costs,PS&S - General Claims,Alliance Contracting Solutions Ltd,84263,132.90
"Department for Business, Energy and Industrial Strategy",The Coal Authority,02/07/2020,Surface Hazards - Contractor Costs,PS&S - General Claims,Alliance Contracting Solutions Ltd,84263,255.00
"Department for Business, Energy and Industrial Strategy",The Coal Authority,02/07/2020,Surface Hazards - Contractor Costs,PS&S - General Claims,Alliance Contracting Solutions Ltd,84263,690.48
"Department for Business, Energy and Industrial Strategy",The Coal Authority,02/07/2020,Surface Hazards - Contractor Costs,PS&S - General Claims,Alliance Contracting Solutions Ltd,84263,214.50
"Department for Business, Energy and Industrial Strategy",The Coal Authority,02/07/2020,Surface Hazards - Contractor Costs,PS&S - General Claims,Alliance Contracting Solutions Ltd,84263,127.73
"Department for Business, Energy and Industrial Strategy",The Coal Authority,02/07/2020,Surface Hazards - Contractor Costs,PS&S - General Claims,Alliance Contracting Solutions Ltd,84263,121.73
"Department for Business, Energy and Industrial Strategy",The Coal Authority,02/07/2020,Surface Hazards - Contractor Costs,PS&S - General Claims,Alliance Contracting Solutions Ltd,84263,573.60
"Department for Business, Energy and Industrial Strategy",The Coal Authority,02/07/2020,Surface Hazards - Contractor Costs,PS&S - General Claims,Alliance Contracting Solutions Ltd,84263,80.00
"Department for Business, Energy and Industrial Strategy",The Coal Authority,02/07/2020,Surface Hazards - Contractor Costs,PS&S - General Claims,Alliance Contracting Solutions Ltd,84263,705.12
"Department for Business, Energy and Industrial Strategy",The Coal Authority,02/07/2020,Surface Hazards - Contractor Costs,PS&S - General Claims,Alliance Contracting Solutions Ltd,84263,370.00
"Department for Business, Energy and Industrial Strategy",The Coal Authority,02/07/2020,Surface Hazards - Contractor Costs,PS&S - General Claims,Alliance Contracting Solutions Ltd,84263,310.26
"Department for Business, Energy and Industrial Strategy",The Coal Authority,02/07/2020,Surface Hazards - Contractor Costs,PS&S - General Claims,Alliance Contracting Solutions Ltd,84263,180.00
"Department for Business, Energy and Industrial Strategy",The Coal Authority,01/07/2020,Temporary Contractors,Finance,Cherry Professional Limited,84264,"1,787.10"
"Department for Business, Energy and Industrial Strategy",The Coal Authority,30/06/2020,Plant Maintenance,Facilities,Briggs & Forrester Building Services Maintenance L,84265,"1,106.57"
"Department for Business, Energy and Industrial Strategy",The Coal Authority,30/06/2020,Plant Maintenance,Facilities,Briggs & Forrester Building Services Maintenance L,84265,116.90
"Department for Business, Energy and Industrial Strategy",The Coal Authority,26/06/2020,Site Services,Facilities,Biffa Waste Services Ltd,84266,130.00
"Department for Business, Energy and Industrial Strategy",The Coal Authority,26/06/2020,Site Services,Facilities,Biffa Waste Services Ltd,84266,120.00
"Department for Business, Energy and Industrial Strategy",The Coal Authority,30/06/2020,Site Services,Facilities,Garry Dalton Window Cleaning Service Ltd,84267,660.00
"Department for Business, Energy and Industrial Strategy",The Coal Authority,07/04/2020,Research & Development (BEIS Funded),Environment - Innovation Programme Delivery,Socotec,84273,308.00
"Department for Business, Energy and Industrial Strategy",The Coal Authority,07/04/2020,Research & Development (BEIS Funded),Environment - Innovation Programme Delivery,Socotec,84274,366.50
"Department for Business, Energy and Industrial Strategy",The Coal Authority,28/05/2020,CY - Non-coal Minewater - Additions,Environment - DEFRA - EA Programme,Veolia ES UK Ltd,84275,794.64
"Department for Business, Energy and Industrial Strategy",The Coal Authority,28/05/2020,Minewater Chemicals - Operational Sites,Environment - DEFRA - EA Programme,Veolia ES UK Ltd,84275,"15,000.58"
"Department for Business, Energy and Industrial Strategy",The Coal Authority,28/05/2020,Minewater Contractor Maint. Visits - Ops Site,Environment - DEFRA - EA Programme,Veolia ES UK Ltd,84275,"37,137.21"
"Department for Business, Energy and Industrial Strategy",The Coal Authority,28/05/2020,Minewater Sludge Disposal,Environment - DEFRA - EA Programme,Veolia ES UK Ltd,84275,"29,022.50"
"Department for Business, Energy and Industrial Strategy",The Coal Authority,03/07/2020,Minewater Power Costs,Environment - DEFRA - EA Programme,Veolia ES UK Ltd,84276,"-4,562.55"
"Department for Business, Energy and Industrial Strategy",The Coal Authority,03/07/2020,Minewater Power Costs,Environment - DEFRA - EA Programme,Veolia ES UK Ltd,84276,-0.03
"Department for Business, Energy and Industrial Strategy",The Coal Authority,03/07/2020,Minewater Sludge Disposal,Environment - DEFRA - EA Programme,Veolia ES UK Ltd,84276,-399.99
"Department for Business, Energy and Industrial Strategy",The Coal Authority,10/06/2020,Plant Maintenance,Facilities,Briggs & Forrester Building Services Maintenance L,84283,896.49
"Department for Business, Energy and Industrial Strategy",The Coal Authority,07/05/2020,Minewater Telecoms & Telemetry,Environment - Contract Management,KORE Wireless UK PLC,84289,15.00
"Department for Business, Energy and Industrial Strategy",The Coal Authority,26/06/2020,Payroll Processing Fees,Finance,Cgi It Uk Ltd,84290,834.92
"Department for Business, Energy and Industrial Strategy",The Coal Authority,30/06/2020,Mine Entry Inspection - Outsourced Management,PS&S - Commercial Delivery,Interlocks Surveys,84317,"8,200.50"
"Department for Business, Energy and Industrial Strategy",The Coal Authority,05/05/2020,CY - Minewater Scheme - Additions,Environment-Mine Prog Build Team (Coal&Metal),Cornerstone  Projects Ltd,84318,518.99
"Department for Business, Energy and Industrial Strategy",The Coal Authority,01/03/2020,Contract Hire Vehicles,Facilities,Elmtronics Ltd,84335,"1,857.25"
"Department for Business, Energy and Industrial Strategy",The Coal Authority,26/06/2020,Surface Hazards - Contractor Costs,PS&S - General Claims,Whitehouse Construction,84345,50.00
"Department for Business, Energy and Industrial Strategy",The Coal Authority,26/06/2020,Surface Hazards - Contractor Costs,PS&S - General Claims,Whitehouse Construction,84345,10.28
"Department for Business, Energy and Industrial Strategy",The Coal Authority,26/06/2020,Surface Hazards - Contractor Costs,PS&S - General Claims,Whitehouse Construction,84345,247.40
"Department for Business, Energy and Industrial Strategy",The Coal Authority,26/06/2020,Surface Hazards - Contractor Costs,PS&S - General Claims,Whitehouse Construction,84345,70.44
"Department for Business, Energy and Industrial Strategy",The Coal Authority,26/06/2020,Surface Hazards - Contractor Costs,PS&S - General Claims,Whitehouse Construction,84345,35.70
"Department for Business, Energy and Industrial Strategy",The Coal Authority,03/07/2020,Surface Hazards - Contractor Costs,PS&S - General Claims,Cornerstone  Projects Ltd,84348,132.13
"Department for Business, Energy and Industrial Strategy",The Coal Authority,06/07/2020,Surface Hazards - Contractor Costs,PS&S - General Claims,Cornerstone  Projects Ltd,84349,234.70
"Department for Business, Energy and Industrial Strategy",The Coal Authority,03/07/2020,Stationery,Customer Strategy,Imprint,84353,38.00
"Department for Business, Energy and Industrial Strategy",The Coal Authority,30/06/2020,Property Site Maintenance,Development - Historic Property Liabilities,Ovenden Plant Hire Limited,84354,32.61
"Department for Business, Energy and Industrial Strategy",The Coal Authority,01/07/2020,Surface Hazards - Contractor Costs,PS&S - General Claims,Jim Davies Civil Engineering,84355,150.88
"Department for Business, Energy and Industrial Strategy",The Coal Authority,01/07/2020,Surface Hazards - Contractor Costs,PS&S - General Claims,Jim Davies Civil Engineering,84355,302.40
"Department for Business, Energy and Industrial Strategy",The Coal Authority,01/07/2020,Surface Hazards - Contractor Costs,PS&S - General Claims,Jim Davies Civil Engineering,84355,6.81
"Department for Business, Energy and Industrial Strategy",The Coal Authority,01/07/2020,Surface Hazards - Contractor Costs,PS&S - General Claims,Jim Davies Civil Engineering,84355,158.40
"Department for Business, Energy and Industrial Strategy",The Coal Authority,01/07/2020,Surface Hazards - Contractor Costs,PS&S - General Claims,Jim Davies Civil Engineering,84355,54.48
"Department for Business, Energy and Industrial Strategy",The Coal Authority,30/06/2020,Surface Hazards - Contractor Costs,PS&S - General Claims,Western Power Distribution,84358,692.53
"Department for Business, Energy and Industrial Strategy",The Coal Authority,01/07/2020,Tips - Maintenance,PS&S - Commercial Delivery,Jim Davies Civil Engineering,84359,100.80
"Department for Business, Energy and Industrial Strategy",The Coal Authority,01/07/2020,Tips - Maintenance,PS&S - Commercial Delivery,Jim Davies Civil Engineering,84359,75.44
"Department for Business, Energy and Industrial Strategy",The Coal Authority,01/07/2020,Tips - Maintenance,PS&S - Commercial Delivery,Jim Davies Civil Engineering,84359,6.41
"Department for Business, Energy and Industrial Strategy",The Coal Authority,01/07/2020,Tips - Maintenance,PS&S - Commercial Delivery,Jim Davies Civil Engineering,84359,18.92
"Department for Business, Energy and Industrial Strategy",The Coal Authority,01/07/2020,Tips - Maintenance,PS&S - Commercial Delivery,Jim Davies Civil Engineering,84359,1.88
"Department for Business, Energy and Industrial Strategy",The Coal Authority,01/07/2020,Tips - Maintenance,PS&S - Commercial Delivery,Jim Davies Civil Engineering,84359,3.20
"Department for Business, Energy and Industrial Strategy",The Coal Authority,20/05/2020,Works Projects,Facilities,Office Essentials Limited,84362,440.00
"Department for Business, Energy and Industrial Strategy",The Coal Authority,20/05/2020,Works Projects,Facilities,Office Essentials Limited,84362,"1,063.00"
"Department for Business, Energy and Industrial Strategy",The Coal Authority,01/07/2020,Subsidence - Contractor Costs,PS&S - General Claims,Compensation Payment,84367,41.99
"Department for Business, Energy and Industrial Strategy",The Coal Authority,03/07/2020,Property Rents Payable,Development - Property Management,Rental Payment,84368,"3,728.26"
"Department for Business, Energy and Industrial Strategy",The Coal Authority,01/07/2020,Surface Hazards - Contractor Costs,PS&S - General Claims,W Carpenter & Sons,84377,"2,200.00"
"Department for Business, Energy and Industrial Strategy",The Coal Authority,01/07/2020,Surface Hazards - Contractor Costs,PS&S - General Claims,W Carpenter & Sons,84378,800.00
"Department for Business, Energy and Industrial Strategy",The Coal Authority,03/07/2020,Minewater Rent,Environment - Contract Management,Rental Payment,84379,600.00
"Department for Business, Energy and Industrial Strategy",The Coal Authority,02/04/2020,Minewater Rent,Environment - Contract Management,Rental Payment,84380,"4,239.46"
"Department for Business, Energy and Industrial Strategy",The Coal Authority,03/07/2020,Minewater Rent,Environment - Contract Management,Rental Payment,84381,"1,000.00"
"Department for Business, Energy and Industrial Strategy",The Coal Authority,03/07/2020,Minewater Rent,Environment - Contract Management,Rental Payment,84382,400.00
"Department for Business, Energy and Industrial Strategy",The Coal Authority,03/07/2020,Minewater Rent,Environment - Contract Management,Rental Payment,84383,50.00
"Department for Business, Energy and Industrial Strategy",The Coal Authority,03/07/2020,Minewater Rent,Environment - Contract Management,Rental Payment,84384,400.00
"Department for Business, Energy and Industrial Strategy",The Coal Authority,30/06/2020,Property Site Maintenance,Development - Historic Property Liabilities,JMC Engineering Uk Ltd,84387,"1,127.00"
"Department for Business, Energy and Industrial Strategy",The Coal Authority,30/06/2020,Property Site Maintenance,Development - Property Management,JMC Engineering Uk Ltd,84388,477.70
"Department for Business, Energy and Industrial Strategy",The Coal Authority,01/07/2020,Mileage Payments,PS&S - General Claims,Staff Expenses Control,84389,21.73
"Department for Business, Energy and Industrial Strategy",The Coal Authority,01/07/2020,Mileage Payments,PS&S - General Claims,Staff Expenses Control,84389,21.54
"Department for Business, Energy and Industrial Strategy",The Coal Authority,12/06/2020,Postage & Couriers,Finance,Staff Expenses Control,84389,11.40
"Department for Business, Energy and Industrial Strategy",The Coal Authority,01/07/2020,Postage & Couriers,Finance,Staff Expenses Control,84389,2.94
"Department for Business, Energy and Industrial Strategy",The Coal Authority,03/07/2020,Postage & Couriers,Finance,Staff Expenses Control,84389,9.12
"Department for Business, Energy and Industrial Strategy",The Coal Authority,26/06/2020,Stationery,PS&S - Industry Claims,Staff Expenses Control,84389,27.30
"Department for Business, Energy and Industrial Strategy",The Coal Authority,06/07/2020,Office Telephony - Line Rent,Service Management,Daisy Corporate Services Trading Services Ltd,84395,-28.90
"Department for Business, Energy and Industrial Strategy",The Coal Authority,06/07/2020,Legal - General,Environment-Mine Prog Build Team (Coal&Metal),Anderson Strathern,84396,-60.00
"Department for Business, Energy and Industrial Strategy",The Coal Authority,03/07/2020,Surface Hazards - Contractor Costs,PS&S - General Claims,Mines Rescue Service Limited,84413,"17,666.67"
"Department for Business, Energy and Industrial Strategy",The Coal Authority,25/06/2020,Surface Hazards - Contractor Costs,PS&S - General Claims,Nal Plant Limited,84414,724.52
"Department for Business, Energy and Industrial Strategy",The Coal Authority,29/06/2020,Research & Development (Non BEIS Funded),Environment - DEFRA - EA Programme,Socotec,84415,473.58
"Department for Business, Energy and Industrial Strategy",The Coal Authority,29/06/2020,Research & Development (Non BEIS Funded),Environment - DEFRA - EA Programme,Socotec,84416,493.58
"Department for Business, Energy and Industrial Strategy",The Coal Authority,17/06/2020,Minewater Telecoms & Telemetry,Environment - Contract Management,KORE Wireless UK PLC,84417,35.00
"Department for Business, Energy and Industrial Strategy",The Coal Authority,31/03/2020,Subsidence Pumping Maintenance - Ad Hoc,Environment - Contract Management,Ouse&Derwnt Intern Drainge Brd,84432,"4,483.72"
"Department for Business, Energy and Industrial Strategy",The Coal Authority,30/06/2020,Subsidence Pumping - Management Fees,Environment - Contract Management,Ouse&Derwnt Intern Drainge Brd,84433,29.73
"Department for Business, Energy and Industrial Strategy",The Coal Authority,30/06/2020,Subsidence Pumping - Management Fees,Environment - Contract Management,Ouse&Derwnt Intern Drainge Brd,84433,29.73
"Department for Business, Energy and Industrial Strategy",The Coal Authority,30/06/2020,Subsidence Pumping - Management Fees,Environment - Contract Management,Ouse&Derwnt Intern Drainge Brd,84433,112.31
"Department for Business, Energy and Industrial Strategy",The Coal Authority,30/06/2020,Subsidence Pumping - Management Fees,Environment - Contract Management,Ouse&Derwnt Intern Drainge Brd,84433,115.61
"Department for Business, Energy and Industrial Strategy",The Coal Authority,30/06/2020,Subsidence Pumping - Management Fees,Environment - Contract Management,Ouse&Derwnt Intern Drainge Brd,84433,145.34
"Department for Business, Energy and Industrial Strategy",The Coal Authority,30/06/2020,Subsidence Pumping - Management Fees,Environment - Contract Management,Ouse&Derwnt Intern Drainge Brd,84433,29.73
"Department for Business, Energy and Industrial Strategy",The Coal Authority,30/06/2020,Subsidence Pumping - Management Fees,Environment - Contract Management,Ouse&Derwnt Intern Drainge Brd,84433,165.16
"Department for Business, Energy and Industrial Strategy",The Coal Authority,31/03/2020,Subsidence Pumping - Management Fees,Environment - Contract Management,Ouse&Derwnt Intern Drainge Brd,84437,59.88
"Department for Business, Energy and Industrial Strategy",The Coal Authority,31/03/2020,Subsidence Pumping Maintenance - Ad Hoc,Environment - Contract Management,Ouse&Derwnt Intern Drainge Brd,84437,30.06
"Department for Business, Energy and Industrial Strategy",The Coal Authority,31/03/2020,Subsidence Pumping Maintenance - Planned,Environment - Contract Management,Ouse&Derwnt Intern Drainge Brd,84437,349.01
"Department for Business, Energy and Industrial Strategy",The Coal Authority,31/03/2020,Subsidence Pumping Maintenance - Planned,Environment - Contract Management,Ouse&Derwnt Intern Drainge Brd,84437,20.16
"Department for Business, Energy and Industrial Strategy",The Coal Authority,31/03/2020,Subsidence Pumping - Management Fees,Environment - Contract Management,Ouse&Derwnt Intern Drainge Brd,84438,"1,213.30"
"Department for Business, Energy and Industrial Strategy",The Coal Authority,31/03/2020,Subsidence Pumping Maintenance - Ad Hoc,Environment - Contract Management,Ouse&Derwnt Intern Drainge Brd,84438,440.00
"Department for Business, Energy and Industrial Strategy",The Coal Authority,31/03/2020,Subsidence Pumping Maintenance - Planned,Environment - Contract Management,Ouse&Derwnt Intern Drainge Brd,84438,551.08
"Department for Business, Energy and Industrial Strategy",The Coal Authority,31/03/2020,Subsidence Pumping Maintenance - Planned,Environment - Contract Management,Ouse&Derwnt Intern Drainge Brd,84438,24.64
"Department for Business, Energy and Industrial Strategy",The Coal Authority,31/03/2020,Subsidence Pumping Maintenance - Power,Environment - Contract Management,Ouse&Derwnt Intern Drainge Brd,84438,"7,072.94"
"Department for Business, Energy and Industrial Strategy",The Coal Authority,29/06/2020,Site Services,Facilities,Green Zone Surverys UK Ltd,84446,"3,115.00"
"Department for Business, Energy and Industrial Strategy",The Coal Authority,22/05/2020,Site Repairs & Maintenance,Facilities,Biffa Waste Services Ltd,84447,420.99
"Department for Business, Energy and Industrial Strategy",The Coal Authority,29/02/2020,Site Repairs & Maintenance,Facilities,Aquaid South Yorks,84450,"1,381.80"
"Department for Business, Energy and Industrial Strategy",The Coal Authority,07/07/2020,Surface Hazards - Contractor Costs,PS&S - General Claims,Whitehouse Construction,84452,35.70
"Department for Business, Energy and Industrial Strategy",The Coal Authority,07/07/2020,Surface Hazards - Contractor Costs,PS&S - General Claims,Whitehouse Construction,84452,4.28
"Department for Business, Energy and Industrial Strategy",The Coal Authority,07/07/2020,Surface Hazards - Contractor Costs,PS&S - General Claims,Whitehouse Construction,84452,88.05
"Department for Business, Energy and Industrial Strategy",The Coal Authority,07/07/2020,Surface Hazards - Contractor Costs,PS&S - General Claims,Whitehouse Construction,84452,309.25
"Department for Business, Energy and Industrial Strategy",The Coal Authority,31/03/2020,Subsidence Pumping - Management Fees,Environment - Contract Management,Ouse&Derwnt Intern Drainge Brd,84454,706.06
"Department for Business, Energy and Industrial Strategy",The Coal Authority,31/03/2020,Subsidence Pumping Maintenance - Ad Hoc,Environment - Contract Management,Ouse&Derwnt Intern Drainge Brd,84454,8.67
"Department for Business, Energy and Industrial Strategy",The Coal Authority,31/03/2020,Subsidence Pumping Maintenance - Planned,Environment - Contract Management,Ouse&Derwnt Intern Drainge Brd,84454,"1,068.16"
"Department for Business, Energy and Industrial Strategy",The Coal Authority,31/03/2020,Subsidence Pumping Maintenance - Planned,Environment - Contract Management,Ouse&Derwnt Intern Drainge Brd,84454,23.52
"Department for Business, Energy and Industrial Strategy",The Coal Authority,31/03/2020,Subsidence Pumping Maintenance - Power,Environment - Contract Management,Ouse&Derwnt Intern Drainge Brd,84454,"3,606.70"
"Department for Business, Energy and Industrial Strategy",The Coal Authority,28/05/2020,Legal - General,Development - Legal,Browne Jacobson Llp Client Account,84458,175.00
"Department for Business, Energy and Industrial Strategy",The Coal Authority,07/07/2020,Legal - General,Development - Legal,Browne Jacobson Llp Client Account,84459,-175.00
"Department for Business, Energy and Industrial Strategy",The Coal Authority,07/07/2020,Other Hosting / IaaS,Mining Reports Retail,Bytemark Limited,84460,-0.24
"Department for Business, Energy and Industrial Strategy",The Coal Authority,07/07/2020,Other Hosting / IaaS,Mining Reports Retail,Bytemark Limited,84465,-0.29
"Department for Business, Energy and Industrial Strategy",The Coal Authority,26/06/2020,Site Repairs & Maintenance,Facilities,Biffa Waste Services Ltd,84466,655.18
"Department for Business, Energy and Industrial Strategy",The Coal Authority,26/06/2020,Site Services,Facilities,Biffa Waste Services Ltd,84466,10.00
"Department for Business, Energy and Industrial Strategy",The Coal Authority,07/07/2020,Other Hosting / IaaS,Mining Reports Retail,Bytemark Limited,84467,-0.25
"Department for Business, Energy and Industrial Strategy",The Coal Authority,30/06/2020,Subsidence - Contractor Costs,PS&S - Hatfield,Compensation Payment,84472,373.00
"Department for Business, Energy and Industrial Strategy",The Coal Authority,30/06/2020,CY - Subsidence Pumping - Additions,Environment-Mine Prog Build Team (Coal&Metal),Sweeting Bros (Land Drainage) Ltd,84473,"9,240.88"
"Department for Business, Energy and Industrial Strategy",The Coal Authority,31/03/2020,Subsidence Pumping - Management Fees,Environment - Contract Management,Ouse&Derwnt Intern Drainge Brd,84474,312.04
"Department for Business, Energy and Industrial Strategy",The Coal Authority,31/03/2020,Subsidence Pumping Maintenance - Ad Hoc,Environment - Contract Management,Ouse&Derwnt Intern Drainge Brd,84474,19.60
"Department for Business, Energy and Industrial Strategy",The Coal Authority,31/03/2020,Subsidence Pumping Maintenance - Planned,Environment - Contract Management,Ouse&Derwnt Intern Drainge Brd,84474,289.57
"Department for Business, Energy and Industrial Strategy",The Coal Authority,31/03/2020,Subsidence Pumping Maintenance - Planned,Environment - Contract Management,Ouse&Derwnt Intern Drainge Brd,84474,12.26
"Department for Business, Energy and Industrial Strategy",The Coal Authority,31/03/2020,Subsidence Pumping Maintenance - Power,Environment - Contract Management,Ouse&Derwnt Intern Drainge Brd,84474,"1,758.81"
"Department for Business, Energy and Industrial Strategy",The Coal Authority,07/07/2020,Surface Hazards - Contractor Costs,PS&S - General Claims,Cornerstone  Projects Ltd,84475,217.70
"Department for Business, Energy and Industrial Strategy",The Coal Authority,03/07/2020,Temporary Contractors,Environment - Innovation Concept & Feasibility,Key Personnel Solutions Ltd,84484,"1,649.20"
"Department for Business, Energy and Industrial Strategy",The Coal Authority,07/07/2020,Surface Hazards - Contractor Costs,PS&S - General Claims,Alliance Contracting Solutions Ltd,84485,71.70
"Department for Business, Energy and Industrial Strategy",The Coal Authority,07/07/2020,Surface Hazards - Contractor Costs,PS&S - General Claims,Alliance Contracting Solutions Ltd,84485,30.00
"Department for Business, Energy and Industrial Strategy",The Coal Authority,07/07/2020,Surface Hazards - Contractor Costs,PS&S - General Claims,Alliance Contracting Solutions Ltd,84485,166.65
"Department for Business, Energy and Industrial Strategy",The Coal Authority,07/07/2020,Surface Hazards - Contractor Costs,PS&S - General Claims,Alliance Contracting Solutions Ltd,84485,31.92
"Department for Business, Energy and Industrial Strategy",The Coal Authority,07/07/2020,Surface Hazards - Contractor Costs,PS&S - General Claims,Alliance Contracting Solutions Ltd,84486,230.16
"Department for Business, Energy and Industrial Strategy",The Coal Authority,07/07/2020,Surface Hazards - Contractor Costs,PS&S - General Claims,Alliance Contracting Solutions Ltd,84486,20.00
"Department for Business, Energy and Industrial Strategy",The Coal Authority,07/07/2020,Surface Hazards - Contractor Costs,PS&S - General Claims,Alliance Contracting Solutions Ltd,84486,100.00
"Department for Business, Energy and Industrial Strategy",The Coal Authority,07/07/2020,Surface Hazards - Contractor Costs,PS&S - General Claims,Alliance Contracting Solutions Ltd,84486,4.60
"Department for Business, Energy and Industrial Strategy",The Coal Authority,07/07/2020,Surface Hazards - Contractor Costs,PS&S - General Claims,Alliance Contracting Solutions Ltd,84486,230.16
"Department for Business, Energy and Industrial Strategy",The Coal Authority,07/07/2020,Surface Hazards - Contractor Costs,PS&S - General Claims,Alliance Contracting Solutions Ltd,84486,191.20
"Department for Business, Energy and Industrial Strategy",The Coal Authority,06/07/2020,Bridgewater - Contractor Costs,PS&S - General Claims,The Bridgewater Canal Co Ltd,84487,"16,315.94"
"Department for Business, Energy and Industrial Strategy",The Coal Authority,08/07/2020,Temporary Contractors,ICT Development,94 Group Limited,84491,"14,750.00"
"Department for Business, Energy and Industrial Strategy",The Coal Authority,23/06/2020,CY - Non-coal Minewater - Additions,Environment - DEFRA - LEP Programme,Turner and Townsend Project Management Ltd.,84496,"5,550.30"
"Department for Business, Energy and Industrial Strategy",The Coal Authority,23/06/2020,CY - Non-coal Minewater - Additions,Environment - DEFRA - LEP Programme,Turner and Townsend Project Management Ltd.,84496,0.02
"Department for Business, Energy and Industrial Strategy",The Coal Authority,06/07/2020,Electricity Usage,Facilities,Edf Energy,84500,"8,681.58"
"Department for Business, Energy and Industrial Strategy",The Coal Authority,06/07/2020,Minewater Power Costs,Environment - Contract Management,Edf Energy,84500,857.58
"Department for Business, Energy and Industrial Strategy",The Coal Authority,06/07/2020,Minewater Power Costs,Environment - Contract Management,Edf Energy,84500,635.49
"Department for Business, Energy and Industrial Strategy",The Coal Authority,06/07/2020,Minewater Power Costs,Environment - Contract Management,Edf Energy,84500,"6,135.33"
"Department for Business, Energy and Industrial Strategy",The Coal Authority,06/07/2020,Minewater Power Costs,Environment - Contract Management,Edf Energy,84500,"11,888.14"
"Department for Business, Energy and Industrial Strategy",The Coal Authority,06/07/2020,Minewater Power Costs,Environment - Contract Management,Edf Energy,84500,"3,779.09"
"Department for Business, Energy and Industrial Strategy",The Coal Authority,06/07/2020,Minewater Power Costs,Environment - Contract Management,Edf Energy,84500,"2,487.20"
"Department for Business, Energy and Industrial Strategy",The Coal Authority,06/07/2020,Minewater Power Costs,Environment - Contract Management,Edf Energy,84500,"11,023.06"
"Department for Business, Energy and Industrial Strategy",The Coal Authority,06/07/2020,Minewater Power Costs,Environment - Contract Management,Edf Energy,84500,673.44
"Department for Business, Energy and Industrial Strategy",The Coal Authority,06/07/2020,Minewater Power Costs,Environment - Contract Management,Edf Energy,84500,"2,506.82"
"Department for Business, Energy and Industrial Strategy",The Coal Authority,06/07/2020,Minewater Power Costs,Environment - Contract Management,Edf Energy,84500,"18,582.33"
"Department for Business, Energy and Industrial Strategy",The Coal Authority,06/07/2020,Minewater Power Costs,Environment - Contract Management,Edf Energy,84500,"3,294.43"
"Department for Business, Energy and Industrial Strategy",The Coal Authority,06/07/2020,Minewater Power Costs,Environment - Contract Management,Edf Energy,84500,"6,913.83"
"Department for Business, Energy and Industrial Strategy",The Coal Authority,06/07/2020,Minewater Power Costs,Environment - Contract Management,Edf Energy,84500,"7,828.87"
"Department for Business, Energy and Industrial Strategy",The Coal Authority,06/07/2020,Minewater Power Costs,Environment - Contract Management,Edf Energy,84500,"13,170.48"
"Department for Business, Energy and Industrial Strategy",The Coal Authority,06/07/2020,Minewater Power Costs,Environment - Contract Management,Edf Energy,84500,"14,664.24"
"Department for Business, Energy and Industrial Strategy",The Coal Authority,06/07/2020,Minewater Power Costs,Environment - Contract Management,Edf Energy,84500,"18,452.57"
"Department for Business, Energy and Industrial Strategy",The Coal Authority,06/07/2020,Minewater Power Costs,Environment - Contract Management,Edf Energy,84500,131.78
"Department for Business, Energy and Industrial Strategy",The Coal Authority,06/07/2020,Minewater Power Costs,Environment - Contract Management,Edf Energy,84500,"17,465.74"
"Department for Business, Energy and Industrial Strategy",The Coal Authority,06/07/2020,Minewater Power Costs,Environment - Contract Management,Edf Energy,84500,"1,491.44"
"Department for Business, Energy and Industrial Strategy",The Coal Authority,06/07/2020,Minewater Power Costs,Environment - Contract Management,Edf Energy,84500,120.28
"Department for Business, Energy and Industrial Strategy",The Coal Authority,06/07/2020,Minewater Power Costs,Environment - Contract Management,Edf Energy,84500,"1,048.35"
"Department for Business, Energy and Industrial Strategy",The Coal Authority,06/07/2020,Minewater Power Costs,Environment - Contract Management,Edf Energy,84500,526.00
"Department for Business, Energy and Industrial Strategy",The Coal Authority,06/07/2020,Minewater Power Costs,Environment - Contract Management,Edf Energy,84500,"11,929.82"
"Department for Business, Energy and Industrial Strategy",The Coal Authority,06/07/2020,Minewater Power Costs,Environment - Contract Management,Edf Energy,84500,"1,105.00"
"Department for Business, Energy and Industrial Strategy",The Coal Authority,06/07/2020,Minewater Power Costs,Environment - Contract Management,Edf Energy,84500,"5,923.98"
"Department for Business, Energy and Industrial Strategy",The Coal Authority,06/07/2020,Minewater Power Costs,Environment - Contract Management,Edf Energy,84500,77.61
"Department for Business, Energy and Industrial Strategy",The Coal Authority,06/07/2020,Minewater Power Costs,Environment - Contract Management,Edf Energy,84500,"5,249.93"
"Department for Business, Energy and Industrial Strategy",The Coal Authority,06/07/2020,Minewater Power Costs,Environment - Contract Management,Edf Energy,84500,"1,820.93"
"Department for Business, Energy and Industrial Strategy",The Coal Authority,06/07/2020,Minewater Power Costs,Environment - Contract Management,Edf Energy,84500,"1,998.02"
"Department for Business, Energy and Industrial Strategy",The Coal Authority,06/07/2020,Minewater Power Costs,Environment - Contract Management,Edf Energy,84500,"20,524.45"
"Department for Business, Energy and Industrial Strategy",The Coal Authority,06/07/2020,Minewater Power Costs,Environment - Contract Management,Edf Energy,84500,"19,655.35"
"Department for Business, Energy and Industrial Strategy",The Coal Authority,06/07/2020,Minewater Power Costs,Environment - Contract Management,Edf Energy,84500,"12,729.29"
"Department for Business, Energy and Industrial Strategy",The Coal Authority,06/07/2020,Minewater Power Costs,Environment - Contract Management,Edf Energy,84500,"10,570.05"
"Department for Business, Energy and Industrial Strategy",The Coal Authority,06/07/2020,Minewater Power Costs,Environment - Contract Management,Edf Energy,84500,643.24
"Department for Business, Energy and Industrial Strategy",The Coal Authority,06/07/2020,Minewater Power Costs,Environment - Contract Management,Edf Energy,84500,"7,645.33"
"Department for Business, Energy and Industrial Strategy",The Coal Authority,06/07/2020,Minewater Power Costs,Environment - DEFRA - EA Programme,Edf Energy,84500,"2,150.47"
"Department for Business, Energy and Industrial Strategy",The Coal Authority,06/07/2020,Minewater Power Costs,Environment - DEFRA - EA Programme,Edf Energy,84500,"31,125.81"
"Department for Business, Energy and Industrial Strategy",The Coal Authority,06/07/2020,Subsidence Pumping Maintenance - Power,Environment - Contract Management,Edf Energy,84500,309.18
"Department for Business, Energy and Industrial Strategy",The Coal Authority,06/07/2020,Subsidence Pumping Maintenance - Power,Environment - Contract Management,Edf Energy,84500,219.11
"Department for Business, Energy and Industrial Strategy",The Coal Authority,06/07/2020,Subsidence Pumping Maintenance - Power,Environment - Contract Management,Edf Energy,84500,944.41
"Department for Business, Energy and Industrial Strategy",The Coal Authority,06/07/2020,Subsidence Pumping Maintenance - Power,Environment - Contract Management,Edf Energy,84500,283.03
"Department for Business, Energy and Industrial Strategy",The Coal Authority,06/07/2020,Subsidence Pumping Maintenance - Power,Environment - Contract Management,Edf Energy,84500,447.04
"Department for Business, Energy and Industrial Strategy",The Coal Authority,06/07/2020,Subsidence Pumping Maintenance - Power,Environment - Contract Management,Edf Energy,84500,65.09
"Department for Business, Energy and Industrial Strategy",The Coal Authority,06/07/2020,Subsidence Pumping Maintenance - Power,Environment - Contract Management,Edf Energy,84500,398.63
"Department for Business, Energy and Industrial Strategy",The Coal Authority,06/07/2020,Subsidence Pumping Maintenance - Power,Environment - Contract Management,Edf Energy,84500,991.00
"Department for Business, Energy and Industrial Strategy",The Coal Authority,06/07/2020,Subsidence Pumping Maintenance - Power,Environment - Contract Management,Edf Energy,84500,426.78
"Department for Business, Energy and Industrial Strategy",The Coal Authority,06/07/2020,Subsidence Pumping Maintenance - Power,Environment - Contract Management,Edf Energy,84500,211.18
"Department for Business, Energy and Industrial Strategy",The Coal Authority,25/06/2020,Subsidence - Contractor Costs,PS&S - Thoresby,Nal Plant Limited,84502,31.32
"Department for Business, Energy and Industrial Strategy",The Coal Authority,25/06/2020,Subsidence - Contractor Costs,PS&S - Thoresby,Nal Plant Limited,84502,90.00
"Department for Business, Energy and Industrial Strategy",The Coal Authority,25/06/2020,Subsidence - Contractor Costs,PS&S - Thoresby,Nal Plant Limited,84502,371.49
"Department for Business, Energy and Industrial Strategy",The Coal Authority,25/06/2020,Subsidence - Contractor Costs,PS&S - Thoresby,Nal Plant Limited,84502,52.00
"Department for Business, Energy and Industrial Strategy",The Coal Authority,25/06/2020,Subsidence - Contractor Costs,PS&S - Thoresby,Nal Plant Limited,84502,780.00
"Department for Business, Energy and Industrial Strategy",The Coal Authority,25/06/2020,Subsidence - Contractor Costs,PS&S - Thoresby,Nal Plant Limited,84502,547.02
"Department for Business, Energy and Industrial Strategy",The Coal Authority,25/06/2020,Subsidence - Contractor Costs,PS&S - Thoresby,Nal Plant Limited,84502,77.00
"Department for Business, Energy and Industrial Strategy",The Coal Authority,25/06/2020,Subsidence - Contractor Costs,PS&S - Thoresby,Nal Plant Limited,84502,54.00
"Department for Business, Energy and Industrial Strategy",The Coal Authority,25/06/2020,Subsidence - Contractor Costs,PS&S - Thoresby,Nal Plant Limited,84502,146.16
"Department for Business, Energy and Industrial Strategy",The Coal Authority,25/06/2020,Subsidence - Contractor Costs,PS&S - Thoresby,Nal Plant Limited,84502,250.00
"Department for Business, Energy and Industrial Strategy",The Coal Authority,14/06/2020,Temporary Contractors,Procurement,Macildowie Associates,84524,"4,000.00"
"Department for Business, Energy and Industrial Strategy",The Coal Authority,26/06/2020,Software Support & Maintenance - SaaS,Procurement,Wax Digital Ltd,84525,"14,402.50"
"Department for Business, Energy and Industrial Strategy",The Coal Authority,18/06/2020,Business Meetings,Procurement,Calder Conference Ltd,84526,213.33
"Department for Business, Energy and Industrial Strategy",The Coal Authority,21/06/2020,Temporary Contractors,Procurement,Macildowie Associates,84527,"2,000.00"
"Department for Business, Energy and Industrial Strategy",The Coal Authority,30/06/2020,Temporary Contractors,Procurement,Macildowie Associates,84528,"1,600.00"
"Department for Business, Energy and Industrial Strategy",The Coal Authority,30/06/2020,Temporary Contractors,Procurement,Macildowie Associates,84528,400.00
"Department for Business, Energy and Industrial Strategy",The Coal Authority,16/06/2020,Legal - General,PS&S - General Claims,Hmrc Shipley,84544,"3,390.00"
"Department for Business, Energy and Industrial Strategy",The Coal Authority,30/03/2020,Fares - Rail,Environment - Innovation Concept & Feasibility,Sustainable Energy Limited,84550,150.00
"Department for Business, Energy and Industrial Strategy",The Coal Authority,30/03/2020,Hotel & Accommodation,Environment - Innovation Concept & Feasibility,Sustainable Energy Limited,84550,100.00
"Department for Business, Energy and Industrial Strategy",The Coal Authority,30/03/2020,Innovation Costs,Environment - Innovation Concept & Feasibility,Sustainable Energy Limited,84550,"1,240.00"
"Department for Business, Energy and Industrial Strategy",The Coal Authority,09/07/2020,Surface Hazards - Contractor Costs,PS&S - General Claims,Cornerstone  Projects Ltd,84554,115.24
"Department for Business, Energy and Industrial Strategy",The Coal Authority,30/04/2020,Central Training,Safety Health & Environment,Iam Drive & Survive Ltd,84555,30.00
"Department for Business, Energy and Industrial Strategy",The Coal Authority,30/04/2020,Central Training,Safety Health & Environment,Iam Drive & Survive Ltd,84555,30.00
"Department for Business, Energy and Industrial Strategy",The Coal Authority,30/04/2020,Central Training,Safety Health & Environment,Iam Drive & Survive Ltd,84555,30.00
"Department for Business, Energy and Industrial Strategy",The Coal Authority,30/04/2020,Central Training,Safety Health & Environment,Iam Drive & Survive Ltd,84555,30.00
"Department for Business, Energy and Industrial Strategy",The Coal Authority,30/04/2020,Central Training,Safety Health & Environment,Iam Drive & Survive Ltd,84555,30.00
"Department for Business, Energy and Industrial Strategy",The Coal Authority,30/06/2020,Central Training,Safety Health & Environment,Iam Drive & Survive Ltd,84556,30.00
"Department for Business, Energy and Industrial Strategy",The Coal Authority,30/06/2020,Central Training,Safety Health & Environment,Iam Drive & Survive Ltd,84556,30.00
"Department for Business, Energy and Industrial Strategy",The Coal Authority,30/06/2020,Central Training,Safety Health & Environment,Iam Drive & Survive Ltd,84556,30.00
"Department for Business, Energy and Industrial Strategy",The Coal Authority,30/06/2020,Central Training,Safety Health & Environment,Iam Drive & Survive Ltd,84556,30.00
"Department for Business, Energy and Industrial Strategy",The Coal Authority,02/09/2019,Minewater Telecoms & Telemetry,Environment - Contract Management,O2 (Uk) Limited,84573,12.50
"Department for Business, Energy and Industrial Strategy",The Coal Authority,02/09/2019,Minewater Telecoms & Telemetry,Environment - Contract Management,O2 (Uk) Limited,84574,12.50
"Department for Business, Energy and Industrial Strategy",The Coal Authority,06/07/2020,Minewater Rent,Environment - Contract Management,The National Trust,84639,"2,000.00"
"Department for Business, Energy and Industrial Strategy",The Coal Authority,09/07/2020,Tips - Maintenance,PS&S - Commercial Delivery,Jim Davies Civil Engineering,84640,63.75
"Department for Business, Energy and Industrial Strategy",The Coal Authority,09/07/2020,Tips - Maintenance,PS&S - Commercial Delivery,Jim Davies Civil Engineering,84640,510.00
"Department for Business, Energy and Industrial Strategy",The Coal Authority,09/07/2020,Tips - Maintenance,PS&S - Commercial Delivery,Jim Davies Civil Engineering,84640,151.20
"Department for Business, Energy and Industrial Strategy",The Coal Authority,09/07/2020,Tips - Maintenance,PS&S - Commercial Delivery,Jim Davies Civil Engineering,84640,172.56
"Department for Business, Energy and Industrial Strategy",The Coal Authority,30/06/2020,Minewater Water Charges,Environment - Contract Management,National Coal Mining Museum,84641,"6,585.72"
"Department for Business, Energy and Industrial Strategy",The Coal Authority,30/06/2020,Minewater Contractor Maint. Visits - Ops Site,Environment - Contract Management,National Coal Mining Museum,84642,"2,384.00"
"Department for Business, Energy and Industrial Strategy",The Coal Authority,02/10/2019,Minewater Telecoms & Telemetry,Environment - Contract Management,O2 (Uk) Limited,84644,12.50
"Department for Business, Energy and Industrial Strategy",The Coal Authority,02/07/2020,Legal - General,Environment - DEFRA - LEP Programme,Dentons UK and Middle East LLP,84649,715.30
"Department for Business, Energy and Industrial Strategy",The Coal Authority,05/05/2020,Subsidence - Contractor Costs,PS&S - General Claims,AECOM Ltd,84650,"6,464.00"
"Department for Business, Energy and Industrial Strategy",The Coal Authority,25/06/2020,Legal - General,Development - Legal,Anderson Strathern,84651,26.00
"Department for Business, Energy and Industrial Strategy",The Coal Authority,25/06/2020,Legal - General,Development - Legal,Anderson Strathern,84657,33.00
"Department for Business, Energy and Industrial Strategy",The Coal Authority,25/06/2020,Legal - General,Development - Legal,Anderson Strathern,84657,84.00
"Department for Business, Energy and Industrial Strategy",The Coal Authority,25/06/2020,Legal - General,Development - Legal,Anderson Strathern,84658,39.00
"Department for Business, Energy and Industrial Strategy",The Coal Authority,25/06/2020,Legal - General,Development - Legal,Anderson Strathern,84659,26.00
"Department for Business, Energy and Industrial Strategy",The Coal Authority,25/06/2020,Legal - General,Development - Legal,Anderson Strathern,84660,39.00
"Department for Business, Energy and Industrial Strategy",The Coal Authority,25/06/2020,Legal - General,Development - Legal,Anderson Strathern,84661,26.00
"Department for Business, Energy and Industrial Strategy",The Coal Authority,30/06/2020,Surface Hazards - Contractor Costs,PS&S - General Claims,Strata Geotechnics (part of Van Elle Limited),84673,"5,283.20"
"Department for Business, Energy and Industrial Strategy",The Coal Authority,30/06/2020,Surface Hazards - Contractor Costs,PS&S - General Claims,Strata Geotechnics (part of Van Elle Limited),84674,"5,883.20"
"Department for Business, Energy and Industrial Strategy",The Coal Authority,10/07/2020,Surface Hazards - Contractor Costs,PS&S - General Claims,Strata Geotechnics (part of Van Elle Limited),84675,"-5,883.20"
"Department for Business, Energy and Industrial Strategy",The Coal Authority,09/07/2020,Subsidence - Contractor Costs,PS&S - Thoresby,Pierrepont Estate Management,84676,"1,103.06"
"Department for Business, Energy and Industrial Strategy",The Coal Authority,09/07/2020,Subsidence - Contractor Costs,PS&S - Thoresby,Pierrepont Estate Management,84677,"1,520.25"
"Department for Business, Energy and Industrial Strategy",The Coal Authority,09/07/2020,Subsidence - Contractor Costs,PS&S - Thoresby,Pierrepont Estate Management,84678,"1,942.04"
"Department for Business, Energy and Industrial Strategy",The Coal Authority,09/07/2020,Subsidence - Contractor Costs,PS&S - Thoresby,Pierrepont Estate Management,84679,"1,496.75"
"Department for Business, Energy and Industrial Strategy",The Coal Authority,09/07/2020,Subsidence - Contractor Costs,PS&S - Thoresby,Pierrepont Estate Management,84680,"1,316.75"
"Department for Business, Energy and Industrial Strategy",The Coal Authority,09/07/2020,Subsidence - Contractor Costs,PS&S - Thoresby,Pierrepont Estate Management,84681,450.00
"Department for Business, Energy and Industrial Strategy",The Coal Authority,09/07/2020,Subsidence - Contractor Costs,PS&S - Thoresby,Pierrepont Estate Management,84682,"1,462.42"
"Department for Business, Energy and Industrial Strategy",The Coal Authority,09/07/2020,Subsidence - Contractor Costs,PS&S - Thoresby,Pierrepont Estate Management,84683,848.84
"Department for Business, Energy and Industrial Strategy",The Coal Authority,09/07/2020,Subsidence - Contractor Costs,PS&S - Thoresby,Pierrepont Estate Management,84685,"1,314.50"
"Department for Business, Energy and Industrial Strategy",The Coal Authority,09/07/2020,Subsidence - Contractor Costs,PS&S - Thoresby,Pierrepont Estate Management,84687,"1,650.55"
"Department for Business, Energy and Industrial Strategy",The Coal Authority,09/07/2020,Subsidence - Contractor Costs,PS&S - Thoresby,Pierrepont Estate Management,84695,"1,483.70"
"Department for Business, Energy and Industrial Strategy",The Coal Authority,09/07/2020,Subsidence - Contractor Costs,PS&S - Thoresby,Pierrepont Estate Management,84696,790.32
"Department for Business, Energy and Industrial Strategy",The Coal Authority,09/07/2020,Subsidence - Contractor Costs,PS&S - Thoresby,Pierrepont Estate Management,84697,"1,352.36"
"Department for Business, Energy and Industrial Strategy",The Coal Authority,07/07/2020,Subsidence - Contractor Costs,PS&S - Hatfield,C Goldthorpe & Sons,84698,675.60
"Department for Business, Energy and Industrial Strategy",The Coal Authority,07/07/2020,Subsidence - Contractor Costs,PS&S - Hatfield,C Goldthorpe & Sons,84698,"3,924.72"
"Department for Business, Energy and Industrial Strategy",The Coal Authority,07/07/2020,Subsidence - Contractor Costs,PS&S - General Claims,Compensation Payment,84699,432.00
"Department for Business, Energy and Industrial Strategy",The Coal Authority,30/06/2020,Surface Hazards - Contractor Costs,PS&S - General Claims,Alliance Contracting Solutions Ltd,84700,244.28
"Department for Business, Energy and Industrial Strategy",The Coal Authority,07/07/2020,Surface Hazards - Contractor Costs,PS&S - General Claims,AB & F Gold,84702,950.00
"Department for Business, Energy and Industrial Strategy",The Coal Authority,07/07/2020,Surface Hazards - Contractor Costs,PS&S - General Claims,Compensation Payment,84706,"1,500.00"
"Department for Business, Energy and Industrial Strategy",The Coal Authority,19/06/2020,Training & Education,Executive,Elder Professional,84707,800.00
"Department for Business, Energy and Industrial Strategy",The Coal Authority,09/07/2020,Subsidence - Contractor Costs,PS&S - Thoresby,Pierrepont Estate Management,84708,"1,547.75"
"Department for Business, Energy and Industrial Strategy",The Coal Authority,08/07/2020,CY - Non-coal Minewater - Additions,Environment - DEFRA - LEP Programme,I & H Brown Limited,84711,"9,977.89"
"Department for Business, Energy and Industrial Strategy",The Coal Authority,08/07/2020,CY - Non-coal Minewater - Additions,Environment - DEFRA - LEP Programme,I & H Brown Limited,84711,"8,647.89"
"Department for Business, Energy and Industrial Strategy",The Coal Authority,02/07/2020,CY - Head Office Buildings - Additions,Facilities,Lindum Group Ltd,84713,"23,078.79"
"Department for Business, Energy and Industrial Strategy",The Coal Authority,02/07/2020,CY - Head Office Buildings - Additions,Facilities,Lindum Group Ltd,84713,"9,670.81"
"Department for Business, Energy and Industrial Strategy",The Coal Authority,02/07/2020,CY - Plant & Machinery - Additions,Facilities,Lindum Group Ltd,84713,"42,910.40"
"Department for Business, Energy and Industrial Strategy",The Coal Authority,08/07/2020,Disaster Recovery & BCP,Infrastructure Management,Nerc,84718,"3,900.00"
"Department for Business, Energy and Industrial Strategy",The Coal Authority,07/03/2020,Training & Education,Infrastructure Management,"Linux Academy, Inc",84719,"4,456.00"
"Department for Business, Energy and Industrial Strategy",The Coal Authority,01/07/2020,CY - Minewater Scheme - Additions,Environment-Mine Prog Build Team (Coal&Metal),J N Bentley Limited,84723,"16,456.45"
"Department for Business, Energy and Industrial Strategy",The Coal Authority,17/04/2020,Plant Maintenance,Facilities,MCL Energy Ltd,84724,"1,384.65"
"Department for Business, Energy and Industrial Strategy",The Coal Authority,02/07/2020,Minewater Telecoms & Telemetry,Environment - Contract Management,O2 (Uk) Limited,84735,12.50
"Department for Business, Energy and Industrial Strategy",The Coal Authority,02/07/2020,Minewater Telecoms & Telemetry,Environment - Contract Management,O2 (Uk) Limited,84736,12.50
"Department for Business, Energy and Industrial Strategy",The Coal Authority,02/07/2020,Minewater Telecoms & Telemetry,Environment - Contract Management,O2 (Uk) Limited,84737,12.50
"Department for Business, Energy and Industrial Strategy",The Coal Authority,07/07/2020,Minewater Telecoms & Telemetry,Environment - Contract Management,KORE Wireless UK PLC,84738,15.00
"Department for Business, Energy and Industrial Strategy",The Coal Authority,02/07/2020,Minewater Power Costs,Environment - Contract Management,British Gas Business,84739,"1,473.44"
"Department for Business, Energy and Industrial Strategy",The Coal Authority,31/03/2020,Subsidence Pumping - Management Fees,Environment - Contract Management,Ouse&Derwnt Intern Drainge Brd,84740,"2,578.62"
"Department for Business, Energy and Industrial Strategy",The Coal Authority,31/03/2020,Subsidence Pumping Maintenance - Ad Hoc,Environment - Contract Management,Ouse&Derwnt Intern Drainge Brd,84740,740.00
"Department for Business, Energy and Industrial Strategy",The Coal Authority,31/03/2020,Subsidence Pumping Maintenance - Planned,Environment - Contract Management,Ouse&Derwnt Intern Drainge Brd,84740,535.17
"Department for Business, Energy and Industrial Strategy",The Coal Authority,31/03/2020,Subsidence Pumping Maintenance - Planned,Environment - Contract Management,Ouse&Derwnt Intern Drainge Brd,84740,24.64
"Department for Business, Energy and Industrial Strategy",The Coal Authority,31/03/2020,Subsidence Pumping Maintenance - Power,Environment - Contract Management,Ouse&Derwnt Intern Drainge Brd,84740,"15,890.97"
"Department for Business, Energy and Industrial Strategy",The Coal Authority,02/07/2020,Minewater Power Costs,Environment - Contract Management,British Gas Business,84744,206.74
"Department for Business, Energy and Industrial Strategy",The Coal Authority,31/05/2020,Short Term Vehicle Hire,Facilities,Enterprise Rent A Car,84745,784.12
"Department for Business, Energy and Industrial Strategy",The Coal Authority,07/07/2020,Site Services,Facilities,Restore Datashred,84748,42.24
"Department for Business, Energy and Industrial Strategy",The Coal Authority,19/06/2020,CY - Tangible IT - Additions,Infrastructure Management,XMA Ltd,84753,"17,698.50"
"Department for Business, Energy and Industrial Strategy",The Coal Authority,19/06/2020,CY - Tangible IT - Additions,Infrastructure Management,XMA Ltd,84753,"17,698.50"
"Department for Business, Energy and Industrial Strategy",The Coal Authority,17/02/2020,Hardware Support,Infrastructure Management,Evoko Unlimited AB,84754,584.43
"Department for Business, Energy and Industrial Strategy",The Coal Authority,30/06/2020,Legal - General,Development - Legal,Browne Jacobson Llp Client Account,84763,"3,425.00"
"Department for Business, Energy and Industrial Strategy",The Coal Authority,29/06/2020,Legal - General,Development - Legal,Browne Jacobson Llp Client Account,84764,"5,000.00"
"Department for Business, Energy and Industrial Strategy",The Coal Authority,29/06/2020,Legal - General,Development - Legal,Browne Jacobson Llp Client Account,84764,67.50
"Department for Business, Energy and Industrial Strategy",The Coal Authority,30/06/2020,Legal - General,Development - Legal,Browne Jacobson Llp Client Account,84765,"3,938.50"
"Department for Business, Energy and Industrial Strategy",The Coal Authority,30/06/2020,Legal - General,Development - Legal,Browne Jacobson Llp Client Account,84766,183.50
"Department for Business, Energy and Industrial Strategy",The Coal Authority,30/06/2020,Legal - General,Development - Legal,Browne Jacobson Llp Client Account,84766,277.00
"Department for Business, Energy and Industrial Strategy",The Coal Authority,30/06/2020,Legal - General,Development - Legal,Browne Jacobson Llp Client Account,84767,"1,622.50"
"Department for Business, Energy and Industrial Strategy",The Coal Authority,30/06/2020,Legal - General,Development - Legal,Browne Jacobson Llp Client Account,84767,"1,117.50"
"Department for Business, Energy and Industrial Strategy",The Coal Authority,30/06/2020,Central Training,Safety Health & Environment,Mines Rescue Service Limited,84775,153.00
"Department for Business, Energy and Industrial Strategy",The Coal Authority,30/06/2020,Central Training,Safety Health & Environment,Mines Rescue Service Limited,84776,153.00
"Department for Business, Energy and Industrial Strategy",The Coal Authority,29/05/2020,Plant Maintenance,Facilities,Firm Power Electrical Contractors Limited,84787,"2,688.00"
"Department for Business, Energy and Industrial Strategy",The Coal Authority,29/05/2020,Plant Maintenance,Facilities,Firm Power Electrical Contractors Limited,84787,663.00
"Department for Business, Energy and Industrial Strategy",The Coal Authority,20/01/2020,Site Repairs & Maintenance,Facilities,Turner Engine Powered Services,84788,34.50
"Department for Business, Energy and Industrial Strategy",The Coal Authority,20/01/2020,Site Repairs & Maintenance,Facilities,Turner Engine Powered Services,84788,860.00
"Department for Business, Energy and Industrial Strategy",The Coal Authority,20/01/2020,Site Repairs & Maintenance,Facilities,Turner Engine Powered Services,84788,90.00
"Department for Business, Energy and Industrial Strategy",The Coal Authority,20/01/2020,Site Repairs & Maintenance,Facilities,Turner Engine Powered Services,84788,1.00
"Department for Business, Energy and Industrial Strategy",The Coal Authority,14/05/2020,Office Telephony - Call Charges,Service Management,British Telecommunications Plc,84791,22.63
"Department for Business, Energy and Industrial Strategy",The Coal Authority,14/05/2020,Office Telephony - Line Rent,Service Management,British Telecommunications Plc,84791,804.50
"Department for Business, Energy and Industrial Strategy",The Coal Authority,14/06/2020,Office Telephony - Call Charges,Service Management,British Telecommunications Plc,84792,27.33
"Department for Business, Energy and Industrial Strategy",The Coal Authority,14/06/2020,Office Telephony - Line Rent,Service Management,British Telecommunications Plc,84792,844.50
"Department for Business, Energy and Industrial Strategy",The Coal Authority,16/01/2020,Incidentals,Mining Information,Staff Expenses Control,84794,14.50
"Department for Business, Energy and Industrial Strategy",The Coal Authority,25/06/2020,Incidentals,Environment - Innovation Programme Delivery,Staff Expenses Control,84794,3.60
"Department for Business, Energy and Industrial Strategy",The Coal Authority,30/06/2020,Incidentals,Environment - Innovation Programme Delivery,Staff Expenses Control,84794,3.60
"Department for Business, Energy and Industrial Strategy",The Coal Authority,16/01/2020,Mileage Payments,Mining Information,Staff Expenses Control,84794,9.90
"Department for Business, Energy and Industrial Strategy",The Coal Authority,04/06/2020,Mileage Payments,PS&S - Industry Claims,Staff Expenses Control,84794,27.90
"Department for Business, Energy and Industrial Strategy",The Coal Authority,04/06/2020,Mileage Payments,Safety Health & Environment,Staff Expenses Control,84794,9.05
"Department for Business, Energy and Industrial Strategy",The Coal Authority,11/06/2020,Mileage Payments,Environment - Innovation Concept & Feasibility,Staff Expenses Control,84794,50.40
"Department for Business, Energy and Industrial Strategy",The Coal Authority,12/06/2020,Mileage Payments,PS&S - Industry Claims,Staff Expenses Control,84794,27.90
"Department for Business, Energy and Industrial Strategy",The Coal Authority,23/06/2020,Mileage Payments,PS&S - Industry Claims,Staff Expenses Control,84794,96.30
"Department for Business, Energy and Industrial Strategy",The Coal Authority,23/06/2020,Mileage Payments,Safety Health & Environment,Staff Expenses Control,84794,7.20
"Department for Business, Energy and Industrial Strategy",The Coal Authority,25/06/2020,Mileage Payments,Environment - Innovation Programme Delivery,Staff Expenses Control,84794,79.32
"Department for Business, Energy and Industrial Strategy",The Coal Authority,25/06/2020,Mileage Payments,Environment - Innovation Programme Delivery,Staff Expenses Control,84794,79.48
"Department for Business, Energy and Industrial Strategy",The Coal Authority,25/06/2020,Mileage Payments,Environment - Innovation Programme Delivery,Staff Expenses Control,84794,26.28
"Department for Business, Energy and Industrial Strategy",The Coal Authority,25/06/2020,Mileage Payments,Environment - Innovation Programme Delivery,Staff Expenses Control,84794,26.42
"Department for Business, Energy and Industrial Strategy",The Coal Authority,25/06/2020,Mileage Payments,Environment-Mine Prog Build Team (Coal&Metal),Staff Expenses Control,84794,42.30
"Department for Business, Energy and Industrial Strategy",The Coal Authority,25/06/2020,Mileage Payments,PS&S - Industry Claims,Staff Expenses Control,84794,27.90
"Department for Business, Energy and Industrial Strategy",The Coal Authority,26/06/2020,Mileage Payments,Environment-Mine Prog Build Team (Coal&Metal),Staff Expenses Control,84794,9.00
"Department for Business, Energy and Industrial Strategy",The Coal Authority,26/06/2020,Mileage Payments,Environment-Mine Prog Build Team (Coal&Metal),Staff Expenses Control,84794,9.00
"Department for Business, Energy and Industrial Strategy",The Coal Authority,30/06/2020,Mileage Payments,Environment - DEFRA - EA Programme,Staff Expenses Control,84794,35.70
"Department for Business, Energy and Industrial Strategy",The Coal Authority,30/06/2020,Mileage Payments,Environment - DEFRA - LEP Programme,Staff Expenses Control,84794,117.00
"Department for Business, Energy and Industrial Strategy",The Coal Authority,30/06/2020,Mileage Payments,Environment - Innovation Programme Delivery,Staff Expenses Control,84794,64.00
"Department for Business, Energy and Industrial Strategy",The Coal Authority,30/06/2020,Mileage Payments,Environment - Innovation Programme Delivery,Staff Expenses Control,84794,19.78
"Department for Business, Energy and Industrial Strategy",The Coal Authority,30/06/2020,Mileage Payments,Environment - Innovation Programme Delivery,Staff Expenses Control,84794,59.27
"Department for Business, Energy and Industrial Strategy",The Coal Authority,30/06/2020,Mileage Payments,Environment-Mine Prog Build Team (Coal&Metal),Staff Expenses Control,84794,38.40
"Department for Business, Energy and Industrial Strategy",The Coal Authority,30/06/2020,Mileage Payments,Environment-Mine Prog Build Team (Coal&Metal),Staff Expenses Control,84794,38.36
"Department for Business, Energy and Industrial Strategy",The Coal Authority,30/06/2020,Mileage Payments,Safety Health & Environment,Staff Expenses Control,84794,9.04
"Department for Business, Energy and Industrial Strategy",The Coal Authority,01/07/2020,Mileage Payments,PS&S - Industry Claims,Staff Expenses Control,84794,42.30
"Department for Business, Energy and Industrial Strategy",The Coal Authority,02/07/2020,Mileage Payments,PS&S - Engineering,Staff Expenses Control,84794,3.15
"Department for Business, Energy and Industrial Strategy",The Coal Authority,02/07/2020,Mileage Payments,PS&S - Engineering,Staff Expenses Control,84794,3.15
"Department for Business, Energy and Industrial Strategy",The Coal Authority,03/07/2020,Mileage Payments,Environment - Innovation Programme Delivery,Staff Expenses Control,84794,24.10
"Department for Business, Energy and Industrial Strategy",The Coal Authority,03/07/2020,Mileage Payments,Environment - Innovation Programme Delivery,Staff Expenses Control,84794,24.13
"Department for Business, Energy and Industrial Strategy",The Coal Authority,03/07/2020,Mileage Payments,PS&S - Industry Claims,Staff Expenses Control,84794,27.90
"Department for Business, Energy and Industrial Strategy",The Coal Authority,06/07/2020,Mileage Payments,NRW Tips Programme,Staff Expenses Control,84794,99.50
"Department for Business, Energy and Industrial Strategy",The Coal Authority,08/07/2020,Mileage Payments,Environment - DEFRA - EA Programme,Staff Expenses Control,84794,58.50
"Department for Business, Energy and Industrial Strategy",The Coal Authority,08/07/2020,Mileage Payments,Environment - DEFRA - EA Programme,Staff Expenses Control,84794,58.50
"Department for Business, Energy and Industrial Strategy",The Coal Authority,08/07/2020,Mileage Payments,NRW Tips Programme,Staff Expenses Control,84794,10.30
"Department for Business, Energy and Industrial Strategy",The Coal Authority,08/07/2020,Mileage Payments,NRW Tips Programme,Staff Expenses Control,84794,100.33
"Department for Business, Energy and Industrial Strategy",The Coal Authority,09/07/2020,Mileage Payments,PS&S - Industry Claims,Staff Expenses Control,84794,27.90
"Department for Business, Energy and Industrial Strategy",The Coal Authority,06/07/2020,Postage & Couriers,Environment - DEFRA - LEP Programme,Staff Expenses Control,84794,5.58
"Department for Business, Energy and Industrial Strategy",The Coal Authority,02/07/2020,Stationery,Development - Legal,Staff Expenses Control,84794,38.25
"Department for Business, Energy and Industrial Strategy",The Coal Authority,25/06/2020,Subsistence Allowances,Environment - Innovation Programme Delivery,Staff Expenses Control,84794,5.24
"Department for Business, Energy and Industrial Strategy",The Coal Authority,09/07/2020,Subsidence - Contractor Costs,PS&S - Thoresby,Trustees of Thoresby Settlement,84800,"24,000.00"
"Department for Business, Energy and Industrial Strategy",The Coal Authority,10/07/2020,Subsidence - Contractor Costs,PS&S - General Claims,Compensation Payment,84801,825.00
"Department for Business, Energy and Industrial Strategy",The Coal Authority,13/07/2020,Surface Hazards - Contractor Costs,PS&S - General Claims,Compensation Payment,84802,800.00
"Department for Business, Energy and Industrial Strategy",The Coal Authority,30/06/2020,Outsourced Security Staff,Facilities,Regent Office Care Ltd T/A Regent Samsic,84811,"6,469.64"
"Department for Business, Energy and Industrial Strategy",The Coal Authority,30/06/2020,Outsourced Security Staff,Facilities,Regent Office Care Ltd T/A Regent Samsic,84811,498.11
"Department for Business, Energy and Industrial Strategy",The Coal Authority,02/07/2020,Training & Education,Executive,Life Complete Coaching,84816,550.00
"Department for Business, Energy and Industrial Strategy",The Coal Authority,11/02/2020,Site Repairs & Maintenance,Facilities,WST Limited,84827,240.00
"Department for Business, Energy and Industrial Strategy",The Coal Authority,14/07/2020,Surface Hazards - Contractor Costs,PS&S - General Claims,Thomas Menzies Builders Ltd,84839,16.42
"Department for Business, Energy and Industrial Strategy",The Coal Authority,14/07/2020,Surface Hazards - Contractor Costs,PS&S - General Claims,Thomas Menzies Builders Ltd,84839,61.48
"Department for Business, Energy and Industrial Strategy",The Coal Authority,14/07/2020,Surface Hazards - Contractor Costs,PS&S - General Claims,Thomas Menzies Builders Ltd,84839,140.23
"Department for Business, Energy and Industrial Strategy",The Coal Authority,14/07/2020,Surface Hazards - Contractor Costs,PS&S - General Claims,Thomas Menzies Builders Ltd,84839,"1,121.86"
"Department for Business, Energy and Industrial Strategy",The Coal Authority,14/07/2020,Surface Hazards - Contractor Costs,PS&S - General Claims,Thomas Menzies Builders Ltd,84839,100.00
"Department for Business, Energy and Industrial Strategy",The Coal Authority,14/07/2020,Subsidence - Contractor Costs,PS&S - General Claims,Cornerstone  Projects Ltd,84840,80.00
"Department for Business, Energy and Industrial Strategy",The Coal Authority,14/07/2020,Surface Hazards - Contractor Costs,PS&S - General Claims,Cornerstone  Projects Ltd,84841,58.00
"Department for Business, Energy and Industrial Strategy",The Coal Authority,14/07/2020,Surface Hazards - Contractor Costs,PS&S - General Claims,Cornerstone  Projects Ltd,84844,124.00
"Department for Business, Energy and Industrial Strategy",The Coal Authority,14/07/2020,Subsidence - Contractor Costs,PS&S - Thoresby,Cornerstone  Projects Ltd,84845,217.70
"Department for Business, Energy and Industrial Strategy",The Coal Authority,29/05/2020,Bank Charges,Finance,National Westminster Bank Plc,84858,65.91
"Department for Business, Energy and Industrial Strategy",The Coal Authority,10/07/2020,Temporary Contractors,Environment - Innovation Concept & Feasibility,Key Personnel Solutions Ltd,84891,"1,915.20"
"Department for Business, Energy and Industrial Strategy",The Coal Authority,08/07/2020,Temporary Contractors,Finance,Cherry Professional Limited,84894,"1,787.10"
"Department for Business, Energy and Industrial Strategy",The Coal Authority,30/06/2020,Software Support & Maintenance - On Premise,Finance,Sapphire Systems Plc,84895,"50,013.84"
"Department for Business, Energy and Industrial Strategy",The Coal Authority,30/06/2020,Outsourced Security Staff,Facilities,Regent Office Care Ltd T/A Regent Samsic,84900,"2,857.73"
"Department for Business, Energy and Industrial Strategy",The Coal Authority,31/03/2020,Outsourced Security Staff,Facilities,Regent Office Care Ltd T/A Regent Samsic,84901,843.34
"Department for Business, Energy and Industrial Strategy",The Coal Authority,31/05/2020,Outsourced Security Staff,Facilities,Regent Office Care Ltd T/A Regent Samsic,84908,"8,958.72"
"Department for Business, Energy and Industrial Strategy",The Coal Authority,01/06/2020,Outsourced Cleaning Staff,Facilities,Regent Office Care Ltd T/A Regent Samsic,84909,"5,961.60"
"Department for Business, Energy and Industrial Strategy",The Coal Authority,01/04/2020,Outsourced Cleaning Staff,Facilities,Regent Office Care Ltd T/A Regent Samsic,84910,"5,961.60"
"Department for Business, Energy and Industrial Strategy",The Coal Authority,01/05/2020,Outsourced Cleaning Staff,Facilities,Regent Office Care Ltd T/A Regent Samsic,84911,"5,961.60"
"Department for Business, Energy and Industrial Strategy",The Coal Authority,31/03/2020,Subsidence Pumping - Management Fees,Environment - Contract Management,Ouse&Derwnt Intern Drainge Brd,84912,"4,363.50"
"Department for Business, Energy and Industrial Strategy",The Coal Authority,31/03/2020,Subsidence Pumping Maintenance - Ad Hoc,Environment - Contract Management,Ouse&Derwnt Intern Drainge Brd,84912,"4,702.50"
"Department for Business, Energy and Industrial Strategy",The Coal Authority,31/03/2020,Subsidence Pumping Maintenance - Planned,Environment - Contract Management,Ouse&Derwnt Intern Drainge Brd,84912,933.72
"Department for Business, Energy and Industrial Strategy",The Coal Authority,31/03/2020,Subsidence Pumping Maintenance - Planned,Environment - Contract Management,Ouse&Derwnt Intern Drainge Brd,84912,47.04
"Department for Business, Energy and Industrial Strategy",The Coal Authority,31/03/2020,Subsidence Pumping Maintenance - Power,Environment - Contract Management,Ouse&Derwnt Intern Drainge Brd,84912,"23,406.73"
"Department for Business, Energy and Industrial Strategy",The Coal Authority,23/06/2020,CY - Minewater Scheme - Additions,Environment-Mine Prog Build Team (Coal&Metal),AECOM Ltd,84923,"3,562.50"
"Department for Business, Energy and Industrial Strategy",The Coal Authority,20/05/2020,CY - Minewater Scheme - Additions,Environment-Mine Prog Build Team (Coal&Metal),AECOM Ltd,84924,438.75
"Department for Business, Energy and Industrial Strategy",The Coal Authority,20/05/2020,CY - Minewater Scheme - Additions,Environment-Mine Prog Build Team (Coal&Metal),AECOM Ltd,84924,12.78
"Department for Business, Energy and Industrial Strategy",The Coal Authority,30/06/2020,Property Site Maintenance,Development - Property Management,Alliance Contracting Solutions Ltd,84925,837.62
"Department for Business, Energy and Industrial Strategy",The Coal Authority,03/07/2020,Property Site Maintenance,Development - Property Management,Alliance Contracting Solutions Ltd,84926,"1,043.18"
"Department for Business, Energy and Industrial Strategy",The Coal Authority,07/07/2020,Property Site Maintenance,Development - Property Management,Marshall Farming Limited,84927,"1,920.95"
"Department for Business, Energy and Industrial Strategy",The Coal Authority,09/07/2020,Consultancy - Property Management,Development - Property Management,Cooke & Arkwright,84938,526.11
"Department for Business, Energy and Industrial Strategy",The Coal Authority,30/06/2020,Minewater Feasibility / Scoping,Environment-Mine Prog Build Team (Coal&Metal),Cardiff University,84939,"7,827.50"
"Department for Business, Energy and Industrial Strategy",The Coal Authority,06/07/2020,CY - Non-coal Minewater - Additions,Environment - DEFRA - LEP Programme,H T Media Ltd,84940,712.60
"Department for Business, Energy and Industrial Strategy",The Coal Authority,25/02/2020,Subsidence Pumping Maintenance - Power,Environment - Contract Management,IMServ Europe Limited,84941,39.90
"Department for Business, Energy and Industrial Strategy",The Coal Authority,25/02/2020,Subsidence Pumping Maintenance - Power,Environment - Contract Management,IMServ Europe Limited,84941,39.90
"Department for Business, Energy and Industrial Strategy",The Coal Authority,25/06/2020,Information Security software support,Infrastructure Management,Specialist Computer Centres Pl,84942,"3,648.70"
"Department for Business, Energy and Industrial Strategy",The Coal Authority,25/06/2020,Information Security software support,Infrastructure Management,Specialist Computer Centres Pl,84942,278.00
"Department for Business, Energy and Industrial Strategy",The Coal Authority,25/06/2020,Information Security software support,Infrastructure Management,Specialist Computer Centres Pl,84942,274.20
"Department for Business, Energy and Industrial Strategy",The Coal Authority,29/06/2020,Desktop Computing,Infrastructure Management,Ergo Computing  UK Ltd,84943,"5,040.00"
"Department for Business, Energy and Industrial Strategy",The Coal Authority,29/06/2020,Desktop Computing,Infrastructure Management,Ergo Computing  UK Ltd,84943,5.95
"Department for Business, Energy and Industrial Strategy",The Coal Authority,26/06/2020,External Agency / Introduction Fees,HR & OD,Macildowie Associates,84952,"1,500.00"
"Department for Business, Energy and Industrial Strategy",The Coal Authority,09/07/2020,Surface Hazards - Contractor Costs,PS&S - General Claims,Jim Davies Civil Engineering,84953,326.14
"Department for Business, Energy and Industrial Strategy",The Coal Authority,09/07/2020,Surface Hazards - Contractor Costs,PS&S - General Claims,Jim Davies Civil Engineering,84954,332.26
"Department for Business, Energy and Industrial Strategy",The Coal Authority,09/07/2020,Surface Hazards - Contractor Costs,PS&S - General Claims,Jim Davies Civil Engineering,84955,"1,000.00"
"Department for Business, Energy and Industrial Strategy",The Coal Authority,09/07/2020,Surface Hazards - Contractor Costs,PS&S - General Claims,Jim Davies Civil Engineering,84956,"1,000.00"
"Department for Business, Energy and Industrial Strategy",The Coal Authority,30/06/2020,Surface Hazards - Contractor Costs,PS&S - General Claims,Alliance Contracting Solutions Ltd,84958,283.23
"Department for Business, Energy and Industrial Strategy",The Coal Authority,29/06/2020,Surface Hazards - Contractor Costs,Consultancy-Developers-Local Authorities,Nal Plant Limited,84963,"143,172.56"
"Department for Business, Energy and Industrial Strategy",The Coal Authority,12/06/2020,Software Support & Maintenance - SaaS,Infrastructure Management,Slack Technologies Limited,84976,"2,361.43"
"Department for Business, Energy and Industrial Strategy",The Coal Authority,06/07/2020,Subsidence - Contractor Costs,PS&S - General Claims,Thomas Menzies Builders Ltd,84986,"13,081.39"
"Department for Business, Energy and Industrial Strategy",The Coal Authority,15/07/2020,Surface Hazards - Contractor Costs,PS&S - General Claims,Thomas Menzies Builders Ltd,84987,36.00
"Department for Business, Energy and Industrial Strategy",The Coal Authority,15/07/2020,Surface Hazards - Contractor Costs,PS&S - General Claims,Thomas Menzies Builders Ltd,84987,360.00
"Department for Business, Energy and Industrial Strategy",The Coal Authority,14/07/2020,Surface Hazards - Contractor Costs,PS&S - General Claims,Dsi Drilltek Ltd,84988,"1,885.00"
"Department for Business, Energy and Industrial Strategy",The Coal Authority,02/09/2019,Business Meetings,Mining Reports Retail,ABMEC,84989,195.00
"Department for Business, Energy and Industrial Strategy",The Coal Authority,20/07/2020,Subsidence - Contractor Costs,PS&S - General Claims,Cornerstone  Projects Ltd,84990,98.00
"Department for Business, Energy and Industrial Strategy",The Coal Authority,30/06/2020,Subsidence - Contractor Costs,PS&S - Kellingley,Ray Holt Land Drainage Ltd,84991,"6,014.75"
"Department for Business, Energy and Industrial Strategy",The Coal Authority,20/07/2020,Subsidence - Contractor Costs,PS&S - General Claims,Cornerstone  Projects Ltd,84998,237.18
"Department for Business, Energy and Industrial Strategy",The Coal Authority,20/07/2020,Subsidence - Contractor Costs,PS&S - General Claims,Cornerstone  Projects Ltd,84999,199.70
"Department for Business, Energy and Industrial Strategy",The Coal Authority,12/07/2020,Temporary Contractors,Procurement,Macildowie Associates,85000,"2,000.00"
"Department for Business, Energy and Industrial Strategy",The Coal Authority,01/07/2020,Outsourced Cleaning Staff,Facilities,Regent Office Care Ltd T/A Regent Samsic,85001,"5,961.60"
"Department for Business, Energy and Industrial Strategy",The Coal Authority,05/07/2020,Temporary Contractors,Procurement,Macildowie Associates,85002,"2,000.00"
"Department for Business, Energy and Industrial Strategy",The Coal Authority,14/07/2020,Canteen Equipment,Facilities,All Shires Foods Ltd,85003,92.75
"Department for Business, Energy and Industrial Strategy",The Coal Authority,14/07/2020,Canteen Equipment,Facilities,All Shires Foods Ltd,85003,17.50
"Department for Business, Energy and Industrial Strategy",The Coal Authority,07/07/2020,Canteen Equipment,Facilities,All Shires Foods Ltd,85008,52.50
"Department for Business, Energy and Industrial Strategy",The Coal Authority,07/07/2020,Canteen Equipment,Facilities,All Shires Foods Ltd,85008,20.25
"Department for Business, Energy and Industrial Strategy",The Coal Authority,07/07/2020,Canteen Equipment,Facilities,All Shires Foods Ltd,85008,36.40
"Department for Business, Energy and Industrial Strategy",The Coal Authority,07/07/2020,Canteen Equipment,Facilities,All Shires Foods Ltd,85008,55.65
"Department for Business, Energy and Industrial Strategy",The Coal Authority,07/07/2020,Software Licenses - SaaS,Environment - Contract Management,Oracle corporation UK Limited,85009,"9,000.00"
"Department for Business, Energy and Industrial Strategy",The Coal Authority,03/07/2020,Minewater Cost Benefit Analysis,Environment - DEFRA - LEP Programme,AECOM Ltd,85010,"6,123.50"
"Department for Business, Energy and Industrial Strategy",The Coal Authority,12/06/2020,Temporary Contractors,Environment - Innovation Concept & Feasibility,Key Personnel Solutions Ltd,85015,744.83
"Department for Business, Energy and Industrial Strategy",The Coal Authority,12/06/2020,Temporary Contractors,Environment - Innovation Concept & Feasibility,Key Personnel Solutions Ltd,85015,319.17
"Department for Business, Energy and Industrial Strategy",The Coal Authority,16/07/2020,Central Training,Procurement,Staff Expenses Control,85016,100.95
"Department for Business, Energy and Industrial Strategy",The Coal Authority,06/05/2020,Mileage Payments,Facilities,Staff Expenses Control,85016,68.85
"Department for Business, Energy and Industrial Strategy",The Coal Authority,13/07/2020,Mileage Payments,NRW Tips Programme,Staff Expenses Control,85016,108.45
"Department for Business, Energy and Industrial Strategy",The Coal Authority,14/07/2020,Mileage Payments,NRW Tips Programme,Staff Expenses Control,85016,10.35
"Department for Business, Energy and Industrial Strategy",The Coal Authority,15/07/2020,Mileage Payments,NRW Tips Programme,Staff Expenses Control,85016,108.45
"Department for Business, Energy and Industrial Strategy",The Coal Authority,16/07/2020,Stationery,Finance,Staff Expenses Control,85016,39.96
"Department for Business, Energy and Industrial Strategy",The Coal Authority,30/04/2020,Innovation Costs,Environment - Innovation Programme Delivery,SDN Mineral & Recycling Services,85021,175.00
"Department for Business, Energy and Industrial Strategy",The Coal Authority,17/07/2020,Research & Development (Non BEIS Funded),Environment - DEFRA - EA Programme,Newcastle University,85022,"51,085.15"
"Department for Business, Energy and Industrial Strategy",The Coal Authority,20/07/2020,CY - Non-coal Minewater - Additions,Environment - DEFRA - EA Programme,Walker Morris,85023,"71,938.71"
"Department for Business, Energy and Industrial Strategy",The Coal Authority,24/10/2019,Business Meetings,Mining Reports Retail,ABMEC,85029,150.00
"Department for Business, Energy and Industrial Strategy",The Coal Authority,30/06/2020,Innovation Costs,Environment - Innovation Programme Delivery,SDN Mineral & Recycling Services,85030,350.00
"Department for Business, Energy and Industrial Strategy",The Coal Authority,30/05/2020,Innovation Costs,Environment - Innovation Programme Delivery,SDN Mineral & Recycling Services,85031,175.00
"Department for Business, Energy and Industrial Strategy",The Coal Authority,14/07/2020,CY - Non-coal Minewater - Additions,Environment - DEFRA - LEP Programme,Walker Morris,85032,"38,000.00"
"Department for Business, Energy and Industrial Strategy",The Coal Authority,08/07/2020,Minewater Contractor Maint. Visits - Ops Site,Environment - Contract Management,Severn Trent Serv Ops Uk Ltd,85039,"33,166.93"
"Department for Business, Energy and Industrial Strategy",The Coal Authority,08/07/2020,Minewater Contractor Maint. Visits - Ops Site,Environment - Contract Management,Severn Trent Serv Ops Uk Ltd,85039,"377,520.47"
"Department for Business, Energy and Industrial Strategy",The Coal Authority,08/07/2020,Minewater Pump Overhauls,Environment - Contract Management,Severn Trent Serv Ops Uk Ltd,85040,"4,731.25"
"Department for Business, Energy and Industrial Strategy",The Coal Authority,08/07/2020,Minewater Landscaping,Environment - Contract Management,Severn Trent Serv Ops Uk Ltd,85049,"11,691.73"
"Department for Business, Energy and Industrial Strategy",The Coal Authority,08/07/2020,CY - Minewater Scheme - Additions,Environment - Contract Management,Severn Trent Serv Ops Uk Ltd,85050,"1,030.89"
"Department for Business, Energy and Industrial Strategy",The Coal Authority,08/07/2020,Minewater Jetting & Pigging,Environment - Contract Management,Severn Trent Serv Ops Uk Ltd,85051,780.98
"Department for Business, Energy and Industrial Strategy",The Coal Authority,08/07/2020,Minewater Contractor Add. Task Order - Ops Site,Environment - Contract Management,Severn Trent Serv Ops Uk Ltd,85052,205.88
"Department for Business, Energy and Industrial Strategy",The Coal Authority,08/07/2020,Minewater Contractor Add. Task Order - Ops Site,Environment - DEFRA - EA Programme,Severn Trent Serv Ops Uk Ltd,85053,"1,223.73"
"Department for Business, Energy and Industrial Strategy",The Coal Authority,08/07/2020,Minewater Monitoring & Flow Measurement,Environment - DEFRA - EA Programme,Severn Trent Serv Ops Uk Ltd,85054,"1,622.64"
"Department for Business, Energy and Industrial Strategy",The Coal Authority,08/07/2020,Minewater Liability & Monitoring Sites - Ad-hoc,Environment - Contract Management,Severn Trent Serv Ops Uk Ltd,85055,66.22
"Department for Business, Energy and Industrial Strategy",The Coal Authority,08/07/2020,Minewater Contractor Maint. Visits - Ops Site,Environment - DEFRA - EA Programme,Severn Trent Serv Ops Uk Ltd,85056,"1,102.56"
"Department for Business, Energy and Industrial Strategy",The Coal Authority,08/07/2020,Minewater Landscaping,Environment - Contract Management,Severn Trent Serv Ops Uk Ltd,85061,"10,537.49"
"Department for Business, Energy and Industrial Strategy",The Coal Authority,08/07/2020,Minewater Monitoring & Flow Measurement,Environment - DEFRA - EA Programme,Severn Trent Serv Ops Uk Ltd,85062,62.59
"Department for Business, Energy and Industrial Strategy",The Coal Authority,08/07/2020,Minewater Monitoring & Flow Measurement,Environment-Mine Prog Build Team (Coal&Metal),Severn Trent Serv Ops Uk Ltd,85063,88.10
"Department for Business, Energy and Industrial Strategy",The Coal Authority,08/07/2020,Minewater Sampling - Operational Sites,Environment - Contract Management,Severn Trent Serv Ops Uk Ltd,85064,86.46
"Department for Business, Energy and Industrial Strategy",The Coal Authority,13/07/2020,Other Hosting / IaaS,Mining Reports Retail,Bytemark Limited,85066,144.00
"Department for Business, Energy and Industrial Strategy",The Coal Authority,13/07/2020,Other Hosting / IaaS,Mining Reports Retail,Bytemark Limited,85066,14.00
"Department for Business, Energy and Industrial Strategy",The Coal Authority,03/07/2020,Other Hosting / IaaS,Service Management,Amazon Web Services EMEA SARL,85069,325.85
"Department for Business, Energy and Industrial Strategy",The Coal Authority,08/07/2020,CY - Intangible IT - Additions,ICT Development,Scisys Uk Ltd,85070,"6,932.66"
"Department for Business, Energy and Industrial Strategy",The Coal Authority,08/07/2020,CY - Intangible IT - Additions,Infrastructure Management,Scisys Uk Ltd,85070,"8,556.33"
"Department for Business, Energy and Industrial Strategy",The Coal Authority,08/07/2020,Software Support & Maintenance - On Premise,Data Solutions,Scisys Uk Ltd,85070,"12,735.84"
"Department for Business, Energy and Industrial Strategy",The Coal Authority,08/07/2020,Software Support & Maintenance - On Premise,Development - Historic Property Liabilities,Scisys Uk Ltd,85070,606.47
"Department for Business, Energy and Industrial Strategy",The Coal Authority,08/07/2020,Software Support & Maintenance - On Premise,Development - Planning & Local Authority Liaison,Scisys Uk Ltd,85070,909.70
"Department for Business, Energy and Industrial Strategy",The Coal Authority,08/07/2020,Software Support & Maintenance - On Premise,Mining Reports Retail,Scisys Uk Ltd,85070,"7,580.86"
"Department for Business, Energy and Industrial Strategy",The Coal Authority,08/07/2020,Software Support & Maintenance - On Premise,PS&S - Commercial Delivery,Scisys Uk Ltd,85070,909.70
"Department for Business, Energy and Industrial Strategy",The Coal Authority,08/07/2020,Software Support & Maintenance - On Premise,PS&S - General Claims,Scisys Uk Ltd,85070,"7,580.86"
"Department for Business, Energy and Industrial Strategy",The Coal Authority,20/07/2020,Subsidence - Contractor Costs,PS&S - General Claims,Registers Of Scotland,85074,20.00
"Department for Business, Energy and Industrial Strategy",The Coal Authority,16/07/2020,Subsidence - Contractor Costs,PS&S - General Claims,Marsh & Riddell Ltd,85075,"1,075.00"
"Department for Business, Energy and Industrial Strategy",The Coal Authority,17/07/2020,Temporary Contractors,Environment - Innovation Concept & Feasibility,Key Personnel Solutions Ltd,85076,"1,064.00"
"Department for Business, Energy and Industrial Strategy",The Coal Authority,14/07/2020,Surface Hazards - Contractor Costs,PS&S - General Claims,Alliance Contracting Solutions Ltd,85078,216.78
"Department for Business, Energy and Industrial Strategy",The Coal Authority,31/03/2020,Public Relations,Communications & Brand,Cision Group Limited,85104,152.79
"Department for Business, Energy and Industrial Strategy",The Coal Authority,31/03/2020,Public Relations,Communications & Brand,Cision Group Limited,85105,207.93
"Department for Business, Energy and Industrial Strategy",The Coal Authority,31/05/2020,Public Relations,Communications & Brand,Cision Group Limited,85106,130.95
"Department for Business, Energy and Industrial Strategy",The Coal Authority,30/04/2020,Public Relations,Communications & Brand,Cision Group Limited,85107,196.92
"Department for Business, Energy and Industrial Strategy",The Coal Authority,30/06/2020,Public Relations,Communications & Brand,Cision Group Limited,85108,143.43
"Department for Business, Energy and Industrial Strategy",The Coal Authority,31/05/2020,Public Relations,Communications & Brand,Cision Group Limited,85109,262.98
"Department for Business, Energy and Industrial Strategy",The Coal Authority,09/07/2020,Insurance Premiums,Mining Reports Retail,LEGAL AND INSUR,85110,"18,125.05"
"Department for Business, Energy and Industrial Strategy",The Coal Authority,30/06/2020,Subsidence Pumping - Management Fees,Environment - Contract Management,Ouse&Derwnt Intern Drainge Brd,85111,222.44
"Department for Business, Energy and Industrial Strategy",The Coal Authority,30/06/2020,Subsidence Pumping Maintenance - Ad Hoc,Environment - Contract Management,Ouse&Derwnt Intern Drainge Brd,85111,315.00
"Department for Business, Energy and Industrial Strategy",The Coal Authority,30/06/2020,Subsidence Pumping Maintenance - Planned,Environment - Contract Management,Ouse&Derwnt Intern Drainge Brd,85111,167.06
"Department for Business, Energy and Industrial Strategy",The Coal Authority,30/06/2020,Subsidence Pumping Maintenance - Planned,Environment - Contract Management,Ouse&Derwnt Intern Drainge Brd,85111,20.16
"Department for Business, Energy and Industrial Strategy",The Coal Authority,30/06/2020,Subsidence Pumping Maintenance - Power,Environment - Contract Management,Ouse&Derwnt Intern Drainge Brd,85111,980.69
"Department for Business, Energy and Industrial Strategy",The Coal Authority,30/06/2020,Subsidence Pumping - Management Fees,Environment - Contract Management,Ouse&Derwnt Intern Drainge Brd,85118,"1,043.24"
"Department for Business, Energy and Industrial Strategy",The Coal Authority,30/06/2020,Subsidence Pumping Maintenance - Ad Hoc,Environment - Contract Management,Ouse&Derwnt Intern Drainge Brd,85118,"4,012.05"
"Department for Business, Energy and Industrial Strategy",The Coal Authority,30/06/2020,Subsidence Pumping Maintenance - Planned,Environment - Contract Management,Ouse&Derwnt Intern Drainge Brd,85118,278.43
"Department for Business, Energy and Industrial Strategy",The Coal Authority,30/06/2020,Subsidence Pumping Maintenance - Planned,Environment - Contract Management,Ouse&Derwnt Intern Drainge Brd,85118,36.96
"Department for Business, Energy and Industrial Strategy",The Coal Authority,30/06/2020,Subsidence Pumping Maintenance - Power,Environment - Contract Management,Ouse&Derwnt Intern Drainge Brd,85118,"2,627.49"
"Department for Business, Energy and Industrial Strategy",The Coal Authority,30/06/2020,Subsidence Pumping - Management Fees,Environment - Contract Management,Ouse&Derwnt Intern Drainge Brd,85119,134.23
"Department for Business, Energy and Industrial Strategy",The Coal Authority,30/06/2020,Subsidence Pumping Maintenance - Ad Hoc,Environment - Contract Management,Ouse&Derwnt Intern Drainge Brd,85119,24.44
"Department for Business, Energy and Industrial Strategy",The Coal Authority,30/06/2020,Subsidence Pumping Maintenance - Planned,Environment - Contract Management,Ouse&Derwnt Intern Drainge Brd,85119,111.37
"Department for Business, Energy and Industrial Strategy",The Coal Authority,30/06/2020,Subsidence Pumping Maintenance - Planned,Environment - Contract Management,Ouse&Derwnt Intern Drainge Brd,85119,23.52
"Department for Business, Energy and Industrial Strategy",The Coal Authority,30/06/2020,Subsidence Pumping Maintenance - Power,Environment - Contract Management,Ouse&Derwnt Intern Drainge Brd,85119,735.51
"Department for Business, Energy and Industrial Strategy",The Coal Authority,30/06/2020,Subsidence Pumping - Management Fees,Environment - Contract Management,Ouse&Derwnt Intern Drainge Brd,85123,219.43
"Department for Business, Energy and Industrial Strategy",The Coal Authority,30/06/2020,Subsidence Pumping Maintenance - Ad Hoc,Environment - Contract Management,Ouse&Derwnt Intern Drainge Brd,85123,325.08
"Department for Business, Energy and Industrial Strategy",The Coal Authority,30/06/2020,Subsidence Pumping Maintenance - Planned,Environment - Contract Management,Ouse&Derwnt Intern Drainge Brd,85123,167.06
"Department for Business, Energy and Industrial Strategy",The Coal Authority,30/06/2020,Subsidence Pumping Maintenance - Planned,Environment - Contract Management,Ouse&Derwnt Intern Drainge Brd,85123,13.44
"Department for Business, Energy and Industrial Strategy",The Coal Authority,30/06/2020,Subsidence Pumping Maintenance - Power,Environment - Contract Management,Ouse&Derwnt Intern Drainge Brd,85123,406.37
"Department for Business, Energy and Industrial Strategy",The Coal Authority,30/06/2020,Subsidence Pumping Maintenance - Power,Environment - Contract Management,Ouse&Derwnt Intern Drainge Brd,85123,550.94
"Department for Business, Energy and Industrial Strategy",The Coal Authority,15/07/2020,Fuel (Vehicle),PS&S - Commercial Delivery,Allstar Business Solutions Ltd,85135,24.23
"Department for Business, Energy and Industrial Strategy",The Coal Authority,15/07/2020,Fuel (Vehicle),PS&S - Commercial Delivery,Allstar Business Solutions Ltd,85135,40.66
"Department for Business, Energy and Industrial Strategy",The Coal Authority,15/07/2020,Fuel (Vehicle),PS&S - General Claims,Allstar Business Solutions Ltd,85135,43.26
"Department for Business, Energy and Industrial Strategy",The Coal Authority,15/07/2020,Fuel (Vehicle),PS&S - General Claims,Allstar Business Solutions Ltd,85135,24.03
"Department for Business, Energy and Industrial Strategy",The Coal Authority,15/07/2020,Fuel (Vehicle),PS&S - General Claims,Allstar Business Solutions Ltd,85135,39.05
"Department for Business, Energy and Industrial Strategy",The Coal Authority,15/07/2020,Fuel (Vehicle),PS&S - General Claims,Allstar Business Solutions Ltd,85135,65.53
"Department for Business, Energy and Industrial Strategy",The Coal Authority,15/07/2020,Fuel (Vehicle),PS&S - General Claims,Allstar Business Solutions Ltd,85135,45.71
"Department for Business, Energy and Industrial Strategy",The Coal Authority,15/07/2020,Fuel (Vehicle),PS&S - General Claims,Allstar Business Solutions Ltd,85135,11.40
"Department for Business, Energy and Industrial Strategy",The Coal Authority,15/07/2020,Fuel (Vehicle),PS&S - General Claims,Allstar Business Solutions Ltd,85135,48.18
"Department for Business, Energy and Industrial Strategy",The Coal Authority,01/07/2020,Fuel (Vehicle),PS&S - Commercial Delivery,Allstar Business Solutions Ltd,85136,44.68
"Department for Business, Energy and Industrial Strategy",The Coal Authority,01/07/2020,Fuel (Vehicle),PS&S - Commercial Delivery,Allstar Business Solutions Ltd,85136,68.19
"Department for Business, Energy and Industrial Strategy",The Coal Authority,01/07/2020,Fuel (Vehicle),PS&S - General Claims,Allstar Business Solutions Ltd,85136,37.07
"Department for Business, Energy and Industrial Strategy",The Coal Authority,01/07/2020,Fuel (Vehicle),PS&S - General Claims,Allstar Business Solutions Ltd,85136,27.48
"Department for Business, Energy and Industrial Strategy",The Coal Authority,01/07/2020,Fuel (Vehicle),PS&S - General Claims,Allstar Business Solutions Ltd,85136,22.35
"Department for Business, Energy and Industrial Strategy",The Coal Authority,01/07/2020,Fuel (Vehicle),PS&S - General Claims,Allstar Business Solutions Ltd,85136,34.70
"Department for Business, Energy and Industrial Strategy",The Coal Authority,01/07/2020,Fuel (Vehicle),PS&S - General Claims,Allstar Business Solutions Ltd,85136,30.58
"Department for Business, Energy and Industrial Strategy",The Coal Authority,01/07/2020,Fuel (Vehicle),PS&S - General Claims,Allstar Business Solutions Ltd,85136,9.50
"Department for Business, Energy and Industrial Strategy",The Coal Authority,01/07/2020,Fuel (Vehicle),PS&S - General Claims,Allstar Business Solutions Ltd,85136,51.61
"Department for Business, Energy and Industrial Strategy",The Coal Authority,08/07/2020,Fuel (Vehicle),PS&S - Commercial Delivery,Allstar Business Solutions Ltd,85137,29.28
"Department for Business, Energy and Industrial Strategy",The Coal Authority,08/07/2020,Fuel (Vehicle),PS&S - General Claims,Allstar Business Solutions Ltd,85137,61.40
"Department for Business, Energy and Industrial Strategy",The Coal Authority,08/07/2020,Fuel (Vehicle),PS&S - General Claims,Allstar Business Solutions Ltd,85137,41.12
"Department for Business, Energy and Industrial Strategy",The Coal Authority,08/07/2020,Fuel (Vehicle),PS&S - General Claims,Allstar Business Solutions Ltd,85137,48.62
"Department for Business, Energy and Industrial Strategy",The Coal Authority,08/07/2020,Fuel (Vehicle),PS&S - General Claims,Allstar Business Solutions Ltd,85137,9.50
"Department for Business, Energy and Industrial Strategy",The Coal Authority,08/07/2020,Fuel (Vehicle),PS&S - General Claims,Allstar Business Solutions Ltd,85137,41.96
"Department for Business, Energy and Industrial Strategy",The Coal Authority,13/07/2020,Surface Hazards - Contractor Costs,PS&S - General Claims,Alliance Contracting Solutions Ltd,85145,230.16
"Department for Business, Energy and Industrial Strategy",The Coal Authority,13/07/2020,Surface Hazards - Contractor Costs,PS&S - General Claims,Alliance Contracting Solutions Ltd,85145,100.00
"Department for Business, Energy and Industrial Strategy",The Coal Authority,13/07/2020,Surface Hazards - Contractor Costs,PS&S - General Claims,Alliance Contracting Solutions Ltd,85145,230.16
"Department for Business, Energy and Industrial Strategy",The Coal Authority,13/07/2020,Surface Hazards - Contractor Costs,PS&S - General Claims,Alliance Contracting Solutions Ltd,85145,191.20
"Department for Business, Energy and Industrial Strategy",The Coal Authority,13/07/2020,Surface Hazards - Contractor Costs,PS&S - General Claims,Alliance Contracting Solutions Ltd,85146,230.16
"Department for Business, Energy and Industrial Strategy",The Coal Authority,13/07/2020,Surface Hazards - Contractor Costs,PS&S - General Claims,Alliance Contracting Solutions Ltd,85146,230.16
"Department for Business, Energy and Industrial Strategy",The Coal Authority,13/07/2020,Surface Hazards - Contractor Costs,PS&S - General Claims,Alliance Contracting Solutions Ltd,85146,191.20
"Department for Business, Energy and Industrial Strategy",The Coal Authority,13/07/2020,Surface Hazards - Contractor Costs,PS&S - General Claims,Alliance Contracting Solutions Ltd,85147,956.00
"Department for Business, Energy and Industrial Strategy",The Coal Authority,13/07/2020,Surface Hazards - Contractor Costs,PS&S - General Claims,Alliance Contracting Solutions Ltd,85147,180.00
"Department for Business, Energy and Industrial Strategy",The Coal Authority,13/07/2020,Surface Hazards - Contractor Costs,PS&S - General Claims,Alliance Contracting Solutions Ltd,85147,920.64
"Department for Business, Energy and Industrial Strategy",The Coal Authority,13/07/2020,Surface Hazards - Contractor Costs,PS&S - General Claims,Alliance Contracting Solutions Ltd,85147,182.50
"Department for Business, Energy and Industrial Strategy",The Coal Authority,13/07/2020,Surface Hazards - Contractor Costs,PS&S - General Claims,Alliance Contracting Solutions Ltd,85147,175.00
"Department for Business, Energy and Industrial Strategy",The Coal Authority,13/07/2020,Surface Hazards - Contractor Costs,PS&S - General Claims,Alliance Contracting Solutions Ltd,85147,130.00
"Department for Business, Energy and Industrial Strategy",The Coal Authority,13/07/2020,Surface Hazards - Contractor Costs,PS&S - General Claims,Alliance Contracting Solutions Ltd,85147,231.92
"Department for Business, Energy and Industrial Strategy",The Coal Authority,13/07/2020,Surface Hazards - Contractor Costs,PS&S - General Claims,Alliance Contracting Solutions Ltd,85147,28.80
"Department for Business, Energy and Industrial Strategy",The Coal Authority,13/07/2020,Surface Hazards - Contractor Costs,PS&S - General Claims,Alliance Contracting Solutions Ltd,85147,10.00
"Department for Business, Energy and Industrial Strategy",The Coal Authority,13/07/2020,Surface Hazards - Contractor Costs,PS&S - General Claims,Alliance Contracting Solutions Ltd,85147,110.75
"Department for Business, Energy and Industrial Strategy",The Coal Authority,13/07/2020,Surface Hazards - Contractor Costs,PS&S - General Claims,Alliance Contracting Solutions Ltd,85147,38.26
"Department for Business, Energy and Industrial Strategy",The Coal Authority,13/07/2020,Surface Hazards - Contractor Costs,PS&S - General Claims,Alliance Contracting Solutions Ltd,85147,138.00
"Department for Business, Energy and Industrial Strategy",The Coal Authority,13/07/2020,Surface Hazards - Contractor Costs,PS&S - General Claims,Alliance Contracting Solutions Ltd,85147,265.80
"Department for Business, Energy and Industrial Strategy",The Coal Authority,13/07/2020,Surface Hazards - Contractor Costs,PS&S - General Claims,Alliance Contracting Solutions Ltd,85147,645.96
"Department for Business, Energy and Industrial Strategy",The Coal Authority,13/07/2020,Surface Hazards - Contractor Costs,PS&S - General Claims,Alliance Contracting Solutions Ltd,85147,"1,380.96"
"Department for Business, Energy and Industrial Strategy",The Coal Authority,13/07/2020,Surface Hazards - Contractor Costs,PS&S - General Claims,Alliance Contracting Solutions Ltd,85147,320.00
"Department for Business, Energy and Industrial Strategy",The Coal Authority,02/07/2020,Legal - General,Environment - DEFRA - LEP Programme,Dentons UK and Middle East LLP,85155,80.80
"Department for Business, Energy and Industrial Strategy",The Coal Authority,02/07/2020,Legal - General,Environment - DEFRA - LEP Programme,Dentons UK and Middle East LLP,85155,115.20
"Department for Business, Energy and Industrial Strategy",The Coal Authority,08/07/2020,Fuel (Vehicle),Environment-Mine Prog Build Team (Coal&Metal),Allstar Business Solutions Ltd,85156,16.64
"Department for Business, Energy and Industrial Strategy",The Coal Authority,15/07/2020,Fuel (Vehicle),Environment-Mine Prog Build Team (Coal&Metal),Allstar Business Solutions Ltd,85157,13.39
"Department for Business, Energy and Industrial Strategy",The Coal Authority,08/07/2020,CY - Minewater Scheme - Additions,Environment-Mine Prog Build Team (Coal&Metal),Severn Trent Serv Ops Uk Ltd,85160,245.09
"Department for Business, Energy and Industrial Strategy",The Coal Authority,08/07/2020,CY - Minewater Scheme - Additions,Environment-Mine Prog Build Team (Coal&Metal),Severn Trent Serv Ops Uk Ltd,85161,"2,028.99"
"Department for Business, Energy and Industrial Strategy",The Coal Authority,19/06/2020,Legal - General,Development - Legal,Land Registry,85170,84.00
"Department for Business, Energy and Industrial Strategy",The Coal Authority,08/07/2020,CY - Subsidence Pumping - Additions,Environment-Mine Prog Build Team (Coal&Metal),Severn Trent Serv Ops Uk Ltd,85171,"1,102.56"
"Department for Business, Energy and Industrial Strategy",The Coal Authority,08/07/2020,Research & Development (BEIS Funded),Environment - Technical,Severn Trent Serv Ops Uk Ltd,85172,404.34
"Department for Business, Energy and Industrial Strategy",The Coal Authority,08/07/2020,CY - Plant & Machinery - Additions,Environment - Contract Management,Severn Trent Serv Ops Uk Ltd,85173,"1,664.92"
"Department for Business, Energy and Industrial Strategy",The Coal Authority,08/07/2020,Minewater Contractor Add. Task Order - Ops Site,Environment - Contract Management,Severn Trent Serv Ops Uk Ltd,85176,"1,063.02"
"Department for Business, Energy and Industrial Strategy",The Coal Authority,08/07/2020,Minewater Contractor Add. Task Order - Ops Site,Environment - Contract Management,Severn Trent Serv Ops Uk Ltd,85177,822.86
"Department for Business, Energy and Industrial Strategy",The Coal Authority,08/07/2020,Minewater Contractor Add. Task Order - Ops Site,Environment - Contract Management,Severn Trent Serv Ops Uk Ltd,85177,664.45
"Department for Business, Energy and Industrial Strategy",The Coal Authority,08/07/2020,CY - Minewater Scheme - Additions,Environment - Contract Management,Severn Trent Serv Ops Uk Ltd,85187,"41,711.22"
"Department for Business, Energy and Industrial Strategy",The Coal Authority,08/07/2020,Minewater Site Investigations,Environment-Mine Prog Build Team (Coal&Metal),Severn Trent Serv Ops Uk Ltd,85188,"1,409.82"
"Department for Business, Energy and Industrial Strategy",The Coal Authority,08/07/2020,Minewater Remediation,Environment - Contract Management,Severn Trent Serv Ops Uk Ltd,85189,663.67
"Department for Business, Energy and Industrial Strategy",The Coal Authority,08/07/2020,Minewater Remediation,Environment - Contract Management,Severn Trent Serv Ops Uk Ltd,85190,"2,035.49"
"Department for Business, Energy and Industrial Strategy",The Coal Authority,08/07/2020,CY - Minewater Scheme - Additions,Environment - Contract Management,Severn Trent Serv Ops Uk Ltd,85191,"2,105.54"
"Department for Business, Energy and Industrial Strategy",The Coal Authority,08/07/2020,Minewater Sludge Disposal,Environment - Contract Management,Severn Trent Serv Ops Uk Ltd,85192,"8,506.39"
"Department for Business, Energy and Industrial Strategy",The Coal Authority,08/07/2020,CY - Minewater Scheme - Additions,Environment - Contract Management,Severn Trent Serv Ops Uk Ltd,85193,"2,727.53"
"Department for Business, Energy and Industrial Strategy",The Coal Authority,08/07/2020,CY - Minewater Scheme - Additions,Environment - Contract Management,Severn Trent Serv Ops Uk Ltd,85194,244.58
"Department for Business, Energy and Industrial Strategy",The Coal Authority,08/07/2020,CY - Minewater Scheme - Additions,Environment - Contract Management,Severn Trent Serv Ops Uk Ltd,85195,201.82
"Department for Business, Energy and Industrial Strategy",The Coal Authority,30/06/2020,Subsidence Pumping - Management Fees,Environment - Contract Management,Ouse&Derwnt Intern Drainge Brd,85206,152.11
"Department for Business, Energy and Industrial Strategy",The Coal Authority,30/06/2020,Subsidence Pumping Maintenance - Ad Hoc,Environment - Contract Management,Ouse&Derwnt Intern Drainge Brd,85206,6.00
"Department for Business, Energy and Industrial Strategy",The Coal Authority,30/06/2020,Subsidence Pumping Maintenance - Planned,Environment - Contract Management,Ouse&Derwnt Intern Drainge Brd,85206,318.21
"Department for Business, Energy and Industrial Strategy",The Coal Authority,30/06/2020,Subsidence Pumping Maintenance - Planned,Environment - Contract Management,Ouse&Derwnt Intern Drainge Brd,85206,23.52
"Department for Business, Energy and Industrial Strategy",The Coal Authority,30/06/2020,Subsidence Pumping Maintenance - Power,Environment - Contract Management,Ouse&Derwnt Intern Drainge Brd,85206,666.38
"Department for Business, Energy and Industrial Strategy",The Coal Authority,08/07/2020,CY - Minewater Scheme - Additions,Environment - Contract Management,Severn Trent Serv Ops Uk Ltd,85207,"37,182.62"
"Department for Business, Energy and Industrial Strategy",The Coal Authority,08/07/2020,CY - Minewater Scheme - Additions,Environment - Contract Management,Severn Trent Serv Ops Uk Ltd,85207,"2,476.92"
"Department for Business, Energy and Industrial Strategy",The Coal Authority,30/06/2020,Subsidence Pumping - Management Fees,Environment - Contract Management,Ouse&Derwnt Intern Drainge Brd,85208,259.03
"Department for Business, Energy and Industrial Strategy",The Coal Authority,30/06/2020,Subsidence Pumping Maintenance - Ad Hoc,Environment - Contract Management,Ouse&Derwnt Intern Drainge Brd,85208,12.71
"Department for Business, Energy and Industrial Strategy",The Coal Authority,30/06/2020,Subsidence Pumping Maintenance - Planned,Environment - Contract Management,Ouse&Derwnt Intern Drainge Brd,85208,198.89
"Department for Business, Energy and Industrial Strategy",The Coal Authority,30/06/2020,Subsidence Pumping Maintenance - Planned,Environment - Contract Management,Ouse&Derwnt Intern Drainge Brd,85208,27.44
"Department for Business, Energy and Industrial Strategy",The Coal Authority,30/06/2020,Subsidence Pumping Maintenance - Power,Environment - Contract Management,Ouse&Derwnt Intern Drainge Brd,85208,"1,487.83"
"Department for Business, Energy and Industrial Strategy",The Coal Authority,08/07/2020,Minewater Contractor Add. Task Order - Ops Site,Environment - Contract Management,Severn Trent Serv Ops Uk Ltd,85209,852.85
"Department for Business, Energy and Industrial Strategy",The Coal Authority,08/07/2020,Minewater Contractor Add. Task Order - Ops Site,Environment - Contract Management,Severn Trent Serv Ops Uk Ltd,85209,"2,481.50"
"Department for Business, Energy and Industrial Strategy",The Coal Authority,08/07/2020,CY - Minewater Scheme - Additions,Environment - Contract Management,Severn Trent Serv Ops Uk Ltd,85210,"4,611.23"
"Department for Business, Energy and Industrial Strategy",The Coal Authority,08/07/2020,CY - Minewater Scheme - Additions,Environment - Contract Management,Severn Trent Serv Ops Uk Ltd,85211,242.18
"Department for Business, Energy and Industrial Strategy",The Coal Authority,08/07/2020,CY - Minewater Scheme - Additions,Environment - Contract Management,Severn Trent Serv Ops Uk Ltd,85212,"32,139.06"
"Department for Business, Energy and Industrial Strategy",The Coal Authority,30/06/2020,Subsidence Pumping - Management Fees,Environment - Contract Management,Ouse&Derwnt Intern Drainge Brd,85213,196.38
"Department for Business, Energy and Industrial Strategy",The Coal Authority,30/06/2020,Subsidence Pumping Maintenance - Ad Hoc,Environment - Contract Management,Ouse&Derwnt Intern Drainge Brd,85213,715.00
"Department for Business, Energy and Industrial Strategy",The Coal Authority,30/06/2020,Subsidence Pumping Maintenance - Planned,Environment - Contract Management,Ouse&Derwnt Intern Drainge Brd,85213,206.84
"Department for Business, Energy and Industrial Strategy",The Coal Authority,30/06/2020,Subsidence Pumping Maintenance - Planned,Environment - Contract Management,Ouse&Derwnt Intern Drainge Brd,85213,16.24
"Department for Business, Energy and Industrial Strategy",The Coal Authority,30/06/2020,Subsidence Pumping Maintenance - Power,Environment - Contract Management,Ouse&Derwnt Intern Drainge Brd,85213,371.09
"Department for Business, Energy and Industrial Strategy",The Coal Authority,08/07/2020,Minewater Remediation,Environment - Contract Management,Severn Trent Serv Ops Uk Ltd,85214,225.93
"Department for Business, Energy and Industrial Strategy",The Coal Authority,08/07/2020,Subsidence Pumping Maintenance - Power,Environment - Contract Management,Severn Trent Serv Ops Uk Ltd,85218,"38,958.10"
"Department for Business, Energy and Industrial Strategy",The Coal Authority,08/07/2020,CY - Minewater Scheme - Additions,Environment-Mine Prog Build Team (Coal&Metal),Severn Trent Serv Ops Uk Ltd,85219,201.82
"Department for Business, Energy and Industrial Strategy",The Coal Authority,08/07/2020,CY - Minewater Scheme - Additions,Environment - Contract Management,Severn Trent Serv Ops Uk Ltd,85220,336.36
"Department for Business, Energy and Industrial Strategy",The Coal Authority,08/07/2020,Subsidence Pumping Maintenance - Power,Environment - Contract Management,Severn Trent Serv Ops Uk Ltd,85227,67.27
"Department for Business, Energy and Industrial Strategy",The Coal Authority,08/07/2020,Minewater Sludge Disposal,Environment - Contract Management,Severn Trent Serv Ops Uk Ltd,85228,501.43
"Department for Business, Energy and Industrial Strategy",The Coal Authority,08/07/2020,CY - Minewater Scheme - Additions,Environment - Contract Management,Severn Trent Serv Ops Uk Ltd,85229,"47,662.75"
"Department for Business, Energy and Industrial Strategy",The Coal Authority,08/07/2020,CY - Minewater Scheme - Additions,Environment - Contract Management,Severn Trent Serv Ops Uk Ltd,85236,"1,418.93"
"Department for Business, Energy and Industrial Strategy",The Coal Authority,08/07/2020,CY - Minewater Scheme - Additions,Environment - Contract Management,Severn Trent Serv Ops Uk Ltd,85237,"14,833.80"
"Department for Business, Energy and Industrial Strategy",The Coal Authority,08/07/2020,CY - Minewater Scheme - Additions,Environment - Contract Management,Severn Trent Serv Ops Uk Ltd,85238,"5,725.56"
"Department for Business, Energy and Industrial Strategy",The Coal Authority,08/07/2020,Minewater Remediation,Environment - Contract Management,Severn Trent Serv Ops Uk Ltd,85247,62.68
"Department for Business, Energy and Industrial Strategy",The Coal Authority,08/07/2020,CY - Minewater Scheme - Additions,Environment - Contract Management,Severn Trent Serv Ops Uk Ltd,85248,67.27
"Department for Business, Energy and Industrial Strategy",The Coal Authority,08/07/2020,Subsidence Pumping Maintenance - Ad Hoc,Environment - Contract Management,Severn Trent Serv Ops Uk Ltd,85249,"1,642.53"
"Department for Business, Energy and Industrial Strategy",The Coal Authority,08/07/2020,CY - Minewater Scheme - Additions,Environment - Contract Management,Severn Trent Serv Ops Uk Ltd,85250,269.09
"Department for Business, Energy and Industrial Strategy",The Coal Authority,08/07/2020,Subsidence Pumping Maintenance - Ad Hoc,Environment - Contract Management,Severn Trent Serv Ops Uk Ltd,85251,"34,833.37"
"Department for Business, Energy and Industrial Strategy",The Coal Authority,08/07/2020,Minewater Pumping Tests,Environment - Contract Management,Severn Trent Serv Ops Uk Ltd,85252,"4,237.33"
"Department for Business, Energy and Industrial Strategy",The Coal Authority,08/07/2020,Subsidence Pumping Maintenance - Ad Hoc,Environment - Contract Management,Severn Trent Serv Ops Uk Ltd,85253,289.94
"Department for Business, Energy and Industrial Strategy",The Coal Authority,08/07/2020,Works Projects,Facilities,Severn Trent Serv Ops Uk Ltd,85254,288.62
"Department for Business, Energy and Industrial Strategy",The Coal Authority,08/07/2020,CY - Minewater Scheme - Additions,Environment - Contract Management,Severn Trent Serv Ops Uk Ltd,85260,147.35
"Department for Business, Energy and Industrial Strategy",The Coal Authority,08/07/2020,Minewater Pump Overhauls,Environment - Contract Management,Severn Trent Serv Ops Uk Ltd,85261,"4,533.70"
"Department for Business, Energy and Industrial Strategy",The Coal Authority,08/07/2020,Minewater Pump Overhauls,Environment - Contract Management,Severn Trent Serv Ops Uk Ltd,85262,"2,685.71"
"Department for Business, Energy and Industrial Strategy",The Coal Authority,08/07/2020,Minewater Jetting & Pigging,Environment - Contract Management,Severn Trent Serv Ops Uk Ltd,85263,94.02
"Department for Business, Energy and Industrial Strategy",The Coal Authority,08/07/2020,Minewater Contractor Add. Task Order - Ops Site,Environment - Contract Management,Severn Trent Serv Ops Uk Ltd,85264,73.68
"Department for Business, Energy and Industrial Strategy",The Coal Authority,08/07/2020,Minewater Contractor Add. Task Order - Ops Site,Environment - Contract Management,Severn Trent Serv Ops Uk Ltd,85267,"4,598.59"
"Department for Business, Energy and Industrial Strategy",The Coal Authority,08/07/2020,Minewater Contractor Maint. Visits - Ops Site,Environment - Contract Management,Severn Trent Serv Ops Uk Ltd,85268,"20,900.05"
"Department for Business, Energy and Industrial Strategy",The Coal Authority,10/07/2020,Legal - General,Development - Legal,Land Registry,85271,18.00
"Department for Business, Energy and Industrial Strategy",The Coal Authority,03/07/2020,Legal - General,Development - Legal,Land Registry,85272,18.00
"Department for Business, Energy and Industrial Strategy",The Coal Authority,15/07/2020,CY - Non-coal Minewater - Additions,Environment - DEFRA - EA Programme,Veolia ES UK Ltd,85279,"12,839.82"
"Department for Business, Energy and Industrial Strategy",The Coal Authority,29/06/2020,Tips - Outsourced Management,PS&S - Commercial Delivery,Hargreaves (Uk) Services Ltd,85281,573.75
"Department for Business, Energy and Industrial Strategy",The Coal Authority,29/06/2020,Tips - Outsourced Management,PS&S - Commercial Delivery,Hargreaves (Uk) Services Ltd,85281,"4,267.62"
"Department for Business, Energy and Industrial Strategy",The Coal Authority,29/06/2020,Tips - Outsourced Management,PS&S - Commercial Delivery,Hargreaves (Uk) Services Ltd,85281,"3,050.88"
"Department for Business, Energy and Industrial Strategy",The Coal Authority,29/06/2020,Tips - Outsourced Management,PS&S - Commercial Delivery,Hargreaves (Uk) Services Ltd,85281,154.80
"Department for Business, Energy and Industrial Strategy",The Coal Authority,29/06/2020,Tips - Outsourced Management,PS&S - Commercial Delivery,Hargreaves (Uk) Services Ltd,85281,57.19
"Department for Business, Energy and Industrial Strategy",The Coal Authority,29/06/2020,Tips - Outsourced Management,PS&S - Commercial Delivery,Hargreaves (Uk) Services Ltd,85281,327.00
"Department for Business, Energy and Industrial Strategy",The Coal Authority,07/07/2020,CY - Non-coal Minewater - Additions,Environment - DEFRA - LEP Programme,Aecom Infrastructure & Env,85286,"4,571.28"
"Department for Business, Energy and Industrial Strategy",The Coal Authority,07/07/2020,CY - Non-coal Minewater - Additions,Environment - DEFRA - LEP Programme,Aecom Infrastructure & Env,85286,"1,761.22"
"Department for Business, Energy and Industrial Strategy",The Coal Authority,14/07/2020,Surface Hazards - Contractor Costs,PS&S - General Claims,Cornerstone  Projects Ltd,85289,63.00
"Department for Business, Energy and Industrial Strategy",The Coal Authority,09/07/2020,Central Training,Safety Health & Environment,Mines Rescue Service Limited,85298,239.00
"Department for Business, Energy and Industrial Strategy",The Coal Authority,17/07/2020,Surface Hazards - Contractor Costs,PS&S - General Claims,Alliance Contracting Solutions Ltd,85299,573.60
"Department for Business, Energy and Industrial Strategy",The Coal Authority,17/07/2020,Surface Hazards - Contractor Costs,PS&S - General Claims,Alliance Contracting Solutions Ltd,85299,214.86
"Department for Business, Energy and Industrial Strategy",The Coal Authority,17/07/2020,Surface Hazards - Contractor Costs,PS&S - General Claims,Alliance Contracting Solutions Ltd,85299,50.00
"Department for Business, Energy and Industrial Strategy",The Coal Authority,17/07/2020,Surface Hazards - Contractor Costs,PS&S - General Claims,Alliance Contracting Solutions Ltd,85299,690.48
"Department for Business, Energy and Industrial Strategy",The Coal Authority,17/07/2020,Surface Hazards - Contractor Costs,PS&S - General Claims,Alliance Contracting Solutions Ltd,85299,690.48
"Department for Business, Energy and Industrial Strategy",The Coal Authority,17/07/2020,Surface Hazards - Contractor Costs,PS&S - General Claims,Alliance Contracting Solutions Ltd,85299,240.00
"Department for Business, Energy and Industrial Strategy",The Coal Authority,17/07/2020,Surface Hazards - Contractor Costs,PS&S - General Claims,Alliance Contracting Solutions Ltd,85299,800.00
"Department for Business, Energy and Industrial Strategy",The Coal Authority,17/07/2020,Surface Hazards - Contractor Costs,PS&S - General Claims,Alliance Contracting Solutions Ltd,85299,132.90
"Department for Business, Energy and Industrial Strategy",The Coal Authority,17/07/2020,Surface Hazards - Contractor Costs,PS&S - General Claims,Alliance Contracting Solutions Ltd,85299,318.45
"Department for Business, Energy and Industrial Strategy",The Coal Authority,17/07/2020,Surface Hazards - Contractor Costs,PS&S - General Claims,Alliance Contracting Solutions Ltd,85299,224.55
"Department for Business, Energy and Industrial Strategy",The Coal Authority,17/07/2020,Surface Hazards - Contractor Costs,PS&S - General Claims,Alliance Contracting Solutions Ltd,85299,360.00
"Department for Business, Energy and Industrial Strategy",The Coal Authority,17/07/2020,Surface Hazards - Contractor Costs,PS&S - General Claims,Alliance Contracting Solutions Ltd,85299,705.12
"Department for Business, Energy and Industrial Strategy",The Coal Authority,17/07/2020,Surface Hazards - Contractor Costs,PS&S - General Claims,Alliance Contracting Solutions Ltd,85299,553.68
"Department for Business, Energy and Industrial Strategy",The Coal Authority,17/07/2020,Surface Hazards - Contractor Costs,PS&S - General Claims,Alliance Contracting Solutions Ltd,85300,235.04
"Department for Business, Energy and Industrial Strategy",The Coal Authority,17/07/2020,Surface Hazards - Contractor Costs,PS&S - General Claims,Alliance Contracting Solutions Ltd,85300,156.00
"Department for Business, Energy and Industrial Strategy",The Coal Authority,17/07/2020,Surface Hazards - Contractor Costs,PS&S - General Claims,Alliance Contracting Solutions Ltd,85300,191.20
"Department for Business, Energy and Industrial Strategy",The Coal Authority,17/07/2020,Surface Hazards - Contractor Costs,PS&S - General Claims,Alliance Contracting Solutions Ltd,85300,230.16
"Department for Business, Energy and Industrial Strategy",The Coal Authority,17/07/2020,Surface Hazards - Contractor Costs,PS&S - General Claims,Alliance Contracting Solutions Ltd,85300,230.16
"Department for Business, Energy and Industrial Strategy",The Coal Authority,17/07/2020,Surface Hazards - Contractor Costs,PS&S - General Claims,Alliance Contracting Solutions Ltd,85300,132.90
"Department for Business, Energy and Industrial Strategy",The Coal Authority,17/07/2020,Surface Hazards - Contractor Costs,PS&S - General Claims,Alliance Contracting Solutions Ltd,85300,100.00
"Department for Business, Energy and Industrial Strategy",The Coal Authority,17/07/2020,Surface Hazards - Contractor Costs,PS&S - General Claims,Alliance Contracting Solutions Ltd,85300,140.00
"Department for Business, Energy and Industrial Strategy",The Coal Authority,17/07/2020,Surface Hazards - Contractor Costs,PS&S - General Claims,Alliance Contracting Solutions Ltd,85300,32.20
"Department for Business, Energy and Industrial Strategy",The Coal Authority,30/06/2020,Surface Hazards - Contractor Costs,PS&S - General Claims,Alliance Contracting Solutions Ltd,85301,"1,275.00"
"Department for Business, Energy and Industrial Strategy",The Coal Authority,30/06/2020,Surface Hazards - Contractor Costs,PS&S - General Claims,Alliance Contracting Solutions Ltd,85301,320.00
"Department for Business, Energy and Industrial Strategy",The Coal Authority,30/06/2020,Surface Hazards - Contractor Costs,PS&S - General Claims,Alliance Contracting Solutions Ltd,85301,366.85
"Department for Business, Energy and Industrial Strategy",The Coal Authority,22/07/2020,Subsidence - Contractor Costs,PS&S - Thoresby,Nal Plant Limited,85306,273.51
"Department for Business, Energy and Industrial Strategy",The Coal Authority,22/07/2020,Subsidence - Contractor Costs,PS&S - Thoresby,Nal Plant Limited,85306,229.97
"Department for Business, Energy and Industrial Strategy",The Coal Authority,22/07/2020,Subsidence - Contractor Costs,PS&S - Thoresby,Nal Plant Limited,85306,30.00
"Department for Business, Energy and Industrial Strategy",The Coal Authority,22/07/2020,Subsidence - Contractor Costs,PS&S - Thoresby,Nal Plant Limited,85306,72.00
"Department for Business, Energy and Industrial Strategy",The Coal Authority,22/07/2020,Subsidence - Contractor Costs,PS&S - Thoresby,Nal Plant Limited,85306,520.00
"Department for Business, Energy and Industrial Strategy",The Coal Authority,22/07/2020,Subsidence - Contractor Costs,PS&S - Thoresby,Nal Plant Limited,85306,50.00
"Department for Business, Energy and Industrial Strategy",The Coal Authority,22/07/2020,Subsidence - Contractor Costs,PS&S - Thoresby,Nal Plant Limited,85306,45.00
"Department for Business, Energy and Industrial Strategy",The Coal Authority,22/07/2020,Subsidence - Contractor Costs,PS&S - Thoresby,Nal Plant Limited,85306,119.40
"Department for Business, Energy and Industrial Strategy",The Coal Authority,22/07/2020,Subsidence - Contractor Costs,PS&S - Thoresby,Nal Plant Limited,85306,25.16
"Department for Business, Energy and Industrial Strategy",The Coal Authority,22/07/2020,Subsidence - Contractor Costs,PS&S - Thoresby,Nal Plant Limited,85306,48.72
"Department for Business, Energy and Industrial Strategy",The Coal Authority,22/07/2020,Subsidence - Contractor Costs,PS&S - Thoresby,Nal Plant Limited,85306,100.00
"Department for Business, Energy and Industrial Strategy",The Coal Authority,22/07/2020,Subsidence - Contractor Costs,PS&S - Thoresby,Nal Plant Limited,85306,16.73
"Department for Business, Energy and Industrial Strategy",The Coal Authority,22/07/2020,Subsidence - Contractor Costs,PS&S - Thoresby,Nal Plant Limited,85306,18.59
"Department for Business, Energy and Industrial Strategy",The Coal Authority,22/07/2020,Subsidence - Contractor Costs,PS&S - Thoresby,Nal Plant Limited,85307,70.76
"Department for Business, Energy and Industrial Strategy",The Coal Authority,22/07/2020,Subsidence - Contractor Costs,PS&S - Thoresby,Nal Plant Limited,85307,72.00
"Department for Business, Energy and Industrial Strategy",The Coal Authority,22/07/2020,Subsidence - Contractor Costs,PS&S - Thoresby,Nal Plant Limited,85307,80.00
"Department for Business, Energy and Industrial Strategy",The Coal Authority,22/07/2020,Subsidence - Contractor Costs,PS&S - Thoresby,Nal Plant Limited,85307,45.00
"Department for Business, Energy and Industrial Strategy",The Coal Authority,22/07/2020,Subsidence - Contractor Costs,PS&S - Thoresby,Nal Plant Limited,85307,4.36
"Department for Business, Energy and Industrial Strategy",The Coal Authority,22/07/2020,Subsidence - Contractor Costs,PS&S - Thoresby,Nal Plant Limited,85307,10.00
"Department for Business, Energy and Industrial Strategy",The Coal Authority,22/07/2020,Subsidence - Contractor Costs,PS&S - Thoresby,Nal Plant Limited,85307,1.00
"Department for Business, Energy and Industrial Strategy",The Coal Authority,21/07/2020,Training & Education,Executive,Grahame Robb Associates Ltd,85313,750.00
"Department for Business, Energy and Industrial Strategy",The Coal Authority,21/07/2020,Subsidence - Contractor Costs,PS&S - General Claims,Quicksilver,85314,540.00
"Department for Business, Energy and Industrial Strategy",The Coal Authority,22/07/2020,Training & Education,Environment-Mine Prog Build Team (Coal&Metal),The Knowledge Academy Ltd,85315,"1,495.00"
"Department for Business, Energy and Industrial Strategy",The Coal Authority,22/07/2020,Training & Education,Environment-Mine Prog Build Team (Coal&Metal),The Knowledge Academy Ltd,85315,"1,495.00"
"Department for Business, Energy and Industrial Strategy",The Coal Authority,22/07/2020,Training & Education,Environment-Mine Prog Build Team (Coal&Metal),The Knowledge Academy Ltd,85315,"1,495.00"
"Department for Business, Energy and Industrial Strategy",The Coal Authority,21/07/2020,Surface Hazards - Contractor Costs,PS&S - General Claims,Jim Davies Civil Engineering,85317,342.00
"Department for Business, Energy and Industrial Strategy",The Coal Authority,21/07/2020,Surface Hazards - Contractor Costs,PS&S - General Claims,Jim Davies Civil Engineering,85317,18.90
"Department for Business, Energy and Industrial Strategy",The Coal Authority,09/07/2020,Legal - General,Development - Legal,Dla Piper Uk Llp,85328,216.17
"Department for Business, Energy and Industrial Strategy",The Coal Authority,09/07/2020,Legal - General,Development - Legal,Dla Piper Uk Llp,85328,233.11
"Department for Business, Energy and Industrial Strategy",The Coal Authority,09/07/2020,Legal - General,Development - Legal,Dla Piper Uk Llp,85328,"5,662.60"
"Department for Business, Energy and Industrial Strategy",The Coal Authority,09/07/2020,Legal - General,PS&S - General Claims,Dla Piper Uk Llp,85328,"1,026.72"
"Department for Business, Energy and Industrial Strategy",The Coal Authority,09/07/2020,Legal - General,PS&S - General Claims,Dla Piper Uk Llp,85328,606.52
"Department for Business, Energy and Industrial Strategy",The Coal Authority,09/07/2020,Legal - General,PS&S - General Claims,Dla Piper Uk Llp,85328,"1,999.30"
"Department for Business, Energy and Industrial Strategy",The Coal Authority,17/07/2020,Legal - General,Development - Legal,Land Registry,85331,38.00
"Department for Business, Energy and Industrial Strategy",The Coal Authority,17/07/2020,Legal - General,Development - Legal,Land Registry,85331,1.00
"Department for Business, Energy and Industrial Strategy",The Coal Authority,14/07/2020,Bank Charges,Finance,National Westminster Bank Plc,85339,65.91
"Department for Business, Energy and Industrial Strategy",The Coal Authority,24/07/2020,Bank Charges,Finance,National Westminster Bank Plc,85340,-65.91
"Department for Business, Energy and Industrial Strategy",The Coal Authority,05/07/2020,Subsidence Pumping Maintenance - Power,Environment - Contract Management,Methley Estates Holdings Ltd,85341,808.61
"Department for Business, Energy and Industrial Strategy",The Coal Authority,03/07/2020,Bank Charges,Finance,National Westminster Bank Plc,85342,64.25
"Department for Business, Energy and Industrial Strategy",The Coal Authority,13/07/2020,Temporary Contractors,Development - Property Management,Hays Specialist Recruitment,85356,"1,142.95"
"Department for Business, Energy and Industrial Strategy",The Coal Authority,25/06/2020,Temporary Contractors,Development - Property Management,Hays Specialist Recruitment,85357,"1,142.95"
"Department for Business, Energy and Industrial Strategy",The Coal Authority,03/07/2020,Minewater Rent,Environment - Contract Management,Natural Resources Wales,85358,100.00
"Department for Business, Energy and Industrial Strategy",The Coal Authority,02/07/2020,Temporary Contractors,Development - Property Management,Hays Specialist Recruitment,85359,723.55
"Department for Business, Energy and Industrial Strategy",The Coal Authority,02/07/2020,Temporary Contractors,Development - Property Management,Hays Specialist Recruitment,85359,419.40
"Department for Business, Energy and Industrial Strategy",The Coal Authority,19/07/2020,Temporary Contractors,Procurement,Macildowie Associates,85361,"2,000.00"
"Department for Business, Energy and Industrial Strategy",The Coal Authority,22/06/2020,CY - Non-coal Minewater - Additions,Environment - DEFRA - EA Programme,Veolia ES UK Ltd,85374,"10,835.73"
"Department for Business, Energy and Industrial Strategy",The Coal Authority,30/06/2020,Minewater Rates,Environment - Contract Management,Fife Council,85386,"11,956.78"
"Department for Business, Energy and Industrial Strategy",The Coal Authority,30/06/2020,Minewater Rates,Environment - Contract Management,Fife Council,85387,"14,259.93"
"Department for Business, Energy and Industrial Strategy",The Coal Authority,30/06/2020,Minewater Rates,Environment - Contract Management,Fife Council,85388,"31,426.50"
"Department for Business, Energy and Industrial Strategy",The Coal Authority,30/06/2020,Subsidence Pumping Maintenance - Ad Hoc,Environment - Contract Management,Selby Area Internal Drain Brd,85389,182.64
"Department for Business, Energy and Industrial Strategy",The Coal Authority,30/06/2020,Subsidence Pumping Maintenance - Planned,Environment - Contract Management,Selby Area Internal Drain Brd,85389,694.89
"Department for Business, Energy and Industrial Strategy",The Coal Authority,30/06/2020,Subsidence Pumping Maintenance - Ad Hoc,Environment - Contract Management,Selby Area Internal Drain Brd,85390,410.40
"Department for Business, Energy and Industrial Strategy",The Coal Authority,30/06/2020,Subsidence Pumping Maintenance - Ad Hoc,Environment - Contract Management,Selby Area Internal Drain Brd,85390,826.09
"Department for Business, Energy and Industrial Strategy",The Coal Authority,30/06/2020,Subsidence Pumping Maintenance - Power,Environment - Contract Management,Selby Area Internal Drain Brd,85390,"7,042.01"
"Department for Business, Energy and Industrial Strategy",The Coal Authority,30/06/2020,Subsidence Pumping Maintenance - Ad Hoc,Environment - Contract Management,Selby Area Internal Drain Brd,85391,26.09
"Department for Business, Energy and Industrial Strategy",The Coal Authority,30/06/2020,Subsidence Pumping Maintenance - Planned,Environment - Contract Management,Selby Area Internal Drain Brd,85391,763.62
"Department for Business, Energy and Industrial Strategy",The Coal Authority,30/06/2020,Subsidence Pumping Maintenance - Ad Hoc,Environment - Contract Management,Selby Area Internal Drain Brd,85392,501.89
"Department for Business, Energy and Industrial Strategy",The Coal Authority,30/06/2020,Subsidence Pumping Maintenance - Planned,Environment - Contract Management,Selby Area Internal Drain Brd,85392,763.62
"Department for Business, Energy and Industrial Strategy",The Coal Authority,30/06/2020,Subsidence Pumping Maintenance - Planned,Environment - Contract Management,Selby Area Internal Drain Brd,85392,20.25
"Department for Business, Energy and Industrial Strategy",The Coal Authority,30/06/2020,Subsidence Pumping Maintenance - Power,Environment - Contract Management,Selby Area Internal Drain Brd,85392,"37,135.02"
"Department for Business, Energy and Industrial Strategy",The Coal Authority,30/06/2020,Subsidence Pumping Maintenance - Ad Hoc,Environment - Contract Management,Selby Area Internal Drain Brd,85393,26.09
"Department for Business, Energy and Industrial Strategy",The Coal Authority,30/06/2020,Subsidence Pumping Maintenance - Planned,Environment - Contract Management,Selby Area Internal Drain Brd,85393,763.62
"Department for Business, Energy and Industrial Strategy",The Coal Authority,30/06/2020,Subsidence Pumping Maintenance - Power,Environment - Contract Management,Selby Area Internal Drain Brd,85393,31.03
"Department for Business, Energy and Industrial Strategy",The Coal Authority,27/07/2020,Subsidence Pumping Maintenance - Power,Environment - Contract Management,Selby Area Internal Drain Brd,85397,"-5,286.31"
"Department for Business, Energy and Industrial Strategy",The Coal Authority,22/07/2020,Temporary Contractors,Finance,Cherry Professional Limited,85401,"1,605.98"
"Department for Business, Energy and Industrial Strategy",The Coal Authority,20/07/2020,CY - Non-coal Minewater - Additions,Environment - DEFRA - EA Programme,Detectronic Limited,85409,500.00
"Department for Business, Energy and Industrial Strategy",The Coal Authority,23/07/2020,CY - Head Office Buildings - Additions,Facilities,Wyg Engineering Ltd,85410,"1,330.00"
"Department for Business, Energy and Industrial Strategy",The Coal Authority,16/07/2020,Minewater Water Charges,Environment - Contract Management,Water Plus Limited,85411,86.91
"Department for Business, Energy and Industrial Strategy",The Coal Authority,03/07/2020,Minewater Power Costs,Environment - Contract Management,British Gas Business,85419,"1,740.39"
"Department for Business, Energy and Industrial Strategy",The Coal Authority,13/07/2020,Subsidence - Contractor Costs,PS&S - General Claims,Edf Energy,85420,16.96
"Department for Business, Energy and Industrial Strategy",The Coal Authority,16/07/2020,Subsidence - Contractor Costs,PS&S - General Claims,Nationspaces Developments Ltd,85426,334.13
"Department for Business, Energy and Industrial Strategy",The Coal Authority,16/07/2020,Subsidence - Contractor Costs,PS&S - General Claims,Nationspaces Developments Ltd,85427,328.85
"Department for Business, Energy and Industrial Strategy",The Coal Authority,14/07/2020,Subsidence - Contractor Costs,PS&S - Kellingley,E.ON,85428,59.34
"Department for Business, Energy and Industrial Strategy",The Coal Authority,30/06/2020,Hotel & Accommodation,Finance,Corporate Travel Management North,85438,78.00
"Department for Business, Energy and Industrial Strategy",The Coal Authority,30/06/2020,Hotel & Accommodation,Finance,Corporate Travel Management North,85438,6.00
"Department for Business, Energy and Industrial Strategy",The Coal Authority,27/07/2020,Other Hosting / IaaS,Mining Reports Retail,Bytemark Limited,85439,-0.24
"Department for Business, Energy and Industrial Strategy",The Coal Authority,30/06/2020,Short Term Vehicle Hire,Facilities,Enterprise Rent A Car,85442,"1,087.00"
"Department for Business, Energy and Industrial Strategy",The Coal Authority,27/07/2020,Fares - Rail,Finance,Corporate Travel Management North,85449,-124.40
"Department for Business, Energy and Industrial Strategy",The Coal Authority,30/06/2020,Hotel & Accommodation,Environment - Innovation Programme Delivery,Corporate Travel Management,85450,0.80
"Department for Business, Energy and Industrial Strategy",The Coal Authority,30/06/2020,Hotel & Accommodation,Environment - Technical,Corporate Travel Management,85450,0.80
"Department for Business, Energy and Industrial Strategy",The Coal Authority,30/06/2020,Hotel & Accommodation,Finance,Corporate Travel Management,85450,-78.00
"Department for Business, Energy and Industrial Strategy",The Coal Authority,30/06/2020,Hotel & Accommodation,Finance,Corporate Travel Management,85450,-6.00
"Department for Business, Energy and Industrial Strategy",The Coal Authority,30/06/2020,Hotel & Accommodation,Mining Reports Retail,Corporate Travel Management,85450,78.40
"Department for Business, Energy and Industrial Strategy",The Coal Authority,30/06/2020,Hotel & Accommodation,PS&S - Commercial Delivery,Corporate Travel Management,85450,0.80
"Department for Business, Energy and Industrial Strategy",The Coal Authority,30/06/2020,Hotel & Accommodation,PS&S - General Claims,Corporate Travel Management,85450,2.40
"Department for Business, Energy and Industrial Strategy",The Coal Authority,30/06/2020,Hotel & Accommodation,Safety Health & Environment,Corporate Travel Management,85450,0.80
"Department for Business, Energy and Industrial Strategy",The Coal Authority,30/06/2020,Fares - Rail,Executive,Corporate Travel Management,85451,-124.40
"Department for Business, Energy and Industrial Strategy",The Coal Authority,30/06/2020,Hotel & Accommodation,Finance,Corporate Travel Management,85451,124.40
"Department for Business, Energy and Industrial Strategy",The Coal Authority,17/06/2020,Fuel (Vehicle),Environment - Innovation Programme Delivery,Staff Expenses Control,85452,37.81
"Department for Business, Energy and Industrial Strategy",The Coal Authority,25/06/2020,Fuel (Vehicle),Environment - DEFRA - EA Programme,Staff Expenses Control,85452,35.81
"Department for Business, Energy and Industrial Strategy",The Coal Authority,06/07/2020,Fuel (Vehicle),Environment - DEFRA - EA Programme,Staff Expenses Control,85452,52.59
"Department for Business, Energy and Industrial Strategy",The Coal Authority,06/07/2020,Fuel (Vehicle),Environment - DEFRA - EA Programme,Staff Expenses Control,85452,16.72
"Department for Business, Energy and Industrial Strategy",The Coal Authority,12/07/2020,Fuel (Vehicle),Environment - DEFRA - EA Programme,Staff Expenses Control,85452,42.69
"Department for Business, Energy and Industrial Strategy",The Coal Authority,16/06/2020,Incidentals,Environment - Innovation Concept & Feasibility,Staff Expenses Control,85452,1.80
"Department for Business, Energy and Industrial Strategy",The Coal Authority,18/06/2020,Incidentals,Environment - Innovation Concept & Feasibility,Staff Expenses Control,85452,1.80
"Department for Business, Energy and Industrial Strategy",The Coal Authority,15/06/2020,Innovation Costs,Environment - Technical,Staff Expenses Control,85452,80.88
"Department for Business, Energy and Industrial Strategy",The Coal Authority,13/07/2020,Innovation Costs,Environment - DEFRA - EA Programme,Staff Expenses Control,85452,18.64
"Department for Business, Energy and Industrial Strategy",The Coal Authority,01/06/2020,Mileage Payments,Environment - DEFRA - EA Programme,Staff Expenses Control,85452,81.98
"Department for Business, Energy and Industrial Strategy",The Coal Authority,01/06/2020,Mileage Payments,Environment - DEFRA - EA Programme,Staff Expenses Control,85452,81.98
"Department for Business, Energy and Industrial Strategy",The Coal Authority,01/07/2020,Mileage Payments,PS&S - Industry Claims,Staff Expenses Control,85452,53.10
"Department for Business, Energy and Industrial Strategy",The Coal Authority,06/07/2020,Mileage Payments,Environment - Innovation Concept & Feasibility,Staff Expenses Control,85452,148.95
"Department for Business, Energy and Industrial Strategy",The Coal Authority,08/07/2020,Mileage Payments,PS&S - Industry Claims,Staff Expenses Control,85452,53.10
"Department for Business, Energy and Industrial Strategy",The Coal Authority,09/07/2020,Mileage Payments,PS&S - Industry Claims,Staff Expenses Control,85452,63.90
"Department for Business, Energy and Industrial Strategy",The Coal Authority,15/07/2020,Mileage Payments,PS&S - Industry Claims,Staff Expenses Control,85452,53.10
"Department for Business, Energy and Industrial Strategy",The Coal Authority,20/07/2020,Mileage Payments,NRW Tips Programme,Staff Expenses Control,85452,108.45
"Department for Business, Energy and Industrial Strategy",The Coal Authority,21/07/2020,Mileage Payments,NRW Tips Programme,Staff Expenses Control,85452,22.95
"Department for Business, Energy and Industrial Strategy",The Coal Authority,21/07/2020,Mileage Payments,PS&S - Industry Claims,Staff Expenses Control,85452,19.80
"Department for Business, Energy and Industrial Strategy",The Coal Authority,22/07/2020,Mileage Payments,NRW Tips Programme,Staff Expenses Control,85452,108.45
"Department for Business, Energy and Industrial Strategy",The Coal Authority,23/07/2020,Mileage Payments,PS&S - Industry Claims,Staff Expenses Control,85452,19.80
"Department for Business, Energy and Industrial Strategy",The Coal Authority,01/06/2020,Subsistence Allowances,Environment - DEFRA - EA Programme,Staff Expenses Control,85452,2.58
"Department for Business, Energy and Industrial Strategy",The Coal Authority,01/06/2020,Subsistence Allowances,Environment - DEFRA - EA Programme,Staff Expenses Control,85452,6.21
"Department for Business, Energy and Industrial Strategy",The Coal Authority,12/06/2020,Subsistence Allowances,Environment - Innovation Programme Delivery,Staff Expenses Control,85452,5.08
"Department for Business, Energy and Industrial Strategy",The Coal Authority,25/06/2020,Subsistence Allowances,Environment - DEFRA - EA Programme,Staff Expenses Control,85452,4.24
"Department for Business, Energy and Industrial Strategy",The Coal Authority,01/07/2020,Subsistence Allowances,Environment - Innovation Programme Delivery,Staff Expenses Control,85452,5.08
"Department for Business, Energy and Industrial Strategy",The Coal Authority,06/07/2020,Subsistence Allowances,Environment - DEFRA - EA Programme,Staff Expenses Control,85452,2.83
"Department for Business, Energy and Industrial Strategy",The Coal Authority,06/07/2020,Subsistence Allowances,Environment - DEFRA - EA Programme,Staff Expenses Control,85452,5.54
"Department for Business, Energy and Industrial Strategy",The Coal Authority,06/07/2020,Subsistence Allowances,Environment - DEFRA - EA Programme,Staff Expenses Control,85452,2.29
"Department for Business, Energy and Industrial Strategy",The Coal Authority,12/07/2020,Subsistence Allowances,Environment - DEFRA - EA Programme,Staff Expenses Control,85452,2.91
"Department for Business, Energy and Industrial Strategy",The Coal Authority,12/07/2020,Subsistence Allowances,Environment - DEFRA - EA Programme,Staff Expenses Control,85452,0.83
"Department for Business, Energy and Industrial Strategy",The Coal Authority,13/07/2020,Subsistence Allowances,Environment - DEFRA - EA Programme,Staff Expenses Control,85452,5.92
"Department for Business, Energy and Industrial Strategy",The Coal Authority,13/07/2020,Subsistence Allowances,Environment - DEFRA - EA Programme,Staff Expenses Control,85452,8.26
"Department for Business, Energy and Industrial Strategy",The Coal Authority,22/07/2020,Research & Development (Non BEIS Funded),Environment - DEFRA - EA Programme,Socotec,85458,493.58
"Department for Business, Energy and Industrial Strategy",The Coal Authority,23/07/2020,Subsidence - Contractor Costs,PS&S - Hatfield,C Goldthorpe & Sons,85468,"1,100.44"
"Department for Business, Energy and Industrial Strategy",The Coal Authority,27/07/2020,Subsidence - Contractor Costs,PS&S - Thoresby,Compensation Payment,85469,914.16
"Department for Business, Energy and Industrial Strategy",The Coal Authority,27/07/2020,Subsidence - Contractor Costs,PS&S - Thoresby,Compensation Payment,85469,"20,843.00"
"Department for Business, Energy and Industrial Strategy",The Coal Authority,21/07/2020,Subsidence - Contractor Costs,PS&S - Hatfield,C Goldthorpe & Sons,85470,699.00
"Department for Business, Energy and Industrial Strategy",The Coal Authority,20/07/2020,Subsidence - Contractor Costs,PS&S - General Claims,Compensation Payment,85471,"2,608.80"
"Department for Business, Energy and Industrial Strategy",The Coal Authority,20/07/2020,Subsidence - Contractor Costs,PS&S - General Claims,Compensation Payment,85472,"7,018.80"
"Department for Business, Energy and Industrial Strategy",The Coal Authority,20/07/2020,Subsidence - Contractor Costs,PS&S - General Claims,Compensation Payment,85473,13.95
"Department for Business, Energy and Industrial Strategy",The Coal Authority,22/07/2020,Subsidence - Contractor Costs,PS&S - General Claims,Burradon Farm Houses & Cottages Ltd,85474,"1,555.00"
"Department for Business, Energy and Industrial Strategy",The Coal Authority,27/07/2020,Surface Hazards - Contractor Costs,PS&S - General Claims,Compensation Payment,85481,500.00
"Department for Business, Energy and Industrial Strategy",The Coal Authority,23/07/2020,Surface Hazards - Contractor Costs,PS&S - General Claims,Compensation Payment,85482,250.00
"Department for Business, Energy and Industrial Strategy",The Coal Authority,27/07/2020,Surface Hazards - Contractor Costs,PS&S - General Claims,Compensation Payment,85483,300.00
"Department for Business, Energy and Industrial Strategy",The Coal Authority,23/07/2020,Subsidence - Contractor Costs,PS&S - Hatfield,Compensation Payment,85484,"2,267.58"
"Department for Business, Energy and Industrial Strategy",The Coal Authority,22/07/2020,Subsidence - Contractor Costs,PS&S - Hatfield,C Goldthorpe & Sons,85485,"18,226.03"
"Department for Business, Energy and Industrial Strategy",The Coal Authority,15/07/2020,Temporary Contractors,Finance,Cherry Professional Limited,85493,"1,787.10"
"Department for Business, Energy and Industrial Strategy",The Coal Authority,09/07/2020,Legal - General,Development - Legal,Land Registry,85503,93.00
"Department for Business, Energy and Industrial Strategy",The Coal Authority,10/07/2020,Property Rates Payable,Development - Historic Property Liabilities,Business Stream,85504,4.76
"Department for Business, Energy and Industrial Strategy",The Coal Authority,22/07/2020,Temporary Contractors,Development - Property Management,Hays Specialist Recruitment,85505,"1,142.95"
"Department for Business, Energy and Industrial Strategy",The Coal Authority,03/07/2020,Property Rates Payable,Development - Historic Property Liabilities,British Gas Business,85506,38.66
"Department for Business, Energy and Industrial Strategy",The Coal Authority,14/07/2020,Temporary Contractors,Development - Property Management,Hays Specialist Recruitment,85507,"1,142.95"
"Department for Business, Energy and Industrial Strategy",The Coal Authority,24/07/2020,Surface Hazards - Contractor Costs,PS&S - General Claims,Dsi Drilltek Ltd,85513,"2,080.00"
"Department for Business, Energy and Industrial Strategy",The Coal Authority,27/07/2020,Surface Hazards - Contractor Costs,PS&S - General Claims,Cornerstone  Projects Ltd,85514,234.70
"Department for Business, Energy and Industrial Strategy",The Coal Authority,24/07/2020,Surface Hazards - Contractor Costs,PS&S - General Claims,Cornerstone  Projects Ltd,85515,58.00
"Department for Business, Energy and Industrial Strategy",The Coal Authority,27/07/2020,Surface Hazards - Contractor Costs,PS&S - General Claims,Cornerstone  Projects Ltd,85516,260.70
"Department for Business, Energy and Industrial Strategy",The Coal Authority,23/07/2020,Minewater Monitoring & Flow Measurement,Environment - DEFRA - EA Programme,Van Walt Ltd,85517,186.91
"Department for Business, Energy and Industrial Strategy",The Coal Authority,24/07/2020,Consultancy - Commercialisation Costs,Safety Health & Environment,AECOM Ltd,85519,"1,520.00"
"Department for Business, Energy and Industrial Strategy",The Coal Authority,24/07/2020,Surface Hazards - Contractor Costs,PS&S - General Claims,Alliance Contracting Solutions Ltd,85521,112.05
"Department for Business, Energy and Industrial Strategy",The Coal Authority,24/07/2020,Surface Hazards - Contractor Costs,PS&S - General Claims,Alliance Contracting Solutions Ltd,85521,132.90
"Department for Business, Energy and Industrial Strategy",The Coal Authority,24/07/2020,Surface Hazards - Contractor Costs,PS&S - General Claims,Alliance Contracting Solutions Ltd,85521,143.40
"Department for Business, Energy and Industrial Strategy",The Coal Authority,24/07/2020,Surface Hazards - Contractor Costs,PS&S - General Claims,Alliance Contracting Solutions Ltd,85521,172.62
"Department for Business, Energy and Industrial Strategy",The Coal Authority,17/07/2020,Innovation Costs,Environment - Innovation Concept & Feasibility,H2O WEM Ltd,85529,"2,700.00"
"Department for Business, Energy and Industrial Strategy",The Coal Authority,24/07/2020,Bridgewater - Contractor Costs,PS&S - General Claims,The Bridgewater Canal Co Ltd,85530,"2,633.23"
"Department for Business, Energy and Industrial Strategy",The Coal Authority,27/07/2020,Surface Hazards - Contractor Costs,PS&S - General Claims,Luddon Construction Limited,85538,513.48
"Department for Business, Energy and Industrial Strategy",The Coal Authority,24/07/2020,Temporary Contractors,Environment - Innovation Concept & Feasibility,Key Personnel Solutions Ltd,85557,"1,675.80"
"Department for Business, Energy and Industrial Strategy",The Coal Authority,20/07/2020,Site Repairs & Maintenance,Facilities,Invincible Draincare Ltd,85558,"1,920.00"
"Department for Business, Energy and Industrial Strategy",The Coal Authority,24/07/2020,Site Services,Facilities,Biffa Waste Services Ltd,85559,96.00
"Department for Business, Energy and Industrial Strategy",The Coal Authority,24/07/2020,Site Services,Facilities,Biffa Waste Services Ltd,85559,104.00
"Department for Business, Energy and Industrial Strategy",The Coal Authority,22/07/2020,Site Repairs & Maintenance,Facilities,Briggs & Forrester Building Services Maintenance L,85560,766.42
"Department for Business, Energy and Industrial Strategy",The Coal Authority,22/07/2020,Site Repairs & Maintenance,Facilities,Briggs & Forrester Building Services Maintenance L,85561,324.61
"Department for Business, Energy and Industrial Strategy",The Coal Authority,16/07/2020,Gas / Other Fuels,Facilities,Calor Gas Limited,85562,34.25
"Department for Business, Energy and Industrial Strategy",The Coal Authority,24/07/2020,Site Services,Facilities,Biffa Waste Services Ltd,85567,24.00
"Department for Business, Energy and Industrial Strategy",The Coal Authority,24/07/2020,Site Services,Facilities,Biffa Waste Services Ltd,85567,52.00
"Department for Business, Energy and Industrial Strategy",The Coal Authority,24/07/2020,Site Services,Facilities,Biffa Waste Services Ltd,85567,24.00
"Department for Business, Energy and Industrial Strategy",The Coal Authority,08/01/2020,Subsidence - Contractor Costs,PS&S - General Claims,OVO Energy,85570,38.67
"Department for Business, Energy and Industrial Strategy",The Coal Authority,24/07/2020,Legal - General,Development - Legal,Land Registry,85598,9.00
"Department for Business, Energy and Industrial Strategy",The Coal Authority,15/07/2020,Minewater Chemicals - Operational Sites,Environment - DEFRA - EA Programme,Veolia ES UK Ltd,85604,"10,746.74"
"Department for Business, Energy and Industrial Strategy",The Coal Authority,15/07/2020,Minewater Contractor Maint. Visits - Ops Site,Environment - DEFRA - EA Programme,Veolia ES UK Ltd,85604,"37,137.21"
"Department for Business, Energy and Industrial Strategy",The Coal Authority,15/07/2020,Minewater Sludge Disposal,Environment - DEFRA - EA Programme,Veolia ES UK Ltd,85604,"29,022.50"
"Department for Business, Energy and Industrial Strategy",The Coal Authority,30/07/2020,Minewater Power Costs,Environment - DEFRA - EA Programme,Veolia ES UK Ltd,85605,"-3,591.17"
"Department for Business, Energy and Industrial Strategy",The Coal Authority,30/07/2020,Minewater Sludge Disposal,Environment - DEFRA - EA Programme,Veolia ES UK Ltd,85605,-168.37
"Department for Business, Energy and Industrial Strategy",The Coal Authority,16/05/2020,Minewater Telecoms & Telemetry,Environment - Contract Management,Vodafone Limited (Corporate),85606,74.63
"Department for Business, Energy and Industrial Strategy",The Coal Authority,16/06/2020,Minewater Telecoms & Telemetry,Environment - Contract Management,Vodafone Limited (Corporate),85609,97.79
"Department for Business, Energy and Industrial Strategy",The Coal Authority,09/07/2020,Minewater Rates,Environment - Contract Management,Midlothian Council,85610,"27,303.34"
"Department for Business, Energy and Industrial Strategy",The Coal Authority,17/07/2020,Postage & Couriers,Customer Services,FedEx Express UK Transportaion Limited,85614,234.86
"Department for Business, Energy and Industrial Strategy",The Coal Authority,29/06/2020,Minewater Sampling - Operational Sites,Environment - Contract Management,Socotec,85615,71.32
"Department for Business, Energy and Industrial Strategy",The Coal Authority,30/06/2020,eCommerce Commission Charges,Development � Permissions,Worldpay,85617,518.58
"Department for Business, Energy and Industrial Strategy",The Coal Authority,30/06/2020,eCommerce Commission Charges,Development - Licensing,Worldpay,85617,9.65
"Department for Business, Energy and Industrial Strategy",The Coal Authority,30/06/2020,eCommerce Commission Charges,Mining Reports Retail,Worldpay,85617,"1,156.29"
"Department for Business, Energy and Industrial Strategy",The Coal Authority,30/06/2020,eCommerce Commission Charges,Records,Worldpay,85617,15.00
"Department for Business, Energy and Industrial Strategy",The Coal Authority,16/07/2020,Central Training,Learning & Development,Oe Cam Llp,85620,446.44
"Department for Business, Energy and Industrial Strategy",The Coal Authority,20/07/2020,Surface Hazards - Equipment,PS&S - General Claims,Simple Storage Solutions T/A Gateshead,85621,83.34
"Department for Business, Energy and Industrial Strategy",The Coal Authority,20/07/2020,Surface Hazards - Equipment,PS&S - General Claims,Simple Storage Solutions T/A Gateshead,85621,-0.01
"Department for Business, Energy and Industrial Strategy",The Coal Authority,20/07/2020,Training & Education,Mining Information,Thomas Telford Training,85626,490.00
"Department for Business, Energy and Industrial Strategy",The Coal Authority,04/05/2020,Central Training,Environment - Innovation Programme Delivery,Government Procurement Card,85631,200.00
"Department for Business, Energy and Industrial Strategy",The Coal Authority,04/05/2020,Central Training,Environment - Innovation Programme Delivery,Government Procurement Card,85631,238.00
"Department for Business, Energy and Industrial Strategy",The Coal Authority,18/05/2020,Desktop Computing,PS&S - General Claims,Government Procurement Card,85631,34.99
"Department for Business, Energy and Industrial Strategy",The Coal Authority,05/05/2020,Fuel (Vehicle),PS&S - General Claims,Government Procurement Card,85631,33.33
"Department for Business, Energy and Industrial Strategy",The Coal Authority,12/05/2020,Fuel (Vehicle),PS&S - General Claims,Government Procurement Card,85631,32.08
"Department for Business, Energy and Industrial Strategy",The Coal Authority,14/05/2020,Fuel (Vehicle),PS&S - General Claims,Government Procurement Card,85631,32.50
"Department for Business, Energy and Industrial Strategy",The Coal Authority,20/05/2020,Fuel (Vehicle),PS&S - General Claims,Government Procurement Card,85631,26.03
"Department for Business, Energy and Industrial Strategy",The Coal Authority,24/05/2020,Fuel (Vehicle),PS&S - General Claims,Government Procurement Card,85631,5.08
"Department for Business, Energy and Industrial Strategy",The Coal Authority,24/05/2020,Fuel (Vehicle),PS&S - General Claims,Government Procurement Card,85631,28.33
"Department for Business, Energy and Industrial Strategy",The Coal Authority,26/05/2020,Fuel (Vehicle),PS&S - General Claims,Government Procurement Card,85631,47.05
"Department for Business, Energy and Industrial Strategy",The Coal Authority,28/05/2020,Fuel (Vehicle),PS&S - General Claims,Government Procurement Card,85631,35.42
"Department for Business, Energy and Industrial Strategy",The Coal Authority,02/06/2020,Fuel (Vehicle),PS&S - Commercial Delivery,Government Procurement Card,85631,14.16
"Department for Business, Energy and Industrial Strategy",The Coal Authority,17/05/2020,Internet Service Provider & Comms,Infrastructure Management,Government Procurement Card,85631,9.99
"Department for Business, Energy and Industrial Strategy",The Coal Authority,30/04/2020,Membership Subscriptions,PS&S - General Claims,Government Procurement Card,85631,9.99
"Department for Business, Energy and Industrial Strategy",The Coal Authority,30/05/2020,Membership Subscriptions,PS&S - General Claims,Government Procurement Card,85631,9.99
"Department for Business, Energy and Industrial Strategy",The Coal Authority,13/05/2020,Networking / Cabling,Finance,Government Procurement Card,85631,15.81
"Department for Business, Energy and Industrial Strategy",The Coal Authority,19/05/2020,Office Furniture,PS&S - Industry Claims,Government Procurement Card,85631,51.99
"Department for Business, Energy and Industrial Strategy",The Coal Authority,20/05/2020,Office Furniture,PS&S - General Claims,Government Procurement Card,85631,63.95
"Department for Business, Energy and Industrial Strategy",The Coal Authority,15/05/2020,Office Printing Services,PS&S - Industry Claims,Government Procurement Card,85631,40.95
"Department for Business, Energy and Industrial Strategy",The Coal Authority,18/05/2020,Office Printing Services,Executive,Government Procurement Card,85631,20.80
"Department for Business, Energy and Industrial Strategy",The Coal Authority,02/06/2020,Office Printing Services,Executive,Government Procurement Card,85631,24.38
"Department for Business, Energy and Industrial Strategy",The Coal Authority,01/05/2020,Peripherals / Consumables (MEP),Customer Services,Government Procurement Card,85631,25.39
"Department for Business, Energy and Industrial Strategy",The Coal Authority,07/05/2020,Peripherals / Consumables (MEP),Customer Services,Government Procurement Card,85631,26.39
"Department for Business, Energy and Industrial Strategy",The Coal Authority,13/05/2020,Peripherals / Consumables (MEP),Business Analysis,Government Procurement Card,85631,9.15
"Department for Business, Energy and Industrial Strategy",The Coal Authority,06/05/2020,Postage & Couriers,Customer Services,Government Procurement Card,85631,25.74
"Department for Business, Energy and Industrial Strategy",The Coal Authority,27/05/2020,Postage & Couriers,Environment - Innovation Concept & Feasibility,Government Procurement Card,85631,12.09
"Department for Business, Energy and Industrial Strategy",The Coal Authority,14/05/2020,Professional Subscriptions,HR & OD,Government Procurement Card,85631,163.00
"Department for Business, Energy and Industrial Strategy",The Coal Authority,02/05/2020,Site Repairs & Maintenance,Facilities,Government Procurement Card,85631,103.90
"Department for Business, Energy and Industrial Strategy",The Coal Authority,03/05/2020,Site Repairs & Maintenance,Facilities,Government Procurement Card,85631,10.40
"Department for Business, Energy and Industrial Strategy",The Coal Authority,14/05/2020,Site Repairs & Maintenance,Facilities,Government Procurement Card,85631,107.42
"Department for Business, Energy and Industrial Strategy",The Coal Authority,19/05/2020,Site Repairs & Maintenance,Facilities,Government Procurement Card,85631,115.78
"Department for Business, Energy and Industrial Strategy",The Coal Authority,27/05/2020,Site Repairs & Maintenance,Facilities,Government Procurement Card,85631,42.06
"Department for Business, Energy and Industrial Strategy",The Coal Authority,29/05/2020,Site Repairs & Maintenance,Facilities,Government Procurement Card,85631,4.65
"Department for Business, Energy and Industrial Strategy",The Coal Authority,31/05/2020,Site Repairs & Maintenance,Facilities,Government Procurement Card,85631,27.53
"Department for Business, Energy and Industrial Strategy",The Coal Authority,01/06/2020,Site Repairs & Maintenance,Facilities,Government Procurement Card,85631,11.94
"Department for Business, Energy and Industrial Strategy",The Coal Authority,01/06/2020,Site Repairs & Maintenance,Facilities,Government Procurement Card,85631,10.00
"Department for Business, Energy and Industrial Strategy",The Coal Authority,02/06/2020,Site Repairs & Maintenance,Facilities,Government Procurement Card,85631,79.93
"Department for Business, Energy and Industrial Strategy",The Coal Authority,11/05/2020,Software Licenses - On Premise,Mining Information,Government Procurement Card,85631,8.33
"Department for Business, Energy and Industrial Strategy",The Coal Authority,08/05/2020,Software Licenses - SaaS,Communications & Brand,Government Procurement Card,85631,9.99
"Department for Business, Energy and Industrial Strategy",The Coal Authority,21/05/2020,Software Licenses - SaaS,Mining Reports Retail,Government Procurement Card,85631,151.80
"Department for Business, Energy and Industrial Strategy",The Coal Authority,28/05/2020,Staff Events,Safety Health & Environment,Government Procurement Card,85631,90.00
"Department for Business, Energy and Industrial Strategy",The Coal Authority,28/05/2020,Staff Events,Safety Health & Environment,Government Procurement Card,85631,30.00
"Department for Business, Energy and Industrial Strategy",The Coal Authority,01/05/2020,Stationery,PS&S - General Claims,Government Procurement Card,85631,5.00
"Department for Business, Energy and Industrial Strategy",The Coal Authority,03/05/2020,Stationery,PS&S - General Claims,Government Procurement Card,85631,55.24
"Department for Business, Energy and Industrial Strategy",The Coal Authority,05/05/2020,Stationery,Finance,Government Procurement Card,85631,33.48
"Department for Business, Energy and Industrial Strategy",The Coal Authority,13/05/2020,Stationery,PS&S - General Claims,Government Procurement Card,85631,5.05
"Department for Business, Energy and Industrial Strategy",The Coal Authority,13/05/2020,Stationery,PS&S - Industry Claims,Government Procurement Card,85631,4.29
"Department for Business, Energy and Industrial Strategy",The Coal Authority,17/05/2020,Stationery,Finance,Government Procurement Card,85631,-33.48
"Department for Business, Energy and Industrial Strategy",The Coal Authority,28/05/2020,Stationery,Executive,Government Procurement Card,85631,11.59
"Department for Business, Energy and Industrial Strategy",The Coal Authority,15/05/2020,Subsidence - Equipment,PS&S - Industry Claims,Government Procurement Card,85631,10.52
"Department for Business, Energy and Industrial Strategy",The Coal Authority,29/05/2020,Surface Hazards - Contractor Costs,PS&S - Industry Claims,Government Procurement Card,85631,180.00
"Department for Business, Energy and Industrial Strategy",The Coal Authority,14/05/2020,Surface Hazards - Equipment,PS&S - General Claims,Government Procurement Card,85631,56.97
"Department for Business, Energy and Industrial Strategy",The Coal Authority,22/05/2020,Surface Hazards - Equipment,PS&S - General Claims,Government Procurement Card,85631,31.90
"Department for Business, Energy and Industrial Strategy",The Coal Authority,01/05/2020,Training & Education,Executive,Government Procurement Card,85631,228.00
"Department for Business, Energy and Industrial Strategy",The Coal Authority,06/05/2020,Training & Education,Safety Health & Environment,Government Procurement Card,85631,"1,328.00"
"Department for Business, Energy and Industrial Strategy",The Coal Authority,18/05/2020,Training & Education,Infrastructure Management,Government Procurement Card,85631,194.00
"Department for Business, Energy and Industrial Strategy",The Coal Authority,19/05/2020,Training & Education,Development - Planning & Local Authority Liaison,Government Procurement Card,85631,118.80
"Department for Business, Energy and Industrial Strategy",The Coal Authority,21/05/2020,Training & Education,Infrastructure Management,Government Procurement Card,85631,20.83
"Department for Business, Energy and Industrial Strategy",The Coal Authority,26/05/2020,Training & Education,Development - Planning & Local Authority Liaison,Government Procurement Card,85631,-51.00
"Department for Business, Energy and Industrial Strategy",The Coal Authority,06/07/2020,Central Training,Safety Health & Environment,Mines Rescue Service Limited,85650,99.00
"Department for Business, Energy and Industrial Strategy",The Coal Authority,30/06/2020,Central Training,Safety Health & Environment,Mines Rescue Service Limited,85651,153.00
"Department for Business, Energy and Industrial Strategy",The Coal Authority,31/07/2020,Property Site Maintenance,Development - Historic Property Liabilities,Crimefighter Alarms Ltd,85654,"5,952.00"
"Department for Business, Energy and Industrial Strategy",The Coal Authority,29/07/2020,Temporary Contractors,Finance,Cherry Professional Limited,85655,"1,787.10"
"Department for Business, Energy and Industrial Strategy",The Coal Authority,28/07/2020,Training & Education,PS&S - Engineering,Symmons Madge Associates Llp,85659,649.99
"Department for Business, Energy and Industrial Strategy",The Coal Authority,28/07/2020,Training & Education,PS&S - Engineering,Symmons Madge Associates Llp,85659,0.01
"Department for Business, Energy and Industrial Strategy",The Coal Authority,29/07/2020,Surface Hazards - Contractor Costs,PS&S - General Claims,Alliance Contracting Solutions Ltd,85660,431.04
"Department for Business, Energy and Industrial Strategy",The Coal Authority,29/07/2020,Surface Hazards - Contractor Costs,PS&S - General Claims,Alliance Contracting Solutions Ltd,85660,764.80
"Department for Business, Energy and Industrial Strategy",The Coal Authority,29/07/2020,Surface Hazards - Contractor Costs,PS&S - General Claims,Alliance Contracting Solutions Ltd,85660,920.64
"Department for Business, Energy and Industrial Strategy",The Coal Authority,29/07/2020,Surface Hazards - Contractor Costs,PS&S - General Claims,Alliance Contracting Solutions Ltd,85660,920.64
"Department for Business, Energy and Industrial Strategy",The Coal Authority,29/07/2020,Surface Hazards - Contractor Costs,PS&S - General Claims,Alliance Contracting Solutions Ltd,85660,320.00
"Department for Business, Energy and Industrial Strategy",The Coal Authority,29/07/2020,Surface Hazards - Contractor Costs,PS&S - General Claims,Alliance Contracting Solutions Ltd,85660,32.40
"Department for Business, Energy and Industrial Strategy",The Coal Authority,29/07/2020,Surface Hazards - Contractor Costs,PS&S - General Claims,Alliance Contracting Solutions Ltd,85660,120.00
"Department for Business, Energy and Industrial Strategy",The Coal Authority,29/07/2020,Surface Hazards - Contractor Costs,PS&S - General Claims,Alliance Contracting Solutions Ltd,85660,249.96
"Department for Business, Energy and Industrial Strategy",The Coal Authority,29/07/2020,Surface Hazards - Contractor Costs,PS&S - General Claims,Alliance Contracting Solutions Ltd,85660,754.40
"Department for Business, Energy and Industrial Strategy",The Coal Authority,29/07/2020,Surface Hazards - Contractor Costs,PS&S - General Claims,Alliance Contracting Solutions Ltd,85660,180.00
"Department for Business, Energy and Industrial Strategy",The Coal Authority,30/06/2020,Groundsure Royalty,Mining Reports Retail,Groundsure Limited,85671,"14,721.40"
"Department for Business, Energy and Industrial Strategy",The Coal Authority,06/07/2020,Public Relations,Communications & Brand,The Copyright Licensing Agency,85672,"6,148.54"
"Department for Business, Energy and Industrial Strategy",The Coal Authority,10/07/2020,BGS Royalty,Mining Reports Retail,Nerc,85673,"10,057.92"
"Department for Business, Energy and Industrial Strategy",The Coal Authority,01/06/2020,eCommerce Commission Charges,Mining Reports Retail,Worldpay Limited,85674,30.18
"Department for Business, Energy and Industrial Strategy",The Coal Authority,01/07/2020,eCommerce Commission Charges,Mining Reports Retail,Worldpay Limited,85675,587.50
"Department for Business, Energy and Industrial Strategy",The Coal Authority,18/07/2020,Minewater Water Charges,Environment - Contract Management,Wave Utilities,85689,"2,487.62"
"Department for Business, Energy and Industrial Strategy",The Coal Authority,28/04/2020,CY - Minewater Scheme - Additions,Environment-Mine Prog Build Team (Coal&Metal),Turner and Townsend Project Management Ltd.,85691,119.64
"Department for Business, Energy and Industrial Strategy",The Coal Authority,28/07/2020,Temporary Contractors,Development - Property Management,Hays Specialist Recruitment,85697,"1,142.95"
"Department for Business, Energy and Industrial Strategy",The Coal Authority,28/07/2020,CY - Non-coal Minewater - Additions,Environment - DEFRA - LEP Programme,Turner and Townsend Project Management Ltd.,85698,"6,907.04"
"Department for Business, Energy and Industrial Strategy",The Coal Authority,28/07/2020,CY - Non-coal Minewater - Additions,Environment - DEFRA - LEP Programme,Turner and Townsend Project Management Ltd.,85698,0.02
"Department for Business, Energy and Industrial Strategy",The Coal Authority,22/07/2020,Minewater Power Costs,Environment - Contract Management,IMServ Europe Limited,85699,30.51
"Department for Business, Energy and Industrial Strategy",The Coal Authority,17/07/2020,Subsidence - Contractor Costs,PS&S - Kellingley,Npower,85705,181.34
"Department for Business, Energy and Industrial Strategy",The Coal Authority,28/07/2020,Tips - Maintenance,PS&S - Commercial Delivery,Jim Davies Civil Engineering,85709,"1,013.43"
"Department for Business, Energy and Industrial Strategy",The Coal Authority,28/07/2020,Tips - Maintenance,PS&S - Commercial Delivery,Jim Davies Civil Engineering,85709,151.20
"Department for Business, Energy and Industrial Strategy",The Coal Authority,28/07/2020,Tips - Maintenance,PS&S - Commercial Delivery,Jim Davies Civil Engineering,85709,182.80
"Department for Business, Energy and Industrial Strategy",The Coal Authority,28/07/2020,Tips - Maintenance,PS&S - Commercial Delivery,Jim Davies Civil Engineering,85709,950.00
"Department for Business, Energy and Industrial Strategy",The Coal Authority,28/07/2020,Tips - Maintenance,PS&S - Commercial Delivery,Jim Davies Civil Engineering,85709,"2,246.34"
"Department for Business, Energy and Industrial Strategy",The Coal Authority,28/07/2020,Tips - Maintenance,PS&S - Commercial Delivery,Jim Davies Civil Engineering,85709,30.00
"Department for Business, Energy and Industrial Strategy",The Coal Authority,28/07/2020,Tips - Maintenance,PS&S - Commercial Delivery,Jim Davies Civil Engineering,85709,"3,280.16"
"Department for Business, Energy and Industrial Strategy",The Coal Authority,28/07/2020,Tips - Maintenance,PS&S - Commercial Delivery,Jim Davies Civil Engineering,85709,"2,721.60"
"Department for Business, Energy and Industrial Strategy",The Coal Authority,28/07/2020,Tips - Maintenance,PS&S - Commercial Delivery,Jim Davies Civil Engineering,85709,"3,590.73"
"Department for Business, Energy and Industrial Strategy",The Coal Authority,28/07/2020,Tips - Maintenance,PS&S - Commercial Delivery,Jim Davies Civil Engineering,85709,92.00
